Workbook

Sheet Sheet1
A1: CUSIP | B1: MATURITY | C1: CPN | D1: NXT_CPN_DT | E1: ID_BB | F1: ASK | G1: DUR_BID | H1: DUR_MID | I1: YLD_YTM_MID | J1: YLD_YTM_BID | K1: YLD_YTM_ASK | L1: Px_CLEAN_ASK | M1: PX_DIRTY_ASK | N1: REPO_REPORATE
A4: 912828HP8 | B4: =_xll.BDP($A4 & "govt cusip",B$1) ->  | C4: =_xll.BDP($A4 & "govt cusip",C$1) ->  | D4: =_xll.BDP($A4 & "govt cusip",D$1) ->  | E4: =_xll.BDP($A4 & "govt cusip","PX_BID") ->  | F4: =_xll.BDP($A4 & "govt cusip","PX_ASK") ->  | G4: =_xll.BDP($A4 & "govt cusip",G$1) ->  | H4: =_xll.BDP($A4 & "govt cusip",H$1) ->  | I4: =_xll.BDP($A4 & "govt cusip",I$1) ->  | J4: =_xll.BDP($A4 & "govt cusip",J$1) ->  | K4: =_xll.BDP($A4 & "govt cusip",K$1) ->  | L4: =_xll.BDP($A4 & "govt cusip",L$1) ->  | M4: =_xll.BDP($A4 & "govt cusip",M$1) ->  | N4: =_xll.BDP($A4 & "govt cusip",N$1) -> 
A5: 912828DL1 | B5: =_xll.BDP($A5 & "govt cusip",B$1) ->  | C5: =_xll.BDP($A5 & "govt cusip",C$1) ->  | D5: =_xll.BDP($A5 & "govt cusip",D$1) ->  | E5: =_xll.BDP($A5 & "govt cusip","PX_BID") ->  | F5: =_xll.BDP($A5 & "govt cusip","PX_ASK") ->  | G5: =_xll.BDP($A5 & "govt cusip",G$1) ->  | H5: =_xll.BDP($A5 & "govt cusip",H$1) ->  | I5: =_xll.BDP($A5 & "govt cusip",I$1) ->  | J5: =_xll.BDP($A5 & "govt cusip",J$1) ->  | K5: =_xll.BDP($A5 & "govt cusip",K$1) ->  | L5: =_xll.BDP($A5 & "govt cusip",L$1) ->  | M5: =_xll.BDP($A5 & "govt cusip",M$1) ->  | N5: =_xll.BDP($A5 & "govt cusip",N$1) -> 
A6: 912828GG9 | B6: =_xll.BDP($A6 & "govt cusip",B$1) ->  | C6: =_xll.BDP($A6 & "govt cusip",C$1) ->  | D6: =_xll.BDP($A6 & "govt cusip",D$1) ->  | E6: =_xll.BDP($A6 & "govt cusip","PX_BID") ->  | F6: =_xll.BDP($A6 & "govt cusip","PX_ASK") ->  | G6: =_xll.BDP($A6 & "govt cusip",G$1) ->  | H6: =_xll.BDP($A6 & "govt cusip",H$1) ->  | I6: =_xll.BDP($A6 & "govt cusip",I$1) ->  | J6: =_xll.BDP($A6 & "govt cusip",J$1) ->  | K6: =_xll.BDP($A6 & "govt cusip",K$1) ->  | L6: =_xll.BDP($A6 & "govt cusip",L$1) ->  | M6: =_xll.BDP($A6 & "govt cusip",M$1) ->  | N6: =_xll.BDP($A6 & "govt cusip",N$1) -> 
A7: 9128275Z1 | B7: =_xll.BDP($A7 & "govt cusip",B$1) ->  | C7: =_xll.BDP($A7 & "govt cusip",C$1) ->  | D7: =_xll.BDP($A7 & "govt cusip",D$1) ->  | E7: =_xll.BDP($A7 & "govt cusip","PX_BID") ->  | F7: =_xll.BDP($A7 & "govt cusip","PX_ASK") ->  | G7: =_xll.BDP($A7 & "govt cusip",G$1) ->  | H7: =_xll.BDP($A7 & "govt cusip",H$1) ->  | I7: =_xll.BDP($A7 & "govt cusip",I$1) ->  | J7: =_xll.BDP($A7 & "govt cusip",J$1) ->  | K7: =_xll.BDP($A7 & "govt cusip",K$1) ->  | L7: =_xll.BDP($A7 & "govt cusip",L$1) ->  | M7: =_xll.BDP($A7 & "govt cusip",M$1) ->  | N7: =_xll.BDP($A7 & "govt cusip",N$1) -> 
A8: 912828HS2 | B8: =_xll.BDP($A8 & "govt cusip",B$1) ->  | C8: =_xll.BDP($A8 & "govt cusip",C$1) ->  | D8: =_xll.BDP($A8 & "govt cusip",D$1) ->  | E8: =_xll.BDP($A8 & "govt cusip","PX_BID") ->  | F8: =_xll.BDP($A8 & "govt cusip","PX_ASK") ->  | G8: =_xll.BDP($A8 & "govt cusip",G$1) ->  | H8: =_xll.BDP($A8 & "govt cusip",H$1) ->  | I8: =_xll.BDP($A8 & "govt cusip",I$1) ->  | J8: =_xll.BDP($A8 & "govt cusip",J$1) ->  | K8: =_xll.BDP($A8 & "govt cusip",K$1) ->  | L8: =_xll.BDP($A8 & "govt cusip",L$1) ->  | M8: =_xll.BDP($A8 & "govt cusip",M$1) ->  | N8: =_xll.BDP($A8 & "govt cusip",N$1) -> 
A9: 912828DP2 | B9: =_xll.BDP($A9 & "govt cusip",B$1) ->  | C9: =_xll.BDP($A9 & "govt cusip",C$1) ->  | D9: =_xll.BDP($A9 & "govt cusip",D$1) ->  | E9: =_xll.BDP($A9 & "govt cusip","PX_BID") ->  | F9: =_xll.BDP($A9 & "govt cusip","PX_ASK") ->  | G9: =_xll.BDP($A9 & "govt cusip",G$1) ->  | H9: =_xll.BDP($A9 & "govt cusip",H$1) ->  | I9: =_xll.BDP($A9 & "govt cusip",I$1) ->  | J9: =_xll.BDP($A9 & "govt cusip",J$1) ->  | K9: =_xll.BDP($A9 & "govt cusip",K$1) ->  | L9: =_xll.BDP($A9 & "govt cusip",L$1) ->  | M9: =_xll.BDP($A9 & "govt cusip",M$1) ->  | N9: =_xll.BDP($A9 & "govt cusip",N$1) -> 
A10: 912828HU7 | B10: =_xll.BDP($A10 & "govt cusip",B$1) ->  | C10: =_xll.BDP($A10 & "govt cusip",C$1) ->  | D10: =_xll.BDP($A10 & "govt cusip",D$1) ->  | E10: =_xll.BDP($A10 & "govt cusip","PX_BID") ->  | F10: =_xll.BDP($A10 & "govt cusip","PX_ASK") ->  | G10: =_xll.BDP($A10 & "govt cusip",G$1) ->  | H10: =_xll.BDP($A10 & "govt cusip",H$1) ->  | I10: =_xll.BDP($A10 & "govt cusip",I$1) ->  | J10: =_xll.BDP($A10 & "govt cusip",J$1) ->  | K10: =_xll.BDP($A10 & "govt cusip",K$1) ->  | L10: =_xll.BDP($A10 & "govt cusip",L$1) ->  | M10: =_xll.BDP($A10 & "govt cusip",M$1) ->  | N10: =_xll.BDP($A10 & "govt cusip",N$1) -> 
A11: 912828DR8 | B11: =_xll.BDP($A11 & "govt cusip",B$1) ->  | C11: =_xll.BDP($A11 & "govt cusip",C$1) ->  | D11: =_xll.BDP($A11 & "govt cusip",D$1) ->  | E11: =_xll.BDP($A11 & "govt cusip","PX_BID") ->  | F11: =_xll.BDP($A11 & "govt cusip","PX_ASK") ->  | G11: =_xll.BDP($A11 & "govt cusip",G$1) ->  | H11: =_xll.BDP($A11 & "govt cusip",H$1) ->  | I11: =_xll.BDP($A11 & "govt cusip",I$1) ->  | J11: =_xll.BDP($A11 & "govt cusip",J$1) ->  | K11: =_xll.BDP($A11 & "govt cusip",K$1) ->  | L11: =_xll.BDP($A11 & "govt cusip",L$1) ->  | M11: =_xll.BDP($A11 & "govt cusip",M$1) ->  | N11: =_xll.BDP($A11 & "govt cusip",N$1) -> 
A12: 912828HX1 | B12: =_xll.BDP($A12 & "govt cusip",B$1) ->  | C12: =_xll.BDP($A12 & "govt cusip",C$1) ->  | D12: =_xll.BDP($A12 & "govt cusip",D$1) ->  | E12: =_xll.BDP($A12 & "govt cusip","PX_BID") ->  | F12: =_xll.BDP($A12 & "govt cusip","PX_ASK") ->  | G12: =_xll.BDP($A12 & "govt cusip",G$1) ->  | H12: =_xll.BDP($A12 & "govt cusip",H$1) ->  | I12: =_xll.BDP($A12 & "govt cusip",I$1) ->  | J12: =_xll.BDP($A12 & "govt cusip",J$1) ->  | K12: =_xll.BDP($A12 & "govt cusip",K$1) ->  | L12: =_xll.BDP($A12 & "govt cusip",L$1) ->  | M12: =_xll.BDP($A12 & "govt cusip",M$1) ->  | N12: =_xll.BDP($A12 & "govt cusip",N$1) -> 
A13: 912828DU1 | B13: =_xll.BDP($A13 & "govt cusip",B$1) ->  | C13: =_xll.BDP($A13 & "govt cusip",C$1) ->  | D13: =_xll.BDP($A13 & "govt cusip",D$1) ->  | E13: =_xll.BDP($A13 & "govt cusip","PX_BID") ->  | F13: =_xll.BDP($A13 & "govt cusip","PX_ASK") ->  | G13: =_xll.BDP($A13 & "govt cusip",G$1) ->  | H13: =_xll.BDP($A13 & "govt cusip",H$1) ->  | I13: =_xll.BDP($A13 & "govt cusip",I$1) ->  | J13: =_xll.BDP($A13 & "govt cusip",J$1) ->  | K13: =_xll.BDP($A13 & "govt cusip",K$1) ->  | L13: =_xll.BDP($A13 & "govt cusip",L$1) ->  | M13: =_xll.BDP($A13 & "govt cusip",M$1) ->  | N13: =_xll.BDP($A13 & "govt cusip",N$1) -> 
A14: 912828GR5 | B14: =_xll.BDP($A14 & "govt cusip",B$1) ->  | C14: =_xll.BDP($A14 & "govt cusip",C$1) ->  | D14: =_xll.BDP($A14 & "govt cusip",D$1) ->  | E14: =_xll.BDP($A14 & "govt cusip","PX_BID") ->  | F14: =_xll.BDP($A14 & "govt cusip","PX_ASK") ->  | G14: =_xll.BDP($A14 & "govt cusip",G$1) ->  | H14: =_xll.BDP($A14 & "govt cusip",H$1) ->  | I14: =_xll.BDP($A14 & "govt cusip",I$1) ->  | J14: =_xll.BDP($A14 & "govt cusip",J$1) ->  | K14: =_xll.BDP($A14 & "govt cusip",K$1) ->  | L14: =_xll.BDP($A14 & "govt cusip",L$1) ->  | M14: =_xll.BDP($A14 & "govt cusip",M$1) ->  | N14: =_xll.BDP($A14 & "govt cusip",N$1) -> 
A15: 912828JA9 | B15: =_xll.BDP($A15 & "govt cusip",B$1) ->  | C15: =_xll.BDP($A15 & "govt cusip",C$1) ->  | D15: =_xll.BDP($A15 & "govt cusip",D$1) ->  | E15: =_xll.BDP($A15 & "govt cusip","PX_BID") ->  | F15: =_xll.BDP($A15 & "govt cusip","PX_ASK") ->  | G15: =_xll.BDP($A15 & "govt cusip",G$1) ->  | H15: =_xll.BDP($A15 & "govt cusip",H$1) ->  | I15: =_xll.BDP($A15 & "govt cusip",I$1) ->  | J15: =_xll.BDP($A15 & "govt cusip",J$1) ->  | K15: =_xll.BDP($A15 & "govt cusip",K$1) ->  | L15: =_xll.BDP($A15 & "govt cusip",L$1) ->  | M15: =_xll.BDP($A15 & "govt cusip",M$1) ->  | N15: =_xll.BDP($A15 & "govt cusip",N$1) -> 
A16: 912828DX5 | B16: =_xll.BDP($A16 & "govt cusip",B$1) ->  | C16: =_xll.BDP($A16 & "govt cusip",C$1) ->  | D16: =_xll.BDP($A16 & "govt cusip",D$1) ->  | E16: =_xll.BDP($A16 & "govt cusip","PX_BID") ->  | F16: =_xll.BDP($A16 & "govt cusip","PX_ASK") ->  | G16: =_xll.BDP($A16 & "govt cusip",G$1) ->  | H16: =_xll.BDP($A16 & "govt cusip",H$1) ->  | I16: =_xll.BDP($A16 & "govt cusip",I$1) ->  | J16: =_xll.BDP($A16 & "govt cusip",J$1) ->  | K16: =_xll.BDP($A16 & "govt cusip",K$1) ->  | L16: =_xll.BDP($A16 & "govt cusip",L$1) ->  | M16: =_xll.BDP($A16 & "govt cusip",M$1) ->  | N16: =_xll.BDP($A16 & "govt cusip",N$1) -> 
A17: 912828JC5 | B17: =_xll.BDP($A17 & "govt cusip",B$1) ->  | C17: =_xll.BDP($A17 & "govt cusip",C$1) ->  | D17: =_xll.BDP($A17 & "govt cusip",D$1) ->  | E17: =_xll.BDP($A17 & "govt cusip","PX_BID") ->  | F17: =_xll.BDP($A17 & "govt cusip","PX_ASK") ->  | G17: =_xll.BDP($A17 & "govt cusip",G$1) ->  | H17: =_xll.BDP($A17 & "govt cusip",H$1) ->  | I17: =_xll.BDP($A17 & "govt cusip",I$1) ->  | J17: =_xll.BDP($A17 & "govt cusip",J$1) ->  | K17: =_xll.BDP($A17 & "govt cusip",K$1) ->  | L17: =_xll.BDP($A17 & "govt cusip",L$1) ->  | M17: =_xll.BDP($A17 & "govt cusip",M$1) ->  | N17: =_xll.BDP($A17 & "govt cusip",N$1) -> 
A18: 912828DZ0 | B18: =_xll.BDP($A18 & "govt cusip",B$1) ->  | C18: =_xll.BDP($A18 & "govt cusip",C$1) ->  | D18: =_xll.BDP($A18 & "govt cusip",D$1) ->  | E18: =_xll.BDP($A18 & "govt cusip","PX_BID") ->  | F18: =_xll.BDP($A18 & "govt cusip","PX_ASK") ->  | G18: =_xll.BDP($A18 & "govt cusip",G$1) ->  | H18: =_xll.BDP($A18 & "govt cusip",H$1) ->  | I18: =_xll.BDP($A18 & "govt cusip",I$1) ->  | J18: =_xll.BDP($A18 & "govt cusip",J$1) ->  | K18: =_xll.BDP($A18 & "govt cusip",K$1) ->  | L18: =_xll.BDP($A18 & "govt cusip",L$1) ->  | M18: =_xll.BDP($A18 & "govt cusip",M$1) ->  | N18: =_xll.BDP($A18 & "govt cusip",N$1) -> 
A19: 912828ED8 | B19: =_xll.BDP($A19 & "govt cusip",B$1) ->  | C19: =_xll.BDP($A19 & "govt cusip",C$1) ->  | D19: =_xll.BDP($A19 & "govt cusip",D$1) ->  | E19: =_xll.BDP($A19 & "govt cusip","PX_BID") ->  | F19: =_xll.BDP($A19 & "govt cusip","PX_ASK") ->  | G19: =_xll.BDP($A19 & "govt cusip",G$1) ->  | H19: =_xll.BDP($A19 & "govt cusip",H$1) ->  | I19: =_xll.BDP($A19 & "govt cusip",I$1) ->  | J19: =_xll.BDP($A19 & "govt cusip",J$1) ->  | K19: =_xll.BDP($A19 & "govt cusip",K$1) ->  | L19: =_xll.BDP($A19 & "govt cusip",L$1) ->  | M19: =_xll.BDP($A19 & "govt cusip",M$1) ->  | N19: =_xll.BDP($A19 & "govt cusip",N$1) -> 
A20: 9128276J6 | B20: =_xll.BDP($A20 & "govt cusip",B$1) ->  | C20: =_xll.BDP($A20 & "govt cusip",C$1) ->  | D20: =_xll.BDP($A20 & "govt cusip",D$1) ->  | E20: =_xll.BDP($A20 & "govt cusip","PX_BID") ->  | F20: =_xll.BDP($A20 & "govt cusip","PX_ASK") ->  | G20: =_xll.BDP($A20 & "govt cusip",G$1) ->  | H20: =_xll.BDP($A20 & "govt cusip",H$1) ->  | I20: =_xll.BDP($A20 & "govt cusip",I$1) ->  | J20: =_xll.BDP($A20 & "govt cusip",J$1) ->  | K20: =_xll.BDP($A20 & "govt cusip",K$1) ->  | L20: =_xll.BDP($A20 & "govt cusip",L$1) ->  | M20: =_xll.BDP($A20 & "govt cusip",M$1) ->  | N20: =_xll.BDP($A20 & "govt cusip",N$1) -> 
A21: 912828EG1 | B21: =_xll.BDP($A21 & "govt cusip",B$1) ->  | C21: =_xll.BDP($A21 & "govt cusip",C$1) ->  | D21: =_xll.BDP($A21 & "govt cusip",D$1) ->  | E21: =_xll.BDP($A21 & "govt cusip","PX_BID") ->  | F21: =_xll.BDP($A21 & "govt cusip","PX_ASK") ->  | G21: =_xll.BDP($A21 & "govt cusip",G$1) ->  | H21: =_xll.BDP($A21 & "govt cusip",H$1) ->  | I21: =_xll.BDP($A21 & "govt cusip",I$1) ->  | J21: =_xll.BDP($A21 & "govt cusip",J$1) ->  | K21: =_xll.BDP($A21 & "govt cusip",K$1) ->  | L21: =_xll.BDP($A21 & "govt cusip",L$1) ->  | M21: =_xll.BDP($A21 & "govt cusip",M$1) ->  | N21: =_xll.BDP($A21 & "govt cusip",N$1) -> 
A22: 912828EJ5 | B22: =_xll.BDP($A22 & "govt cusip",B$1) ->  | C22: =_xll.BDP($A22 & "govt cusip",C$1) ->  | D22: =_xll.BDP($A22 & "govt cusip",D$1) ->  | E22: =_xll.BDP($A22 & "govt cusip","PX_BID") ->  | F22: =_xll.BDP($A22 & "govt cusip","PX_ASK") ->  | G22: =_xll.BDP($A22 & "govt cusip",G$1) ->  | H22: =_xll.BDP($A22 & "govt cusip",H$1) ->  | I22: =_xll.BDP($A22 & "govt cusip",I$1) ->  | J22: =_xll.BDP($A22 & "govt cusip",J$1) ->  | K22: =_xll.BDP($A22 & "govt cusip",K$1) ->  | L22: =_xll.BDP($A22 & "govt cusip",L$1) ->  | M22: =_xll.BDP($A22 & "govt cusip",M$1) ->  | N22: =_xll.BDP($A22 & "govt cusip",N$1) -> 
A23: 912828EM8 | B23: =_xll.BDP($A23 & "govt cusip",B$1) ->  | C23: =_xll.BDP($A23 & "govt cusip",C$1) ->  | D23: =_xll.BDP($A23 & "govt cusip",D$1) ->  | E23: =_xll.BDP($A23 & "govt cusip","PX_BID") ->  | F23: =_xll.BDP($A23 & "govt cusip","PX_ASK") ->  | G23: =_xll.BDP($A23 & "govt cusip",G$1) ->  | H23: =_xll.BDP($A23 & "govt cusip",H$1) ->  | I23: =_xll.BDP($A23 & "govt cusip",I$1) ->  | J23: =_xll.BDP($A23 & "govt cusip",J$1) ->  | K23: =_xll.BDP($A23 & "govt cusip",K$1) ->  | L23: =_xll.BDP($A23 & "govt cusip",L$1) ->  | M23: =_xll.BDP($A23 & "govt cusip",M$1) ->  | N23: =_xll.BDP($A23 & "govt cusip",N$1) -> 
A24: 912828EQ9 | B24: =_xll.BDP($A24 & "govt cusip",B$1) ->  | C24: =_xll.BDP($A24 & "govt cusip",C$1) ->  | D24: =_xll.BDP($A24 & "govt cusip",D$1) ->  | E24: =_xll.BDP($A24 & "govt cusip","PX_BID") ->  | F24: =_xll.BDP($A24 & "govt cusip","PX_ASK") ->  | G24: =_xll.BDP($A24 & "govt cusip",G$1) ->  | H24: =_xll.BDP($A24 & "govt cusip",H$1) ->  | I24: =_xll.BDP($A24 & "govt cusip",I$1) ->  | J24: =_xll.BDP($A24 & "govt cusip",J$1) ->  | K24: =_xll.BDP($A24 & "govt cusip",K$1) ->  | L24: =_xll.BDP($A24 & "govt cusip",L$1) ->  | M24: =_xll.BDP($A24 & "govt cusip",M$1) ->  | N24: =_xll.BDP($A24 & "govt cusip",N$1) -> 
A25: 912828ES5 | B25: =_xll.BDP($A25 & "govt cusip",B$1) ->  | C25: =_xll.BDP($A25 & "govt cusip",C$1) ->  | D25: =_xll.BDP($A25 & "govt cusip",D$1) ->  | E25: =_xll.BDP($A25 & "govt cusip","PX_BID") ->  | F25: =_xll.BDP($A25 & "govt cusip","PX_ASK") ->  | G25: =_xll.BDP($A25 & "govt cusip",G$1) ->  | H25: =_xll.BDP($A25 & "govt cusip",H$1) ->  | I25: =_xll.BDP($A25 & "govt cusip",I$1) ->  | J25: =_xll.BDP($A25 & "govt cusip",J$1) ->  | K25: =_xll.BDP($A25 & "govt cusip",K$1) ->  | L25: =_xll.BDP($A25 & "govt cusip",L$1) ->  | M25: =_xll.BDP($A25 & "govt cusip",M$1) ->  | N25: =_xll.BDP($A25 & "govt cusip",N$1) -> 
A26: 9128276T4 | B26: =_xll.BDP($A26 & "govt cusip",B$1) ->  | C26: =_xll.BDP($A26 & "govt cusip",C$1) ->  | D26: =_xll.BDP($A26 & "govt cusip",D$1) ->  | E26: =_xll.BDP($A26 & "govt cusip","PX_BID") ->  | F26: =_xll.BDP($A26 & "govt cusip","PX_ASK") ->  | G26: =_xll.BDP($A26 & "govt cusip",G$1) ->  | H26: =_xll.BDP($A26 & "govt cusip",H$1) ->  | I26: =_xll.BDP($A26 & "govt cusip",I$1) ->  | J26: =_xll.BDP($A26 & "govt cusip",J$1) ->  | K26: =_xll.BDP($A26 & "govt cusip",K$1) ->  | L26: =_xll.BDP($A26 & "govt cusip",L$1) ->  | M26: =_xll.BDP($A26 & "govt cusip",M$1) ->  | N26: =_xll.BDP($A26 & "govt cusip",N$1) -> 
A27: 912828EX4 | B27: =_xll.BDP($A27 & "govt cusip",B$1) ->  | C27: =_xll.BDP($A27 & "govt cusip",C$1) ->  | D27: =_xll.BDP($A27 & "govt cusip",D$1) ->  | E27: =_xll.BDP($A27 & "govt cusip","PX_BID") ->  | F27: =_xll.BDP($A27 & "govt cusip","PX_ASK") ->  | G27: =_xll.BDP($A27 & "govt cusip",G$1) ->  | H27: =_xll.BDP($A27 & "govt cusip",H$1) ->  | I27: =_xll.BDP($A27 & "govt cusip",I$1) ->  | J27: =_xll.BDP($A27 & "govt cusip",J$1) ->  | K27: =_xll.BDP($A27 & "govt cusip",K$1) ->  | L27: =_xll.BDP($A27 & "govt cusip",L$1) ->  | M27: =_xll.BDP($A27 & "govt cusip",M$1) ->  | N27: =_xll.BDP($A27 & "govt cusip",N$1) -> 
A28: 912828FA3 | B28: =_xll.BDP($A28 & "govt cusip",B$1) ->  | C28: =_xll.BDP($A28 & "govt cusip",C$1) ->  | D28: =_xll.BDP($A28 & "govt cusip",D$1) ->  | E28: =_xll.BDP($A28 & "govt cusip","PX_BID") ->  | F28: =_xll.BDP($A28 & "govt cusip","PX_ASK") ->  | G28: =_xll.BDP($A28 & "govt cusip",G$1) ->  | H28: =_xll.BDP($A28 & "govt cusip",H$1) ->  | I28: =_xll.BDP($A28 & "govt cusip",I$1) ->  | J28: =_xll.BDP($A28 & "govt cusip",J$1) ->  | K28: =_xll.BDP($A28 & "govt cusip",K$1) ->  | L28: =_xll.BDP($A28 & "govt cusip",L$1) ->  | M28: =_xll.BDP($A28 & "govt cusip",M$1) ->  | N28: =_xll.BDP($A28 & "govt cusip",N$1) -> 
A29: 912828FD7 | B29: =_xll.BDP($A29 & "govt cusip",B$1) ->  | C29: =_xll.BDP($A29 & "govt cusip",C$1) ->  | D29: =_xll.BDP($A29 & "govt cusip",D$1) ->  | E29: =_xll.BDP($A29 & "govt cusip","PX_BID") ->  | F29: =_xll.BDP($A29 & "govt cusip","PX_ASK") ->  | G29: =_xll.BDP($A29 & "govt cusip",G$1) ->  | H29: =_xll.BDP($A29 & "govt cusip",H$1) ->  | I29: =_xll.BDP($A29 & "govt cusip",I$1) ->  | J29: =_xll.BDP($A29 & "govt cusip",J$1) ->  | K29: =_xll.BDP($A29 & "govt cusip",K$1) ->  | L29: =_xll.BDP($A29 & "govt cusip",L$1) ->  | M29: =_xll.BDP($A29 & "govt cusip",M$1) ->  | N29: =_xll.BDP($A29 & "govt cusip",N$1) -> 
A30: 912828FH8 | B30: =_xll.BDP($A30 & "govt cusip",B$1) ->  | C30: =_xll.BDP($A30 & "govt cusip",C$1) ->  | D30: =_xll.BDP($A30 & "govt cusip",D$1) ->  | E30: =_xll.BDP($A30 & "govt cusip","PX_BID") ->  | F30: =_xll.BDP($A30 & "govt cusip","PX_ASK") ->  | G30: =_xll.BDP($A30 & "govt cusip",G$1) ->  | H30: =_xll.BDP($A30 & "govt cusip",H$1) ->  | I30: =_xll.BDP($A30 & "govt cusip",I$1) ->  | J30: =_xll.BDP($A30 & "govt cusip",J$1) ->  | K30: =_xll.BDP($A30 & "govt cusip",K$1) ->  | L30: =_xll.BDP($A30 & "govt cusip",L$1) ->  | M30: =_xll.BDP($A30 & "govt cusip",M$1) ->  | N30: =_xll.BDP($A30 & "govt cusip",N$1) -> 
A31: 912828FK1 | B31: =_xll.BDP($A31 & "govt cusip",B$1) ->  | C31: =_xll.BDP($A31 & "govt cusip",C$1) ->  | D31: =_xll.BDP($A31 & "govt cusip",D$1) ->  | E31: =_xll.BDP($A31 & "govt cusip","PX_BID") ->  | F31: =_xll.BDP($A31 & "govt cusip","PX_ASK") ->  | G31: =_xll.BDP($A31 & "govt cusip",G$1) ->  | H31: =_xll.BDP($A31 & "govt cusip",H$1) ->  | I31: =_xll.BDP($A31 & "govt cusip",I$1) ->  | J31: =_xll.BDP($A31 & "govt cusip",J$1) ->  | K31: =_xll.BDP($A31 & "govt cusip",K$1) ->  | L31: =_xll.BDP($A31 & "govt cusip",L$1) ->  | M31: =_xll.BDP($A31 & "govt cusip",M$1) ->  | N31: =_xll.BDP($A31 & "govt cusip",N$1) -> 
A32: 912828FN5 | B32: =_xll.BDP($A32 & "govt cusip",B$1) ->  | C32: =_xll.BDP($A32 & "govt cusip",C$1) ->  | D32: =_xll.BDP($A32 & "govt cusip",D$1) ->  | E32: =_xll.BDP($A32 & "govt cusip","PX_BID") ->  | F32: =_xll.BDP($A32 & "govt cusip","PX_ASK") ->  | G32: =_xll.BDP($A32 & "govt cusip",G$1) ->  | H32: =_xll.BDP($A32 & "govt cusip",H$1) ->  | I32: =_xll.BDP($A32 & "govt cusip",I$1) ->  | J32: =_xll.BDP($A32 & "govt cusip",J$1) ->  | K32: =_xll.BDP($A32 & "govt cusip",K$1) ->  | L32: =_xll.BDP($A32 & "govt cusip",L$1) ->  | M32: =_xll.BDP($A32 & "govt cusip",M$1) ->  | N32: =_xll.BDP($A32 & "govt cusip",N$1) -> 
A33: 9128277B2 | B33: =_xll.BDP($A33 & "govt cusip",B$1) ->  | C33: =_xll.BDP($A33 & "govt cusip",C$1) ->  | D33: =_xll.BDP($A33 & "govt cusip",D$1) ->  | E33: =_xll.BDP($A33 & "govt cusip","PX_BID") ->  | F33: =_xll.BDP($A33 & "govt cusip","PX_ASK") ->  | G33: =_xll.BDP($A33 & "govt cusip",G$1) ->  | H33: =_xll.BDP($A33 & "govt cusip",H$1) ->  | I33: =_xll.BDP($A33 & "govt cusip",I$1) ->  | J33: =_xll.BDP($A33 & "govt cusip",J$1) ->  | K33: =_xll.BDP($A33 & "govt cusip",K$1) ->  | L33: =_xll.BDP($A33 & "govt cusip",L$1) ->  | M33: =_xll.BDP($A33 & "govt cusip",M$1) ->  | N33: =_xll.BDP($A33 & "govt cusip",N$1) -> 
A34: 912828FS4 | B34: =_xll.BDP($A34 & "govt cusip",B$1) ->  | C34: =_xll.BDP($A34 & "govt cusip",C$1) ->  | D34: =_xll.BDP($A34 & "govt cusip",D$1) ->  | E34: =_xll.BDP($A34 & "govt cusip","PX_BID") ->  | F34: =_xll.BDP($A34 & "govt cusip","PX_ASK") ->  | G34: =_xll.BDP($A34 & "govt cusip",G$1) ->  | H34: =_xll.BDP($A34 & "govt cusip",H$1) ->  | I34: =_xll.BDP($A34 & "govt cusip",I$1) ->  | J34: =_xll.BDP($A34 & "govt cusip",J$1) ->  | K34: =_xll.BDP($A34 & "govt cusip",K$1) ->  | L34: =_xll.BDP($A34 & "govt cusip",L$1) ->  | M34: =_xll.BDP($A34 & "govt cusip",M$1) ->  | N34: =_xll.BDP($A34 & "govt cusip",N$1) -> 
A35: 912828FU9 | B35: =_xll.BDP($A35 & "govt cusip",B$1) ->  | C35: =_xll.BDP($A35 & "govt cusip",C$1) ->  | D35: =_xll.BDP($A35 & "govt cusip",D$1) ->  | E35: =_xll.BDP($A35 & "govt cusip","PX_BID") ->  | F35: =_xll.BDP($A35 & "govt cusip","PX_ASK") ->  | G35: =_xll.BDP($A35 & "govt cusip",G$1) ->  | H35: =_xll.BDP($A35 & "govt cusip",H$1) ->  | I35: =_xll.BDP($A35 & "govt cusip",I$1) ->  | J35: =_xll.BDP($A35 & "govt cusip",J$1) ->  | K35: =_xll.BDP($A35 & "govt cusip",K$1) ->  | L35: =_xll.BDP($A35 & "govt cusip",L$1) ->  | M35: =_xll.BDP($A35 & "govt cusip",M$1) ->  | N35: =_xll.BDP($A35 & "govt cusip",N$1) -> 
A36: 912828FW5 | B36: =_xll.BDP($A36 & "govt cusip",B$1) ->  | C36: =_xll.BDP($A36 & "govt cusip",C$1) ->  | D36: =_xll.BDP($A36 & "govt cusip",D$1) ->  | E36: =_xll.BDP($A36 & "govt cusip","PX_BID") ->  | F36: =_xll.BDP($A36 & "govt cusip","PX_ASK") ->  | G36: =_xll.BDP($A36 & "govt cusip",G$1) ->  | H36: =_xll.BDP($A36 & "govt cusip",H$1) ->  | I36: =_xll.BDP($A36 & "govt cusip",I$1) ->  | J36: =_xll.BDP($A36 & "govt cusip",J$1) ->  | K36: =_xll.BDP($A36 & "govt cusip",K$1) ->  | L36: =_xll.BDP($A36 & "govt cusip",L$1) ->  | M36: =_xll.BDP($A36 & "govt cusip",M$1) ->  | N36: =_xll.BDP($A36 & "govt cusip",N$1) -> 
A37: 912828GA2 | B37: =_xll.BDP($A37 & "govt cusip",B$1) ->  | C37: =_xll.BDP($A37 & "govt cusip",C$1) ->  | D37: =_xll.BDP($A37 & "govt cusip",D$1) ->  | E37: =_xll.BDP($A37 & "govt cusip","PX_BID") ->  | F37: =_xll.BDP($A37 & "govt cusip","PX_ASK") ->  | G37: =_xll.BDP($A37 & "govt cusip",G$1) ->  | H37: =_xll.BDP($A37 & "govt cusip",H$1) ->  | I37: =_xll.BDP($A37 & "govt cusip",I$1) ->  | J37: =_xll.BDP($A37 & "govt cusip",J$1) ->  | K37: =_xll.BDP($A37 & "govt cusip",K$1) ->  | L37: =_xll.BDP($A37 & "govt cusip",L$1) ->  | M37: =_xll.BDP($A37 & "govt cusip",M$1) ->  | N37: =_xll.BDP($A37 & "govt cusip",N$1) -> 
A38: 912828GC8 | B38: =_xll.BDP($A38 & "govt cusip",B$1) ->  | C38: =_xll.BDP($A38 & "govt cusip",C$1) ->  | D38: =_xll.BDP($A38 & "govt cusip",D$1) ->  | E38: =_xll.BDP($A38 & "govt cusip","PX_BID") ->  | F38: =_xll.BDP($A38 & "govt cusip","PX_ASK") ->  | G38: =_xll.BDP($A38 & "govt cusip",G$1) ->  | H38: =_xll.BDP($A38 & "govt cusip",H$1) ->  | I38: =_xll.BDP($A38 & "govt cusip",I$1) ->  | J38: =_xll.BDP($A38 & "govt cusip",J$1) ->  | K38: =_xll.BDP($A38 & "govt cusip",K$1) ->  | L38: =_xll.BDP($A38 & "govt cusip",L$1) ->  | M38: =_xll.BDP($A38 & "govt cusip",M$1) ->  | N38: =_xll.BDP($A38 & "govt cusip",N$1) -> 
A39: 912828GF1 | B39: =_xll.BDP($A39 & "govt cusip",B$1) ->  | C39: =_xll.BDP($A39 & "govt cusip",C$1) ->  | D39: =_xll.BDP($A39 & "govt cusip",D$1) ->  | E39: =_xll.BDP($A39 & "govt cusip","PX_BID") ->  | F39: =_xll.BDP($A39 & "govt cusip","PX_ASK") ->  | G39: =_xll.BDP($A39 & "govt cusip",G$1) ->  | H39: =_xll.BDP($A39 & "govt cusip",H$1) ->  | I39: =_xll.BDP($A39 & "govt cusip",I$1) ->  | J39: =_xll.BDP($A39 & "govt cusip",J$1) ->  | K39: =_xll.BDP($A39 & "govt cusip",K$1) ->  | L39: =_xll.BDP($A39 & "govt cusip",L$1) ->  | M39: =_xll.BDP($A39 & "govt cusip",M$1) ->  | N39: =_xll.BDP($A39 & "govt cusip",N$1) -> 
A40: 9128277L0 | B40: =_xll.BDP($A40 & "govt cusip",B$1) ->  | C40: =_xll.BDP($A40 & "govt cusip",C$1) ->  | D40: =_xll.BDP($A40 & "govt cusip",D$1) ->  | E40: =_xll.BDP($A40 & "govt cusip","PX_BID") ->  | F40: =_xll.BDP($A40 & "govt cusip","PX_ASK") ->  | G40: =_xll.BDP($A40 & "govt cusip",G$1) ->  | H40: =_xll.BDP($A40 & "govt cusip",H$1) ->  | I40: =_xll.BDP($A40 & "govt cusip",I$1) ->  | J40: =_xll.BDP($A40 & "govt cusip",J$1) ->  | K40: =_xll.BDP($A40 & "govt cusip",K$1) ->  | L40: =_xll.BDP($A40 & "govt cusip",L$1) ->  | M40: =_xll.BDP($A40 & "govt cusip",M$1) ->  | N40: =_xll.BDP($A40 & "govt cusip",N$1) -> 
A41: 912828GK0 | B41: =_xll.BDP($A41 & "govt cusip",B$1) ->  | C41: =_xll.BDP($A41 & "govt cusip",C$1) ->  | D41: =_xll.BDP($A41 & "govt cusip",D$1) ->  | E41: =_xll.BDP($A41 & "govt cusip","PX_BID") ->  | F41: =_xll.BDP($A41 & "govt cusip","PX_ASK") ->  | G41: =_xll.BDP($A41 & "govt cusip",G$1) ->  | H41: =_xll.BDP($A41 & "govt cusip",H$1) ->  | I41: =_xll.BDP($A41 & "govt cusip",I$1) ->  | J41: =_xll.BDP($A41 & "govt cusip",J$1) ->  | K41: =_xll.BDP($A41 & "govt cusip",K$1) ->  | L41: =_xll.BDP($A41 & "govt cusip",L$1) ->  | M41: =_xll.BDP($A41 & "govt cusip",M$1) ->  | N41: =_xll.BDP($A41 & "govt cusip",N$1) -> 
A42: 912828GM6 | B42: =_xll.BDP($A42 & "govt cusip",B$1) ->  | C42: =_xll.BDP($A42 & "govt cusip",C$1) ->  | D42: =_xll.BDP($A42 & "govt cusip",D$1) ->  | E42: =_xll.BDP($A42 & "govt cusip","PX_BID") ->  | F42: =_xll.BDP($A42 & "govt cusip","PX_ASK") ->  | G42: =_xll.BDP($A42 & "govt cusip",G$1) ->  | H42: =_xll.BDP($A42 & "govt cusip",H$1) ->  | I42: =_xll.BDP($A42 & "govt cusip",I$1) ->  | J42: =_xll.BDP($A42 & "govt cusip",J$1) ->  | K42: =_xll.BDP($A42 & "govt cusip",K$1) ->  | L42: =_xll.BDP($A42 & "govt cusip",L$1) ->  | M42: =_xll.BDP($A42 & "govt cusip",M$1) ->  | N42: =_xll.BDP($A42 & "govt cusip",N$1) -> 
A43: 912828GQ7 | B43: =_xll.BDP($A43 & "govt cusip",B$1) ->  | C43: =_xll.BDP($A43 & "govt cusip",C$1) ->  | D43: =_xll.BDP($A43 & "govt cusip",D$1) ->  | E43: =_xll.BDP($A43 & "govt cusip","PX_BID") ->  | F43: =_xll.BDP($A43 & "govt cusip","PX_ASK") ->  | G43: =_xll.BDP($A43 & "govt cusip",G$1) ->  | H43: =_xll.BDP($A43 & "govt cusip",H$1) ->  | I43: =_xll.BDP($A43 & "govt cusip",I$1) ->  | J43: =_xll.BDP($A43 & "govt cusip",J$1) ->  | K43: =_xll.BDP($A43 & "govt cusip",K$1) ->  | L43: =_xll.BDP($A43 & "govt cusip",L$1) ->  | M43: =_xll.BDP($A43 & "govt cusip",M$1) ->  | N43: =_xll.BDP($A43 & "govt cusip",N$1) -> 
A44: 912828GU8 | B44: =_xll.BDP($A44 & "govt cusip",B$1) ->  | C44: =_xll.BDP($A44 & "govt cusip",C$1) ->  | D44: =_xll.BDP($A44 & "govt cusip",D$1) ->  | E44: =_xll.BDP($A44 & "govt cusip","PX_BID") ->  | F44: =_xll.BDP($A44 & "govt cusip","PX_ASK") ->  | G44: =_xll.BDP($A44 & "govt cusip",G$1) ->  | H44: =_xll.BDP($A44 & "govt cusip",H$1) ->  | I44: =_xll.BDP($A44 & "govt cusip",I$1) ->  | J44: =_xll.BDP($A44 & "govt cusip",J$1) ->  | K44: =_xll.BDP($A44 & "govt cusip",K$1) ->  | L44: =_xll.BDP($A44 & "govt cusip",L$1) ->  | M44: =_xll.BDP($A44 & "govt cusip",M$1) ->  | N44: =_xll.BDP($A44 & "govt cusip",N$1) -> 
A45: 912828GW4 | B45: =_xll.BDP($A45 & "govt cusip",B$1) ->  | C45: =_xll.BDP($A45 & "govt cusip",C$1) ->  | D45: =_xll.BDP($A45 & "govt cusip",D$1) ->  | E45: =_xll.BDP($A45 & "govt cusip","PX_BID") ->  | F45: =_xll.BDP($A45 & "govt cusip","PX_ASK") ->  | G45: =_xll.BDP($A45 & "govt cusip",G$1) ->  | H45: =_xll.BDP($A45 & "govt cusip",H$1) ->  | I45: =_xll.BDP($A45 & "govt cusip",I$1) ->  | J45: =_xll.BDP($A45 & "govt cusip",J$1) ->  | K45: =_xll.BDP($A45 & "govt cusip",K$1) ->  | L45: =_xll.BDP($A45 & "govt cusip",L$1) ->  | M45: =_xll.BDP($A45 & "govt cusip",M$1) ->  | N45: =_xll.BDP($A45 & "govt cusip",N$1) -> 
A46: 912828GZ7 | B46: =_xll.BDP($A46 & "govt cusip",B$1) ->  | C46: =_xll.BDP($A46 & "govt cusip",C$1) ->  | D46: =_xll.BDP($A46 & "govt cusip",D$1) ->  | E46: =_xll.BDP($A46 & "govt cusip","PX_BID") ->  | F46: =_xll.BDP($A46 & "govt cusip","PX_ASK") ->  | G46: =_xll.BDP($A46 & "govt cusip",G$1) ->  | H46: =_xll.BDP($A46 & "govt cusip",H$1) ->  | I46: =_xll.BDP($A46 & "govt cusip",I$1) ->  | J46: =_xll.BDP($A46 & "govt cusip",J$1) ->  | K46: =_xll.BDP($A46 & "govt cusip",K$1) ->  | L46: =_xll.BDP($A46 & "govt cusip",L$1) ->  | M46: =_xll.BDP($A46 & "govt cusip",M$1) ->  | N46: =_xll.BDP($A46 & "govt cusip",N$1) -> 
A47: 912828AJ9 | B47: =_xll.BDP($A47 & "govt cusip",B$1) ->  | C47: =_xll.BDP($A47 & "govt cusip",C$1) ->  | D47: =_xll.BDP($A47 & "govt cusip",D$1) ->  | E47: =_xll.BDP($A47 & "govt cusip","PX_BID") ->  | F47: =_xll.BDP($A47 & "govt cusip","PX_ASK") ->  | G47: =_xll.BDP($A47 & "govt cusip",G$1) ->  | H47: =_xll.BDP($A47 & "govt cusip",H$1) ->  | I47: =_xll.BDP($A47 & "govt cusip",I$1) ->  | J47: =_xll.BDP($A47 & "govt cusip",J$1) ->  | K47: =_xll.BDP($A47 & "govt cusip",K$1) ->  | L47: =_xll.BDP($A47 & "govt cusip",L$1) ->  | M47: =_xll.BDP($A47 & "govt cusip",M$1) ->  | N47: =_xll.BDP($A47 & "govt cusip",N$1) -> 
A48: 912828HC7 | B48: =_xll.BDP($A48 & "govt cusip",B$1) ->  | C48: =_xll.BDP($A48 & "govt cusip",C$1) ->  | D48: =_xll.BDP($A48 & "govt cusip",D$1) ->  | E48: =_xll.BDP($A48 & "govt cusip","PX_BID") ->  | F48: =_xll.BDP($A48 & "govt cusip","PX_ASK") ->  | G48: =_xll.BDP($A48 & "govt cusip",G$1) ->  | H48: =_xll.BDP($A48 & "govt cusip",H$1) ->  | I48: =_xll.BDP($A48 & "govt cusip",I$1) ->  | J48: =_xll.BDP($A48 & "govt cusip",J$1) ->  | K48: =_xll.BDP($A48 & "govt cusip",K$1) ->  | L48: =_xll.BDP($A48 & "govt cusip",L$1) ->  | M48: =_xll.BDP($A48 & "govt cusip",M$1) ->  | N48: =_xll.BDP($A48 & "govt cusip",N$1) -> 
A49: 912828HE3 | B49: =_xll.BDP($A49 & "govt cusip",B$1) ->  | C49: =_xll.BDP($A49 & "govt cusip",C$1) ->  | D49: =_xll.BDP($A49 & "govt cusip",D$1) ->  | E49: =_xll.BDP($A49 & "govt cusip","PX_BID") ->  | F49: =_xll.BDP($A49 & "govt cusip","PX_ASK") ->  | G49: =_xll.BDP($A49 & "govt cusip",G$1) ->  | H49: =_xll.BDP($A49 & "govt cusip",H$1) ->  | I49: =_xll.BDP($A49 & "govt cusip",I$1) ->  | J49: =_xll.BDP($A49 & "govt cusip",J$1) ->  | K49: =_xll.BDP($A49 & "govt cusip",K$1) ->  | L49: =_xll.BDP($A49 & "govt cusip",L$1) ->  | M49: =_xll.BDP($A49 & "govt cusip",M$1) ->  | N49: =_xll.BDP($A49 & "govt cusip",N$1) -> 
A50: 912828HG8 | B50: =_xll.BDP($A50 & "govt cusip",B$1) ->  | C50: =_xll.BDP($A50 & "govt cusip",C$1) ->  | D50: =_xll.BDP($A50 & "govt cusip",D$1) ->  | E50: =_xll.BDP($A50 & "govt cusip","PX_BID") ->  | F50: =_xll.BDP($A50 & "govt cusip","PX_ASK") ->  | G50: =_xll.BDP($A50 & "govt cusip",G$1) ->  | H50: =_xll.BDP($A50 & "govt cusip",H$1) ->  | I50: =_xll.BDP($A50 & "govt cusip",I$1) ->  | J50: =_xll.BDP($A50 & "govt cusip",J$1) ->  | K50: =_xll.BDP($A50 & "govt cusip",K$1) ->  | L50: =_xll.BDP($A50 & "govt cusip",L$1) ->  | M50: =_xll.BDP($A50 & "govt cusip",M$1) ->  | N50: =_xll.BDP($A50 & "govt cusip",N$1) -> 
A51: 912828AP5 | B51: =_xll.BDP($A51 & "govt cusip",B$1) ->  | C51: =_xll.BDP($A51 & "govt cusip",C$1) ->  | D51: =_xll.BDP($A51 & "govt cusip",D$1) ->  | E51: =_xll.BDP($A51 & "govt cusip","PX_BID") ->  | F51: =_xll.BDP($A51 & "govt cusip","PX_ASK") ->  | G51: =_xll.BDP($A51 & "govt cusip",G$1) ->  | H51: =_xll.BDP($A51 & "govt cusip",H$1) ->  | I51: =_xll.BDP($A51 & "govt cusip",I$1) ->  | J51: =_xll.BDP($A51 & "govt cusip",J$1) ->  | K51: =_xll.BDP($A51 & "govt cusip",K$1) ->  | L51: =_xll.BDP($A51 & "govt cusip",L$1) ->  | M51: =_xll.BDP($A51 & "govt cusip",M$1) ->  | N51: =_xll.BDP($A51 & "govt cusip",N$1) -> 
A52: 912828HK9 | B52: =_xll.BDP($A52 & "govt cusip",B$1) ->  | C52: =_xll.BDP($A52 & "govt cusip",C$1) ->  | D52: =_xll.BDP($A52 & "govt cusip",D$1) ->  | E52: =_xll.BDP($A52 & "govt cusip","PX_BID") ->  | F52: =_xll.BDP($A52 & "govt cusip","PX_ASK") ->  | G52: =_xll.BDP($A52 & "govt cusip",G$1) ->  | H52: =_xll.BDP($A52 & "govt cusip",H$1) ->  | I52: =_xll.BDP($A52 & "govt cusip",I$1) ->  | J52: =_xll.BDP($A52 & "govt cusip",J$1) ->  | K52: =_xll.BDP($A52 & "govt cusip",K$1) ->  | L52: =_xll.BDP($A52 & "govt cusip",L$1) ->  | M52: =_xll.BDP($A52 & "govt cusip",M$1) ->  | N52: =_xll.BDP($A52 & "govt cusip",N$1) -> 
A53: 912828HM5 | B53: =_xll.BDP($A53 & "govt cusip",B$1) ->  | C53: =_xll.BDP($A53 & "govt cusip",C$1) ->  | D53: =_xll.BDP($A53 & "govt cusip",D$1) ->  | E53: =_xll.BDP($A53 & "govt cusip","PX_BID") ->  | F53: =_xll.BDP($A53 & "govt cusip","PX_ASK") ->  | G53: =_xll.BDP($A53 & "govt cusip",G$1) ->  | H53: =_xll.BDP($A53 & "govt cusip",H$1) ->  | I53: =_xll.BDP($A53 & "govt cusip",I$1) ->  | J53: =_xll.BDP($A53 & "govt cusip",J$1) ->  | K53: =_xll.BDP($A53 & "govt cusip",K$1) ->  | L53: =_xll.BDP($A53 & "govt cusip",L$1) ->  | M53: =_xll.BDP($A53 & "govt cusip",M$1) ->  | N53: =_xll.BDP($A53 & "govt cusip",N$1) -> 
A54: 912828HQ6 | B54: =_xll.BDP($A54 & "govt cusip",B$1) ->  | C54: =_xll.BDP($A54 & "govt cusip",C$1) ->  | D54: =_xll.BDP($A54 & "govt cusip",D$1) ->  | E54: =_xll.BDP($A54 & "govt cusip","PX_BID") ->  | F54: =_xll.BDP($A54 & "govt cusip","PX_ASK") ->  | G54: =_xll.BDP($A54 & "govt cusip",G$1) ->  | H54: =_xll.BDP($A54 & "govt cusip",H$1) ->  | I54: =_xll.BDP($A54 & "govt cusip",I$1) ->  | J54: =_xll.BDP($A54 & "govt cusip",J$1) ->  | K54: =_xll.BDP($A54 & "govt cusip",K$1) ->  | L54: =_xll.BDP($A54 & "govt cusip",L$1) ->  | M54: =_xll.BDP($A54 & "govt cusip",M$1) ->  | N54: =_xll.BDP($A54 & "govt cusip",N$1) -> 
A55: 912828AU4 | B55: =_xll.BDP($A55 & "govt cusip",B$1) ->  | C55: =_xll.BDP($A55 & "govt cusip",C$1) ->  | D55: =_xll.BDP($A55 & "govt cusip",D$1) ->  | E55: =_xll.BDP($A55 & "govt cusip","PX_BID") ->  | F55: =_xll.BDP($A55 & "govt cusip","PX_ASK") ->  | G55: =_xll.BDP($A55 & "govt cusip",G$1) ->  | H55: =_xll.BDP($A55 & "govt cusip",H$1) ->  | I55: =_xll.BDP($A55 & "govt cusip",I$1) ->  | J55: =_xll.BDP($A55 & "govt cusip",J$1) ->  | K55: =_xll.BDP($A55 & "govt cusip",K$1) ->  | L55: =_xll.BDP($A55 & "govt cusip",L$1) ->  | M55: =_xll.BDP($A55 & "govt cusip",M$1) ->  | N55: =_xll.BDP($A55 & "govt cusip",N$1) -> 
A56: 912828HT0 | B56: =_xll.BDP($A56 & "govt cusip",B$1) ->  | C56: =_xll.BDP($A56 & "govt cusip",C$1) ->  | D56: =_xll.BDP($A56 & "govt cusip",D$1) ->  | E56: =_xll.BDP($A56 & "govt cusip","PX_BID") ->  | F56: =_xll.BDP($A56 & "govt cusip","PX_ASK") ->  | G56: =_xll.BDP($A56 & "govt cusip",G$1) ->  | H56: =_xll.BDP($A56 & "govt cusip",H$1) ->  | I56: =_xll.BDP($A56 & "govt cusip",I$1) ->  | J56: =_xll.BDP($A56 & "govt cusip",J$1) ->  | K56: =_xll.BDP($A56 & "govt cusip",K$1) ->  | L56: =_xll.BDP($A56 & "govt cusip",L$1) ->  | M56: =_xll.BDP($A56 & "govt cusip",M$1) ->  | N56: =_xll.BDP($A56 & "govt cusip",N$1) -> 
A57: 912828HV5 | B57: =_xll.BDP($A57 & "govt cusip",B$1) ->  | C57: =_xll.BDP($A57 & "govt cusip",C$1) ->  | D57: =_xll.BDP($A57 & "govt cusip",D$1) ->  | E57: =_xll.BDP($A57 & "govt cusip","PX_BID") ->  | F57: =_xll.BDP($A57 & "govt cusip","PX_ASK") ->  | G57: =_xll.BDP($A57 & "govt cusip",G$1) ->  | H57: =_xll.BDP($A57 & "govt cusip",H$1) ->  | I57: =_xll.BDP($A57 & "govt cusip",I$1) ->  | J57: =_xll.BDP($A57 & "govt cusip",J$1) ->  | K57: =_xll.BDP($A57 & "govt cusip",K$1) ->  | L57: =_xll.BDP($A57 & "govt cusip",L$1) ->  | M57: =_xll.BDP($A57 & "govt cusip",M$1) ->  | N57: =_xll.BDP($A57 & "govt cusip",N$1) -> 
A58: 912828HY9 | B58: =_xll.BDP($A58 & "govt cusip",B$1) ->  | C58: =_xll.BDP($A58 & "govt cusip",C$1) ->  | D58: =_xll.BDP($A58 & "govt cusip",D$1) ->  | E58: =_xll.BDP($A58 & "govt cusip","PX_BID") ->  | F58: =_xll.BDP($A58 & "govt cusip","PX_ASK") ->  | G58: =_xll.BDP($A58 & "govt cusip",G$1) ->  | H58: =_xll.BDP($A58 & "govt cusip",H$1) ->  | I58: =_xll.BDP($A58 & "govt cusip",I$1) ->  | J58: =_xll.BDP($A58 & "govt cusip",J$1) ->  | K58: =_xll.BDP($A58 & "govt cusip",K$1) ->  | L58: =_xll.BDP($A58 & "govt cusip",L$1) ->  | M58: =_xll.BDP($A58 & "govt cusip",M$1) ->  | N58: =_xll.BDP($A58 & "govt cusip",N$1) -> 
A59: 912828BA7 | B59: =_xll.BDP($A59 & "govt cusip",B$1) ->  | C59: =_xll.BDP($A59 & "govt cusip",C$1) ->  | D59: =_xll.BDP($A59 & "govt cusip",D$1) ->  | E59: =_xll.BDP($A59 & "govt cusip","PX_BID") ->  | F59: =_xll.BDP($A59 & "govt cusip","PX_ASK") ->  | G59: =_xll.BDP($A59 & "govt cusip",G$1) ->  | H59: =_xll.BDP($A59 & "govt cusip",H$1) ->  | I59: =_xll.BDP($A59 & "govt cusip",I$1) ->  | J59: =_xll.BDP($A59 & "govt cusip",J$1) ->  | K59: =_xll.BDP($A59 & "govt cusip",K$1) ->  | L59: =_xll.BDP($A59 & "govt cusip",L$1) ->  | M59: =_xll.BDP($A59 & "govt cusip",M$1) ->  | N59: =_xll.BDP($A59 & "govt cusip",N$1) -> 
A60: 912828JB7 | B60: =_xll.BDP($A60 & "govt cusip",B$1) ->  | C60: =_xll.BDP($A60 & "govt cusip",C$1) ->  | D60: =_xll.BDP($A60 & "govt cusip",D$1) ->  | E60: =_xll.BDP($A60 & "govt cusip","PX_BID") ->  | F60: =_xll.BDP($A60 & "govt cusip","PX_ASK") ->  | G60: =_xll.BDP($A60 & "govt cusip",G$1) ->  | H60: =_xll.BDP($A60 & "govt cusip",H$1) ->  | I60: =_xll.BDP($A60 & "govt cusip",I$1) ->  | J60: =_xll.BDP($A60 & "govt cusip",J$1) ->  | K60: =_xll.BDP($A60 & "govt cusip",K$1) ->  | L60: =_xll.BDP($A60 & "govt cusip",L$1) ->  | M60: =_xll.BDP($A60 & "govt cusip",M$1) ->  | N60: =_xll.BDP($A60 & "govt cusip",N$1) -> 
A61: 912828JD3 | B61: =_xll.BDP($A61 & "govt cusip",B$1) ->  | C61: =_xll.BDP($A61 & "govt cusip",C$1) ->  | D61: =_xll.BDP($A61 & "govt cusip",D$1) ->  | E61: =_xll.BDP($A61 & "govt cusip","PX_BID") ->  | F61: =_xll.BDP($A61 & "govt cusip","PX_ASK") ->  | G61: =_xll.BDP($A61 & "govt cusip",G$1) ->  | H61: =_xll.BDP($A61 & "govt cusip",H$1) ->  | I61: =_xll.BDP($A61 & "govt cusip",I$1) ->  | J61: =_xll.BDP($A61 & "govt cusip",J$1) ->  | K61: =_xll.BDP($A61 & "govt cusip",K$1) ->  | L61: =_xll.BDP($A61 & "govt cusip",L$1) ->  | M61: =_xll.BDP($A61 & "govt cusip",M$1) ->  | N61: =_xll.BDP($A61 & "govt cusip",N$1) -> 
A62: 912828BH2 | B62: =_xll.BDP($A62 & "govt cusip",B$1) ->  | C62: =_xll.BDP($A62 & "govt cusip",C$1) ->  | D62: =_xll.BDP($A62 & "govt cusip",D$1) ->  | E62: =_xll.BDP($A62 & "govt cusip","PX_BID") ->  | F62: =_xll.BDP($A62 & "govt cusip","PX_ASK") ->  | G62: =_xll.BDP($A62 & "govt cusip",G$1) ->  | H62: =_xll.BDP($A62 & "govt cusip",H$1) ->  | I62: =_xll.BDP($A62 & "govt cusip",I$1) ->  | J62: =_xll.BDP($A62 & "govt cusip",J$1) ->  | K62: =_xll.BDP($A62 & "govt cusip",K$1) ->  | L62: =_xll.BDP($A62 & "govt cusip",L$1) ->  | M62: =_xll.BDP($A62 & "govt cusip",M$1) ->  | N62: =_xll.BDP($A62 & "govt cusip",N$1) -> 
A63: 912828BR0 | B63: =_xll.BDP($A63 & "govt cusip",B$1) ->  | C63: =_xll.BDP($A63 & "govt cusip",C$1) ->  | D63: =_xll.BDP($A63 & "govt cusip",D$1) ->  | E63: =_xll.BDP($A63 & "govt cusip","PX_BID") ->  | F63: =_xll.BDP($A63 & "govt cusip","PX_ASK") ->  | G63: =_xll.BDP($A63 & "govt cusip",G$1) ->  | H63: =_xll.BDP($A63 & "govt cusip",H$1) ->  | I63: =_xll.BDP($A63 & "govt cusip",I$1) ->  | J63: =_xll.BDP($A63 & "govt cusip",J$1) ->  | K63: =_xll.BDP($A63 & "govt cusip",K$1) ->  | L63: =_xll.BDP($A63 & "govt cusip",L$1) ->  | M63: =_xll.BDP($A63 & "govt cusip",M$1) ->  | N63: =_xll.BDP($A63 & "govt cusip",N$1) -> 
A64: 912828CA6 | B64: =_xll.BDP($A64 & "govt cusip",B$1) ->  | C64: =_xll.BDP($A64 & "govt cusip",C$1) ->  | D64: =_xll.BDP($A64 & "govt cusip",D$1) ->  | E64: =_xll.BDP($A64 & "govt cusip","PX_BID") ->  | F64: =_xll.BDP($A64 & "govt cusip","PX_ASK") ->  | G64: =_xll.BDP($A64 & "govt cusip",G$1) ->  | H64: =_xll.BDP($A64 & "govt cusip",H$1) ->  | I64: =_xll.BDP($A64 & "govt cusip",I$1) ->  | J64: =_xll.BDP($A64 & "govt cusip",J$1) ->  | K64: =_xll.BDP($A64 & "govt cusip",K$1) ->  | L64: =_xll.BDP($A64 & "govt cusip",L$1) ->  | M64: =_xll.BDP($A64 & "govt cusip",M$1) ->  | N64: =_xll.BDP($A64 & "govt cusip",N$1) -> 
A65: 912828CJ7 | B65: =_xll.BDP($A65 & "govt cusip",B$1) ->  | C65: =_xll.BDP($A65 & "govt cusip",C$1) ->  | D65: =_xll.BDP($A65 & "govt cusip",D$1) ->  | E65: =_xll.BDP($A65 & "govt cusip","PX_BID") ->  | F65: =_xll.BDP($A65 & "govt cusip","PX_ASK") ->  | G65: =_xll.BDP($A65 & "govt cusip",G$1) ->  | H65: =_xll.BDP($A65 & "govt cusip",H$1) ->  | I65: =_xll.BDP($A65 & "govt cusip",I$1) ->  | J65: =_xll.BDP($A65 & "govt cusip",J$1) ->  | K65: =_xll.BDP($A65 & "govt cusip",K$1) ->  | L65: =_xll.BDP($A65 & "govt cusip",L$1) ->  | M65: =_xll.BDP($A65 & "govt cusip",M$1) ->  | N65: =_xll.BDP($A65 & "govt cusip",N$1) -> 
A66: 912828CT5 | B66: =_xll.BDP($A66 & "govt cusip",B$1) ->  | C66: =_xll.BDP($A66 & "govt cusip",C$1) ->  | D66: =_xll.BDP($A66 & "govt cusip",D$1) ->  | E66: =_xll.BDP($A66 & "govt cusip","PX_BID") ->  | F66: =_xll.BDP($A66 & "govt cusip","PX_ASK") ->  | G66: =_xll.BDP($A66 & "govt cusip",G$1) ->  | H66: =_xll.BDP($A66 & "govt cusip",H$1) ->  | I66: =_xll.BDP($A66 & "govt cusip",I$1) ->  | J66: =_xll.BDP($A66 & "govt cusip",J$1) ->  | K66: =_xll.BDP($A66 & "govt cusip",K$1) ->  | L66: =_xll.BDP($A66 & "govt cusip",L$1) ->  | M66: =_xll.BDP($A66 & "govt cusip",M$1) ->  | N66: =_xll.BDP($A66 & "govt cusip",N$1) -> 
A67: 912828DC1 | B67: =_xll.BDP($A67 & "govt cusip",B$1) ->  | C67: =_xll.BDP($A67 & "govt cusip",C$1) ->  | D67: =_xll.BDP($A67 & "govt cusip",D$1) ->  | E67: =_xll.BDP($A67 & "govt cusip","PX_BID") ->  | F67: =_xll.BDP($A67 & "govt cusip","PX_ASK") ->  | G67: =_xll.BDP($A67 & "govt cusip",G$1) ->  | H67: =_xll.BDP($A67 & "govt cusip",H$1) ->  | I67: =_xll.BDP($A67 & "govt cusip",I$1) ->  | J67: =_xll.BDP($A67 & "govt cusip",J$1) ->  | K67: =_xll.BDP($A67 & "govt cusip",K$1) ->  | L67: =_xll.BDP($A67 & "govt cusip",L$1) ->  | M67: =_xll.BDP($A67 & "govt cusip",M$1) ->  | N67: =_xll.BDP($A67 & "govt cusip",N$1) -> 
A68: 912828DM9 | B68: =_xll.BDP($A68 & "govt cusip",B$1) ->  | C68: =_xll.BDP($A68 & "govt cusip",C$1) ->  | D68: =_xll.BDP($A68 & "govt cusip",D$1) ->  | E68: =_xll.BDP($A68 & "govt cusip","PX_BID") ->  | F68: =_xll.BDP($A68 & "govt cusip","PX_ASK") ->  | G68: =_xll.BDP($A68 & "govt cusip",G$1) ->  | H68: =_xll.BDP($A68 & "govt cusip",H$1) ->  | I68: =_xll.BDP($A68 & "govt cusip",I$1) ->  | J68: =_xll.BDP($A68 & "govt cusip",J$1) ->  | K68: =_xll.BDP($A68 & "govt cusip",K$1) ->  | L68: =_xll.BDP($A68 & "govt cusip",L$1) ->  | M68: =_xll.BDP($A68 & "govt cusip",M$1) ->  | N68: =_xll.BDP($A68 & "govt cusip",N$1) -> 
A69: 912828DV9 | B69: =_xll.BDP($A69 & "govt cusip",B$1) ->  | C69: =_xll.BDP($A69 & "govt cusip",C$1) ->  | D69: =_xll.BDP($A69 & "govt cusip",D$1) ->  | E69: =_xll.BDP($A69 & "govt cusip","PX_BID") ->  | F69: =_xll.BDP($A69 & "govt cusip","PX_ASK") ->  | G69: =_xll.BDP($A69 & "govt cusip",G$1) ->  | H69: =_xll.BDP($A69 & "govt cusip",H$1) ->  | I69: =_xll.BDP($A69 & "govt cusip",I$1) ->  | J69: =_xll.BDP($A69 & "govt cusip",J$1) ->  | K69: =_xll.BDP($A69 & "govt cusip",K$1) ->  | L69: =_xll.BDP($A69 & "govt cusip",L$1) ->  | M69: =_xll.BDP($A69 & "govt cusip",M$1) ->  | N69: =_xll.BDP($A69 & "govt cusip",N$1) -> 
A70: 912828EE6 | B70: =_xll.BDP($A70 & "govt cusip",B$1) ->  | C70: =_xll.BDP($A70 & "govt cusip",C$1) ->  | D70: =_xll.BDP($A70 & "govt cusip",D$1) ->  | E70: =_xll.BDP($A70 & "govt cusip","PX_BID") ->  | F70: =_xll.BDP($A70 & "govt cusip","PX_ASK") ->  | G70: =_xll.BDP($A70 & "govt cusip",G$1) ->  | H70: =_xll.BDP($A70 & "govt cusip",H$1) ->  | I70: =_xll.BDP($A70 & "govt cusip",I$1) ->  | J70: =_xll.BDP($A70 & "govt cusip",J$1) ->  | K70: =_xll.BDP($A70 & "govt cusip",K$1) ->  | L70: =_xll.BDP($A70 & "govt cusip",L$1) ->  | M70: =_xll.BDP($A70 & "govt cusip",M$1) ->  | N70: =_xll.BDP($A70 & "govt cusip",N$1) -> 
A71: 912828EN6 | B71: =_xll.BDP($A71 & "govt cusip",B$1) ->  | C71: =_xll.BDP($A71 & "govt cusip",C$1) ->  | D71: =_xll.BDP($A71 & "govt cusip",D$1) ->  | E71: =_xll.BDP($A71 & "govt cusip","PX_BID") ->  | F71: =_xll.BDP($A71 & "govt cusip","PX_ASK") ->  | G71: =_xll.BDP($A71 & "govt cusip",G$1) ->  | H71: =_xll.BDP($A71 & "govt cusip",H$1) ->  | I71: =_xll.BDP($A71 & "govt cusip",I$1) ->  | J71: =_xll.BDP($A71 & "govt cusip",J$1) ->  | K71: =_xll.BDP($A71 & "govt cusip",K$1) ->  | L71: =_xll.BDP($A71 & "govt cusip",L$1) ->  | M71: =_xll.BDP($A71 & "govt cusip",M$1) ->  | N71: =_xll.BDP($A71 & "govt cusip",N$1) -> 
A72: 912828EW6 | B72: =_xll.BDP($A72 & "govt cusip",B$1) ->  | C72: =_xll.BDP($A72 & "govt cusip",C$1) ->  | D72: =_xll.BDP($A72 & "govt cusip",D$1) ->  | E72: =_xll.BDP($A72 & "govt cusip","PX_BID") ->  | F72: =_xll.BDP($A72 & "govt cusip","PX_ASK") ->  | G72: =_xll.BDP($A72 & "govt cusip",G$1) ->  | H72: =_xll.BDP($A72 & "govt cusip",H$1) ->  | I72: =_xll.BDP($A72 & "govt cusip",I$1) ->  | J72: =_xll.BDP($A72 & "govt cusip",J$1) ->  | K72: =_xll.BDP($A72 & "govt cusip",K$1) ->  | L72: =_xll.BDP($A72 & "govt cusip",L$1) ->  | M72: =_xll.BDP($A72 & "govt cusip",M$1) ->  | N72: =_xll.BDP($A72 & "govt cusip",N$1) -> 
A73: 912828FF2 | B73: =_xll.BDP($A73 & "govt cusip",B$1) ->  | C73: =_xll.BDP($A73 & "govt cusip",C$1) ->  | D73: =_xll.BDP($A73 & "govt cusip",D$1) ->  | E73: =_xll.BDP($A73 & "govt cusip","PX_BID") ->  | F73: =_xll.BDP($A73 & "govt cusip","PX_ASK") ->  | G73: =_xll.BDP($A73 & "govt cusip",G$1) ->  | H73: =_xll.BDP($A73 & "govt cusip",H$1) ->  | I73: =_xll.BDP($A73 & "govt cusip",I$1) ->  | J73: =_xll.BDP($A73 & "govt cusip",J$1) ->  | K73: =_xll.BDP($A73 & "govt cusip",K$1) ->  | L73: =_xll.BDP($A73 & "govt cusip",L$1) ->  | M73: =_xll.BDP($A73 & "govt cusip",M$1) ->  | N73: =_xll.BDP($A73 & "govt cusip",N$1) -> 
A74: 912828FQ8 | B74: =_xll.BDP($A74 & "govt cusip",B$1) ->  | C74: =_xll.BDP($A74 & "govt cusip",C$1) ->  | D74: =_xll.BDP($A74 & "govt cusip",D$1) ->  | E74: =_xll.BDP($A74 & "govt cusip","PX_BID") ->  | F74: =_xll.BDP($A74 & "govt cusip","PX_ASK") ->  | G74: =_xll.BDP($A74 & "govt cusip",G$1) ->  | H74: =_xll.BDP($A74 & "govt cusip",H$1) ->  | I74: =_xll.BDP($A74 & "govt cusip",I$1) ->  | J74: =_xll.BDP($A74 & "govt cusip",J$1) ->  | K74: =_xll.BDP($A74 & "govt cusip",K$1) ->  | L74: =_xll.BDP($A74 & "govt cusip",L$1) ->  | M74: =_xll.BDP($A74 & "govt cusip",M$1) ->  | N74: =_xll.BDP($A74 & "govt cusip",N$1) -> 
A75: 912828FY1 | B75: =_xll.BDP($A75 & "govt cusip",B$1) ->  | C75: =_xll.BDP($A75 & "govt cusip",C$1) ->  | D75: =_xll.BDP($A75 & "govt cusip",D$1) ->  | E75: =_xll.BDP($A75 & "govt cusip","PX_BID") ->  | F75: =_xll.BDP($A75 & "govt cusip","PX_ASK") ->  | G75: =_xll.BDP($A75 & "govt cusip",G$1) ->  | H75: =_xll.BDP($A75 & "govt cusip",H$1) ->  | I75: =_xll.BDP($A75 & "govt cusip",I$1) ->  | J75: =_xll.BDP($A75 & "govt cusip",J$1) ->  | K75: =_xll.BDP($A75 & "govt cusip",K$1) ->  | L75: =_xll.BDP($A75 & "govt cusip",L$1) ->  | M75: =_xll.BDP($A75 & "govt cusip",M$1) ->  | N75: =_xll.BDP($A75 & "govt cusip",N$1) -> 
A76: 912828GH7 | B76: =_xll.BDP($A76 & "govt cusip",B$1) ->  | C76: =_xll.BDP($A76 & "govt cusip",C$1) ->  | D76: =_xll.BDP($A76 & "govt cusip",D$1) ->  | E76: =_xll.BDP($A76 & "govt cusip","PX_BID") ->  | F76: =_xll.BDP($A76 & "govt cusip","PX_ASK") ->  | G76: =_xll.BDP($A76 & "govt cusip",G$1) ->  | H76: =_xll.BDP($A76 & "govt cusip",H$1) ->  | I76: =_xll.BDP($A76 & "govt cusip",I$1) ->  | J76: =_xll.BDP($A76 & "govt cusip",J$1) ->  | K76: =_xll.BDP($A76 & "govt cusip",K$1) ->  | L76: =_xll.BDP($A76 & "govt cusip",L$1) ->  | M76: =_xll.BDP($A76 & "govt cusip",M$1) ->  | N76: =_xll.BDP($A76 & "govt cusip",N$1) -> 
A77: 912828GS3 | B77: =_xll.BDP($A77 & "govt cusip",B$1) ->  | C77: =_xll.BDP($A77 & "govt cusip",C$1) ->  | D77: =_xll.BDP($A77 & "govt cusip",D$1) ->  | E77: =_xll.BDP($A77 & "govt cusip","PX_BID") ->  | F77: =_xll.BDP($A77 & "govt cusip","PX_ASK") ->  | G77: =_xll.BDP($A77 & "govt cusip",G$1) ->  | H77: =_xll.BDP($A77 & "govt cusip",H$1) ->  | I77: =_xll.BDP($A77 & "govt cusip",I$1) ->  | J77: =_xll.BDP($A77 & "govt cusip",J$1) ->  | K77: =_xll.BDP($A77 & "govt cusip",K$1) ->  | L77: =_xll.BDP($A77 & "govt cusip",L$1) ->  | M77: =_xll.BDP($A77 & "govt cusip",M$1) ->  | N77: =_xll.BDP($A77 & "govt cusip",N$1) -> 
A78: 912828HA1 | B78: =_xll.BDP($A78 & "govt cusip",B$1) ->  | C78: =_xll.BDP($A78 & "govt cusip",C$1) ->  | D78: =_xll.BDP($A78 & "govt cusip",D$1) ->  | E78: =_xll.BDP($A78 & "govt cusip","PX_BID") ->  | F78: =_xll.BDP($A78 & "govt cusip","PX_ASK") ->  | G78: =_xll.BDP($A78 & "govt cusip",G$1) ->  | H78: =_xll.BDP($A78 & "govt cusip",H$1) ->  | I78: =_xll.BDP($A78 & "govt cusip",I$1) ->  | J78: =_xll.BDP($A78 & "govt cusip",J$1) ->  | K78: =_xll.BDP($A78 & "govt cusip",K$1) ->  | L78: =_xll.BDP($A78 & "govt cusip",L$1) ->  | M78: =_xll.BDP($A78 & "govt cusip",M$1) ->  | N78: =_xll.BDP($A78 & "govt cusip",N$1) -> 
A79: 912828HH6 | B79: =_xll.BDP($A79 & "govt cusip",B$1) ->  | C79: =_xll.BDP($A79 & "govt cusip",C$1) ->  | D79: =_xll.BDP($A79 & "govt cusip",D$1) ->  | E79: =_xll.BDP($A79 & "govt cusip","PX_BID") ->  | F79: =_xll.BDP($A79 & "govt cusip","PX_ASK") ->  | G79: =_xll.BDP($A79 & "govt cusip",G$1) ->  | H79: =_xll.BDP($A79 & "govt cusip",H$1) ->  | I79: =_xll.BDP($A79 & "govt cusip",I$1) ->  | J79: =_xll.BDP($A79 & "govt cusip",J$1) ->  | K79: =_xll.BDP($A79 & "govt cusip",K$1) ->  | L79: =_xll.BDP($A79 & "govt cusip",L$1) ->  | M79: =_xll.BDP($A79 & "govt cusip",M$1) ->  | N79: =_xll.BDP($A79 & "govt cusip",N$1) -> 
A80: 912828HR4 | B80: =_xll.BDP($A80 & "govt cusip",B$1) ->  | C80: =_xll.BDP($A80 & "govt cusip",C$1) ->  | D80: =_xll.BDP($A80 & "govt cusip",D$1) ->  | E80: =_xll.BDP($A80 & "govt cusip","PX_BID") ->  | F80: =_xll.BDP($A80 & "govt cusip","PX_ASK") ->  | G80: =_xll.BDP($A80 & "govt cusip",G$1) ->  | H80: =_xll.BDP($A80 & "govt cusip",H$1) ->  | I80: =_xll.BDP($A80 & "govt cusip",I$1) ->  | J80: =_xll.BDP($A80 & "govt cusip",J$1) ->  | K80: =_xll.BDP($A80 & "govt cusip",K$1) ->  | L80: =_xll.BDP($A80 & "govt cusip",L$1) ->  | M80: =_xll.BDP($A80 & "govt cusip",M$1) ->  | N80: =_xll.BDP($A80 & "govt cusip",N$1) -> 
A81: 912828HZ6 | B81: =_xll.BDP($A81 & "govt cusip",B$1) ->  | C81: =_xll.BDP($A81 & "govt cusip",C$1) ->  | D81: =_xll.BDP($A81 & "govt cusip",D$1) ->  | E81: =_xll.BDP($A81 & "govt cusip","PX_BID") ->  | F81: =_xll.BDP($A81 & "govt cusip","PX_ASK") ->  | G81: =_xll.BDP($A81 & "govt cusip",G$1) ->  | H81: =_xll.BDP($A81 & "govt cusip",H$1) ->  | I81: =_xll.BDP($A81 & "govt cusip",I$1) ->  | J81: =_xll.BDP($A81 & "govt cusip",J$1) ->  | K81: =_xll.BDP($A81 & "govt cusip",K$1) ->  | L81: =_xll.BDP($A81 & "govt cusip",L$1) ->  | M81: =_xll.BDP($A81 & "govt cusip",M$1) ->  | N81: =_xll.BDP($A81 & "govt cusip",N$1) -> 
A82: 912810DP0 | B82: =_xll.BDP($A82 & "govt cusip",B$1) ->  | C82: =_xll.BDP($A82 & "govt cusip",C$1) ->  | D82: =_xll.BDP($A82 & "govt cusip",D$1) ->  | E82: =_xll.BDP($A82 & "govt cusip","PX_BID") ->  | F82: =_xll.BDP($A82 & "govt cusip","PX_ASK") ->  | G82: =_xll.BDP($A82 & "govt cusip",G$1) ->  | H82: =_xll.BDP($A82 & "govt cusip",H$1) ->  | I82: =_xll.BDP($A82 & "govt cusip",I$1) ->  | J82: =_xll.BDP($A82 & "govt cusip",J$1) ->  | K82: =_xll.BDP($A82 & "govt cusip",K$1) ->  | L82: =_xll.BDP($A82 & "govt cusip",L$1) ->  | M82: =_xll.BDP($A82 & "govt cusip",M$1) ->  | N82: =_xll.BDP($A82 & "govt cusip",N$1) -> 
A83: 912810DS4 | B83: =_xll.BDP($A83 & "govt cusip",B$1) ->  | C83: =_xll.BDP($A83 & "govt cusip",C$1) ->  | D83: =_xll.BDP($A83 & "govt cusip",D$1) ->  | E83: =_xll.BDP($A83 & "govt cusip","PX_BID") ->  | F83: =_xll.BDP($A83 & "govt cusip","PX_ASK") ->  | G83: =_xll.BDP($A83 & "govt cusip",G$1) ->  | H83: =_xll.BDP($A83 & "govt cusip",H$1) ->  | I83: =_xll.BDP($A83 & "govt cusip",I$1) ->  | J83: =_xll.BDP($A83 & "govt cusip",J$1) ->  | K83: =_xll.BDP($A83 & "govt cusip",K$1) ->  | L83: =_xll.BDP($A83 & "govt cusip",L$1) ->  | M83: =_xll.BDP($A83 & "govt cusip",M$1) ->  | N83: =_xll.BDP($A83 & "govt cusip",N$1) -> 
A84: 912810DT2 | B84: =_xll.BDP($A84 & "govt cusip",B$1) ->  | C84: =_xll.BDP($A84 & "govt cusip",C$1) ->  | D84: =_xll.BDP($A84 & "govt cusip",D$1) ->  | E84: =_xll.BDP($A84 & "govt cusip","PX_BID") ->  | F84: =_xll.BDP($A84 & "govt cusip","PX_ASK") ->  | G84: =_xll.BDP($A84 & "govt cusip",G$1) ->  | H84: =_xll.BDP($A84 & "govt cusip",H$1) ->  | I84: =_xll.BDP($A84 & "govt cusip",I$1) ->  | J84: =_xll.BDP($A84 & "govt cusip",J$1) ->  | K84: =_xll.BDP($A84 & "govt cusip",K$1) ->  | L84: =_xll.BDP($A84 & "govt cusip",L$1) ->  | M84: =_xll.BDP($A84 & "govt cusip",M$1) ->  | N84: =_xll.BDP($A84 & "govt cusip",N$1) -> 
A85: 912810DV7 | B85: =_xll.BDP($A85 & "govt cusip",B$1) ->  | C85: =_xll.BDP($A85 & "govt cusip",C$1) ->  | D85: =_xll.BDP($A85 & "govt cusip",D$1) ->  | E85: =_xll.BDP($A85 & "govt cusip","PX_BID") ->  | F85: =_xll.BDP($A85 & "govt cusip","PX_ASK") ->  | G85: =_xll.BDP($A85 & "govt cusip",G$1) ->  | H85: =_xll.BDP($A85 & "govt cusip",H$1) ->  | I85: =_xll.BDP($A85 & "govt cusip",I$1) ->  | J85: =_xll.BDP($A85 & "govt cusip",J$1) ->  | K85: =_xll.BDP($A85 & "govt cusip",K$1) ->  | L85: =_xll.BDP($A85 & "govt cusip",L$1) ->  | M85: =_xll.BDP($A85 & "govt cusip",M$1) ->  | N85: =_xll.BDP($A85 & "govt cusip",N$1) -> 
A86: 912810DW5 | B86: =_xll.BDP($A86 & "govt cusip",B$1) ->  | C86: =_xll.BDP($A86 & "govt cusip",C$1) ->  | D86: =_xll.BDP($A86 & "govt cusip",D$1) ->  | E86: =_xll.BDP($A86 & "govt cusip","PX_BID") ->  | F86: =_xll.BDP($A86 & "govt cusip","PX_ASK") ->  | G86: =_xll.BDP($A86 & "govt cusip",G$1) ->  | H86: =_xll.BDP($A86 & "govt cusip",H$1) ->  | I86: =_xll.BDP($A86 & "govt cusip",I$1) ->  | J86: =_xll.BDP($A86 & "govt cusip",J$1) ->  | K86: =_xll.BDP($A86 & "govt cusip",K$1) ->  | L86: =_xll.BDP($A86 & "govt cusip",L$1) ->  | M86: =_xll.BDP($A86 & "govt cusip",M$1) ->  | N86: =_xll.BDP($A86 & "govt cusip",N$1) -> 
A87: 912810DX3 | B87: =_xll.BDP($A87 & "govt cusip",B$1) ->  | C87: =_xll.BDP($A87 & "govt cusip",C$1) ->  | D87: =_xll.BDP($A87 & "govt cusip",D$1) ->  | E87: =_xll.BDP($A87 & "govt cusip","PX_BID") ->  | F87: =_xll.BDP($A87 & "govt cusip","PX_ASK") ->  | G87: =_xll.BDP($A87 & "govt cusip",G$1) ->  | H87: =_xll.BDP($A87 & "govt cusip",H$1) ->  | I87: =_xll.BDP($A87 & "govt cusip",I$1) ->  | J87: =_xll.BDP($A87 & "govt cusip",J$1) ->  | K87: =_xll.BDP($A87 & "govt cusip",K$1) ->  | L87: =_xll.BDP($A87 & "govt cusip",L$1) ->  | M87: =_xll.BDP($A87 & "govt cusip",M$1) ->  | N87: =_xll.BDP($A87 & "govt cusip",N$1) -> 
A88: 912810DY1 | B88: =_xll.BDP($A88 & "govt cusip",B$1) ->  | C88: =_xll.BDP($A88 & "govt cusip",C$1) ->  | D88: =_xll.BDP($A88 & "govt cusip",D$1) ->  | E88: =_xll.BDP($A88 & "govt cusip","PX_BID") ->  | F88: =_xll.BDP($A88 & "govt cusip","PX_ASK") ->  | G88: =_xll.BDP($A88 & "govt cusip",G$1) ->  | H88: =_xll.BDP($A88 & "govt cusip",H$1) ->  | I88: =_xll.BDP($A88 & "govt cusip",I$1) ->  | J88: =_xll.BDP($A88 & "govt cusip",J$1) ->  | K88: =_xll.BDP($A88 & "govt cusip",K$1) ->  | L88: =_xll.BDP($A88 & "govt cusip",L$1) ->  | M88: =_xll.BDP($A88 & "govt cusip",M$1) ->  | N88: =_xll.BDP($A88 & "govt cusip",N$1) -> 
A89: 912810DZ8 | B89: =_xll.BDP($A89 & "govt cusip",B$1) ->  | C89: =_xll.BDP($A89 & "govt cusip",C$1) ->  | D89: =_xll.BDP($A89 & "govt cusip",D$1) ->  | E89: =_xll.BDP($A89 & "govt cusip","PX_BID") ->  | F89: =_xll.BDP($A89 & "govt cusip","PX_ASK") ->  | G89: =_xll.BDP($A89 & "govt cusip",G$1) ->  | H89: =_xll.BDP($A89 & "govt cusip",H$1) ->  | I89: =_xll.BDP($A89 & "govt cusip",I$1) ->  | J89: =_xll.BDP($A89 & "govt cusip",J$1) ->  | K89: =_xll.BDP($A89 & "govt cusip",K$1) ->  | L89: =_xll.BDP($A89 & "govt cusip",L$1) ->  | M89: =_xll.BDP($A89 & "govt cusip",M$1) ->  | N89: =_xll.BDP($A89 & "govt cusip",N$1) -> 
A90: 912810EA2 | B90: =_xll.BDP($A90 & "govt cusip",B$1) ->  | C90: =_xll.BDP($A90 & "govt cusip",C$1) ->  | D90: =_xll.BDP($A90 & "govt cusip",D$1) ->  | E90: =_xll.BDP($A90 & "govt cusip","PX_BID") ->  | F90: =_xll.BDP($A90 & "govt cusip","PX_ASK") ->  | G90: =_xll.BDP($A90 & "govt cusip",G$1) ->  | H90: =_xll.BDP($A90 & "govt cusip",H$1) ->  | I90: =_xll.BDP($A90 & "govt cusip",I$1) ->  | J90: =_xll.BDP($A90 & "govt cusip",J$1) ->  | K90: =_xll.BDP($A90 & "govt cusip",K$1) ->  | L90: =_xll.BDP($A90 & "govt cusip",L$1) ->  | M90: =_xll.BDP($A90 & "govt cusip",M$1) ->  | N90: =_xll.BDP($A90 & "govt cusip",N$1) -> 
A91: 912810EB0 | B91: =_xll.BDP($A91 & "govt cusip",B$1) ->  | C91: =_xll.BDP($A91 & "govt cusip",C$1) ->  | D91: =_xll.BDP($A91 & "govt cusip",D$1) ->  | E91: =_xll.BDP($A91 & "govt cusip","PX_BID") ->  | F91: =_xll.BDP($A91 & "govt cusip","PX_ASK") ->  | G91: =_xll.BDP($A91 & "govt cusip",G$1) ->  | H91: =_xll.BDP($A91 & "govt cusip",H$1) ->  | I91: =_xll.BDP($A91 & "govt cusip",I$1) ->  | J91: =_xll.BDP($A91 & "govt cusip",J$1) ->  | K91: =_xll.BDP($A91 & "govt cusip",K$1) ->  | L91: =_xll.BDP($A91 & "govt cusip",L$1) ->  | M91: =_xll.BDP($A91 & "govt cusip",M$1) ->  | N91: =_xll.BDP($A91 & "govt cusip",N$1) -> 
A92: 912810EC8 | B92: =_xll.BDP($A92 & "govt cusip",B$1) ->  | C92: =_xll.BDP($A92 & "govt cusip",C$1) ->  | D92: =_xll.BDP($A92 & "govt cusip",D$1) ->  | E92: =_xll.BDP($A92 & "govt cusip","PX_BID") ->  | F92: =_xll.BDP($A92 & "govt cusip","PX_ASK") ->  | G92: =_xll.BDP($A92 & "govt cusip",G$1) ->  | H92: =_xll.BDP($A92 & "govt cusip",H$1) ->  | I92: =_xll.BDP($A92 & "govt cusip",I$1) ->  | J92: =_xll.BDP($A92 & "govt cusip",J$1) ->  | K92: =_xll.BDP($A92 & "govt cusip",K$1) ->  | L92: =_xll.BDP($A92 & "govt cusip",L$1) ->  | M92: =_xll.BDP($A92 & "govt cusip",M$1) ->  | N92: =_xll.BDP($A92 & "govt cusip",N$1) -> 
A93: 912810ED6 | B93: =_xll.BDP($A93 & "govt cusip",B$1) ->  | C93: =_xll.BDP($A93 & "govt cusip",C$1) ->  | D93: =_xll.BDP($A93 & "govt cusip",D$1) ->  | E93: =_xll.BDP($A93 & "govt cusip","PX_BID") ->  | F93: =_xll.BDP($A93 & "govt cusip","PX_ASK") ->  | G93: =_xll.BDP($A93 & "govt cusip",G$1) ->  | H93: =_xll.BDP($A93 & "govt cusip",H$1) ->  | I93: =_xll.BDP($A93 & "govt cusip",I$1) ->  | J93: =_xll.BDP($A93 & "govt cusip",J$1) ->  | K93: =_xll.BDP($A93 & "govt cusip",K$1) ->  | L93: =_xll.BDP($A93 & "govt cusip",L$1) ->  | M93: =_xll.BDP($A93 & "govt cusip",M$1) ->  | N93: =_xll.BDP($A93 & "govt cusip",N$1) -> 
A94: 912810EE4 | B94: =_xll.BDP($A94 & "govt cusip",B$1) ->  | C94: =_xll.BDP($A94 & "govt cusip",C$1) ->  | D94: =_xll.BDP($A94 & "govt cusip",D$1) ->  | E94: =_xll.BDP($A94 & "govt cusip","PX_BID") ->  | F94: =_xll.BDP($A94 & "govt cusip","PX_ASK") ->  | G94: =_xll.BDP($A94 & "govt cusip",G$1) ->  | H94: =_xll.BDP($A94 & "govt cusip",H$1) ->  | I94: =_xll.BDP($A94 & "govt cusip",I$1) ->  | J94: =_xll.BDP($A94 & "govt cusip",J$1) ->  | K94: =_xll.BDP($A94 & "govt cusip",K$1) ->  | L94: =_xll.BDP($A94 & "govt cusip",L$1) ->  | M94: =_xll.BDP($A94 & "govt cusip",M$1) ->  | N94: =_xll.BDP($A94 & "govt cusip",N$1) -> 
A95: 912810EF1 | B95: =_xll.BDP($A95 & "govt cusip",B$1) ->  | C95: =_xll.BDP($A95 & "govt cusip",C$1) ->  | D95: =_xll.BDP($A95 & "govt cusip",D$1) ->  | E95: =_xll.BDP($A95 & "govt cusip","PX_BID") ->  | F95: =_xll.BDP($A95 & "govt cusip","PX_ASK") ->  | G95: =_xll.BDP($A95 & "govt cusip",G$1) ->  | H95: =_xll.BDP($A95 & "govt cusip",H$1) ->  | I95: =_xll.BDP($A95 & "govt cusip",I$1) ->  | J95: =_xll.BDP($A95 & "govt cusip",J$1) ->  | K95: =_xll.BDP($A95 & "govt cusip",K$1) ->  | L95: =_xll.BDP($A95 & "govt cusip",L$1) ->  | M95: =_xll.BDP($A95 & "govt cusip",M$1) ->  | N95: =_xll.BDP($A95 & "govt cusip",N$1) -> 
A96: 912810EG9 | B96: =_xll.BDP($A96 & "govt cusip",B$1) ->  | C96: =_xll.BDP($A96 & "govt cusip",C$1) ->  | D96: =_xll.BDP($A96 & "govt cusip",D$1) ->  | E96: =_xll.BDP($A96 & "govt cusip","PX_BID") ->  | F96: =_xll.BDP($A96 & "govt cusip","PX_ASK") ->  | G96: =_xll.BDP($A96 & "govt cusip",G$1) ->  | H96: =_xll.BDP($A96 & "govt cusip",H$1) ->  | I96: =_xll.BDP($A96 & "govt cusip",I$1) ->  | J96: =_xll.BDP($A96 & "govt cusip",J$1) ->  | K96: =_xll.BDP($A96 & "govt cusip",K$1) ->  | L96: =_xll.BDP($A96 & "govt cusip",L$1) ->  | M96: =_xll.BDP($A96 & "govt cusip",M$1) ->  | N96: =_xll.BDP($A96 & "govt cusip",N$1) -> 
A97: 912810EH7 | B97: =_xll.BDP($A97 & "govt cusip",B$1) ->  | C97: =_xll.BDP($A97 & "govt cusip",C$1) ->  | D97: =_xll.BDP($A97 & "govt cusip",D$1) ->  | E97: =_xll.BDP($A97 & "govt cusip","PX_BID") ->  | F97: =_xll.BDP($A97 & "govt cusip","PX_ASK") ->  | G97: =_xll.BDP($A97 & "govt cusip",G$1) ->  | H97: =_xll.BDP($A97 & "govt cusip",H$1) ->  | I97: =_xll.BDP($A97 & "govt cusip",I$1) ->  | J97: =_xll.BDP($A97 & "govt cusip",J$1) ->  | K97: =_xll.BDP($A97 & "govt cusip",K$1) ->  | L97: =_xll.BDP($A97 & "govt cusip",L$1) ->  | M97: =_xll.BDP($A97 & "govt cusip",M$1) ->  | N97: =_xll.BDP($A97 & "govt cusip",N$1) -> 
A98: 912810EJ3 | B98: =_xll.BDP($A98 & "govt cusip",B$1) ->  | C98: =_xll.BDP($A98 & "govt cusip",C$1) ->  | D98: =_xll.BDP($A98 & "govt cusip",D$1) ->  | E98: =_xll.BDP($A98 & "govt cusip","PX_BID") ->  | F98: =_xll.BDP($A98 & "govt cusip","PX_ASK") ->  | G98: =_xll.BDP($A98 & "govt cusip",G$1) ->  | H98: =_xll.BDP($A98 & "govt cusip",H$1) ->  | I98: =_xll.BDP($A98 & "govt cusip",I$1) ->  | J98: =_xll.BDP($A98 & "govt cusip",J$1) ->  | K98: =_xll.BDP($A98 & "govt cusip",K$1) ->  | L98: =_xll.BDP($A98 & "govt cusip",L$1) ->  | M98: =_xll.BDP($A98 & "govt cusip",M$1) ->  | N98: =_xll.BDP($A98 & "govt cusip",N$1) -> 
A99: 912810EK0 | B99: =_xll.BDP($A99 & "govt cusip",B$1) ->  | C99: =_xll.BDP($A99 & "govt cusip",C$1) ->  | D99: =_xll.BDP($A99 & "govt cusip",D$1) ->  | E99: =_xll.BDP($A99 & "govt cusip","PX_BID") ->  | F99: =_xll.BDP($A99 & "govt cusip","PX_ASK") ->  | G99: =_xll.BDP($A99 & "govt cusip",G$1) ->  | H99: =_xll.BDP($A99 & "govt cusip",H$1) ->  | I99: =_xll.BDP($A99 & "govt cusip",I$1) ->  | J99: =_xll.BDP($A99 & "govt cusip",J$1) ->  | K99: =_xll.BDP($A99 & "govt cusip",K$1) ->  | L99: =_xll.BDP($A99 & "govt cusip",L$1) ->  | M99: =_xll.BDP($A99 & "govt cusip",M$1) ->  | N99: =_xll.BDP($A99 & "govt cusip",N$1) -> 
A100: 912810EL8 | B100: =_xll.BDP($A100 & "govt cusip",B$1) ->  | C100: =_xll.BDP($A100 & "govt cusip",C$1) ->  | D100: =_xll.BDP($A100 & "govt cusip",D$1) ->  | E100: =_xll.BDP($A100 & "govt cusip","PX_BID") ->  | F100: =_xll.BDP($A100 & "govt cusip","PX_ASK") ->  | G100: =_xll.BDP($A100 & "govt cusip",G$1) ->  | H100: =_xll.BDP($A100 & "govt cusip",H$1) ->  | I100: =_xll.BDP($A100 & "govt cusip",I$1) ->  | J100: =_xll.BDP($A100 & "govt cusip",J$1) ->  | K100: =_xll.BDP($A100 & "govt cusip",K$1) ->  | L100: =_xll.BDP($A100 & "govt cusip",L$1) ->  | M100: =_xll.BDP($A100 & "govt cusip",M$1) ->  | N100: =_xll.BDP($A100 & "govt cusip",N$1) -> 
A101: 912810EM6 | B101: =_xll.BDP($A101 & "govt cusip",B$1) ->  | C101: =_xll.BDP($A101 & "govt cusip",C$1) ->  | D101: =_xll.BDP($A101 & "govt cusip",D$1) ->  | E101: =_xll.BDP($A101 & "govt cusip","PX_BID") ->  | F101: =_xll.BDP($A101 & "govt cusip","PX_ASK") ->  | G101: =_xll.BDP($A101 & "govt cusip",G$1) ->  | H101: =_xll.BDP($A101 & "govt cusip",H$1) ->  | I101: =_xll.BDP($A101 & "govt cusip",I$1) ->  | J101: =_xll.BDP($A101 & "govt cusip",J$1) ->  | K101: =_xll.BDP($A101 & "govt cusip",K$1) ->  | L101: =_xll.BDP($A101 & "govt cusip",L$1) ->  | M101: =_xll.BDP($A101 & "govt cusip",M$1) ->  | N101: =_xll.BDP($A101 & "govt cusip",N$1) -> 
A102: 912810EN4 | B102: =_xll.BDP($A102 & "govt cusip",B$1) ->  | C102: =_xll.BDP($A102 & "govt cusip",C$1) ->  | D102: =_xll.BDP($A102 & "govt cusip",D$1) ->  | E102: =_xll.BDP($A102 & "govt cusip","PX_BID") ->  | F102: =_xll.BDP($A102 & "govt cusip","PX_ASK") ->  | G102: =_xll.BDP($A102 & "govt cusip",G$1) ->  | H102: =_xll.BDP($A102 & "govt cusip",H$1) ->  | I102: =_xll.BDP($A102 & "govt cusip",I$1) ->  | J102: =_xll.BDP($A102 & "govt cusip",J$1) ->  | K102: =_xll.BDP($A102 & "govt cusip",K$1) ->  | L102: =_xll.BDP($A102 & "govt cusip",L$1) ->  | M102: =_xll.BDP($A102 & "govt cusip",M$1) ->  | N102: =_xll.BDP($A102 & "govt cusip",N$1) -> 
A103: 912810EP9 | B103: =_xll.BDP($A103 & "govt cusip",B$1) ->  | C103: =_xll.BDP($A103 & "govt cusip",C$1) ->  | D103: =_xll.BDP($A103 & "govt cusip",D$1) ->  | E103: =_xll.BDP($A103 & "govt cusip","PX_BID") ->  | F103: =_xll.BDP($A103 & "govt cusip","PX_ASK") ->  | G103: =_xll.BDP($A103 & "govt cusip",G$1) ->  | H103: =_xll.BDP($A103 & "govt cusip",H$1) ->  | I103: =_xll.BDP($A103 & "govt cusip",I$1) ->  | J103: =_xll.BDP($A103 & "govt cusip",J$1) ->  | K103: =_xll.BDP($A103 & "govt cusip",K$1) ->  | L103: =_xll.BDP($A103 & "govt cusip",L$1) ->  | M103: =_xll.BDP($A103 & "govt cusip",M$1) ->  | N103: =_xll.BDP($A103 & "govt cusip",N$1) -> 
A104: 912810EQ7 | B104: =_xll.BDP($A104 & "govt cusip",B$1) ->  | C104: =_xll.BDP($A104 & "govt cusip",C$1) ->  | D104: =_xll.BDP($A104 & "govt cusip",D$1) ->  | E104: =_xll.BDP($A104 & "govt cusip","PX_BID") ->  | F104: =_xll.BDP($A104 & "govt cusip","PX_ASK") ->  | G104: =_xll.BDP($A104 & "govt cusip",G$1) ->  | H104: =_xll.BDP($A104 & "govt cusip",H$1) ->  | I104: =_xll.BDP($A104 & "govt cusip",I$1) ->  | J104: =_xll.BDP($A104 & "govt cusip",J$1) ->  | K104: =_xll.BDP($A104 & "govt cusip",K$1) ->  | L104: =_xll.BDP($A104 & "govt cusip",L$1) ->  | M104: =_xll.BDP($A104 & "govt cusip",M$1) ->  | N104: =_xll.BDP($A104 & "govt cusip",N$1) -> 
A105: 912810ES3 | B105: =_xll.BDP($A105 & "govt cusip",B$1) ->  | C105: =_xll.BDP($A105 & "govt cusip",C$1) ->  | D105: =_xll.BDP($A105 & "govt cusip",D$1) ->  | E105: =_xll.BDP($A105 & "govt cusip","PX_BID") ->  | F105: =_xll.BDP($A105 & "govt cusip","PX_ASK") ->  | G105: =_xll.BDP($A105 & "govt cusip",G$1) ->  | H105: =_xll.BDP($A105 & "govt cusip",H$1) ->  | I105: =_xll.BDP($A105 & "govt cusip",I$1) ->  | J105: =_xll.BDP($A105 & "govt cusip",J$1) ->  | K105: =_xll.BDP($A105 & "govt cusip",K$1) ->  | L105: =_xll.BDP($A105 & "govt cusip",L$1) ->  | M105: =_xll.BDP($A105 & "govt cusip",M$1) ->  | N105: =_xll.BDP($A105 & "govt cusip",N$1) -> 
A106: 912810ET1 | B106: =_xll.BDP($A106 & "govt cusip",B$1) ->  | C106: =_xll.BDP($A106 & "govt cusip",C$1) ->  | D106: =_xll.BDP($A106 & "govt cusip",D$1) ->  | E106: =_xll.BDP($A106 & "govt cusip","PX_BID") ->  | F106: =_xll.BDP($A106 & "govt cusip","PX_ASK") ->  | G106: =_xll.BDP($A106 & "govt cusip",G$1) ->  | H106: =_xll.BDP($A106 & "govt cusip",H$1) ->  | I106: =_xll.BDP($A106 & "govt cusip",I$1) ->  | J106: =_xll.BDP($A106 & "govt cusip",J$1) ->  | K106: =_xll.BDP($A106 & "govt cusip",K$1) ->  | L106: =_xll.BDP($A106 & "govt cusip",L$1) ->  | M106: =_xll.BDP($A106 & "govt cusip",M$1) ->  | N106: =_xll.BDP($A106 & "govt cusip",N$1) -> 
A107: 912810EV6 | B107: =_xll.BDP($A107 & "govt cusip",B$1) ->  | C107: =_xll.BDP($A107 & "govt cusip",C$1) ->  | D107: =_xll.BDP($A107 & "govt cusip",D$1) ->  | E107: =_xll.BDP($A107 & "govt cusip","PX_BID") ->  | F107: =_xll.BDP($A107 & "govt cusip","PX_ASK") ->  | G107: =_xll.BDP($A107 & "govt cusip",G$1) ->  | H107: =_xll.BDP($A107 & "govt cusip",H$1) ->  | I107: =_xll.BDP($A107 & "govt cusip",I$1) ->  | J107: =_xll.BDP($A107 & "govt cusip",J$1) ->  | K107: =_xll.BDP($A107 & "govt cusip",K$1) ->  | L107: =_xll.BDP($A107 & "govt cusip",L$1) ->  | M107: =_xll.BDP($A107 & "govt cusip",M$1) ->  | N107: =_xll.BDP($A107 & "govt cusip",N$1) -> 
A108: 912810EW4 | B108: =_xll.BDP($A108 & "govt cusip",B$1) ->  | C108: =_xll.BDP($A108 & "govt cusip",C$1) ->  | D108: =_xll.BDP($A108 & "govt cusip",D$1) ->  | E108: =_xll.BDP($A108 & "govt cusip","PX_BID") ->  | F108: =_xll.BDP($A108 & "govt cusip","PX_ASK") ->  | G108: =_xll.BDP($A108 & "govt cusip",G$1) ->  | H108: =_xll.BDP($A108 & "govt cusip",H$1) ->  | I108: =_xll.BDP($A108 & "govt cusip",I$1) ->  | J108: =_xll.BDP($A108 & "govt cusip",J$1) ->  | K108: =_xll.BDP($A108 & "govt cusip",K$1) ->  | L108: =_xll.BDP($A108 & "govt cusip",L$1) ->  | M108: =_xll.BDP($A108 & "govt cusip",M$1) ->  | N108: =_xll.BDP($A108 & "govt cusip",N$1) -> 
A109: 912810EX2 | B109: =_xll.BDP($A109 & "govt cusip",B$1) ->  | C109: =_xll.BDP($A109 & "govt cusip",C$1) ->  | D109: =_xll.BDP($A109 & "govt cusip",D$1) ->  | E109: =_xll.BDP($A109 & "govt cusip","PX_BID") ->  | F109: =_xll.BDP($A109 & "govt cusip","PX_ASK") ->  | G109: =_xll.BDP($A109 & "govt cusip",G$1) ->  | H109: =_xll.BDP($A109 & "govt cusip",H$1) ->  | I109: =_xll.BDP($A109 & "govt cusip",I$1) ->  | J109: =_xll.BDP($A109 & "govt cusip",J$1) ->  | K109: =_xll.BDP($A109 & "govt cusip",K$1) ->  | L109: =_xll.BDP($A109 & "govt cusip",L$1) ->  | M109: =_xll.BDP($A109 & "govt cusip",M$1) ->  | N109: =_xll.BDP($A109 & "govt cusip",N$1) -> 
A110: 912810EY0 | B110: =_xll.BDP($A110 & "govt cusip",B$1) ->  | C110: =_xll.BDP($A110 & "govt cusip",C$1) ->  | D110: =_xll.BDP($A110 & "govt cusip",D$1) ->  | E110: =_xll.BDP($A110 & "govt cusip","PX_BID") ->  | F110: =_xll.BDP($A110 & "govt cusip","PX_ASK") ->  | G110: =_xll.BDP($A110 & "govt cusip",G$1) ->  | H110: =_xll.BDP($A110 & "govt cusip",H$1) ->  | I110: =_xll.BDP($A110 & "govt cusip",I$1) ->  | J110: =_xll.BDP($A110 & "govt cusip",J$1) ->  | K110: =_xll.BDP($A110 & "govt cusip",K$1) ->  | L110: =_xll.BDP($A110 & "govt cusip",L$1) ->  | M110: =_xll.BDP($A110 & "govt cusip",M$1) ->  | N110: =_xll.BDP($A110 & "govt cusip",N$1) -> 
A111: 912810EZ7 | B111: =_xll.BDP($A111 & "govt cusip",B$1) ->  | C111: =_xll.BDP($A111 & "govt cusip",C$1) ->  | D111: =_xll.BDP($A111 & "govt cusip",D$1) ->  | E111: =_xll.BDP($A111 & "govt cusip","PX_BID") ->  | F111: =_xll.BDP($A111 & "govt cusip","PX_ASK") ->  | G111: =_xll.BDP($A111 & "govt cusip",G$1) ->  | H111: =_xll.BDP($A111 & "govt cusip",H$1) ->  | I111: =_xll.BDP($A111 & "govt cusip",I$1) ->  | J111: =_xll.BDP($A111 & "govt cusip",J$1) ->  | K111: =_xll.BDP($A111 & "govt cusip",K$1) ->  | L111: =_xll.BDP($A111 & "govt cusip",L$1) ->  | M111: =_xll.BDP($A111 & "govt cusip",M$1) ->  | N111: =_xll.BDP($A111 & "govt cusip",N$1) -> 
A112: 912810FA1 | B112: =_xll.BDP($A112 & "govt cusip",B$1) ->  | C112: =_xll.BDP($A112 & "govt cusip",C$1) ->  | D112: =_xll.BDP($A112 & "govt cusip",D$1) ->  | E112: =_xll.BDP($A112 & "govt cusip","PX_BID") ->  | F112: =_xll.BDP($A112 & "govt cusip","PX_ASK") ->  | G112: =_xll.BDP($A112 & "govt cusip",G$1) ->  | H112: =_xll.BDP($A112 & "govt cusip",H$1) ->  | I112: =_xll.BDP($A112 & "govt cusip",I$1) ->  | J112: =_xll.BDP($A112 & "govt cusip",J$1) ->  | K112: =_xll.BDP($A112 & "govt cusip",K$1) ->  | L112: =_xll.BDP($A112 & "govt cusip",L$1) ->  | M112: =_xll.BDP($A112 & "govt cusip",M$1) ->  | N112: =_xll.BDP($A112 & "govt cusip",N$1) -> 
A113: 912810FB9 | B113: =_xll.BDP($A113 & "govt cusip",B$1) ->  | C113: =_xll.BDP($A113 & "govt cusip",C$1) ->  | D113: =_xll.BDP($A113 & "govt cusip",D$1) ->  | E113: =_xll.BDP($A113 & "govt cusip","PX_BID") ->  | F113: =_xll.BDP($A113 & "govt cusip","PX_ASK") ->  | G113: =_xll.BDP($A113 & "govt cusip",G$1) ->  | H113: =_xll.BDP($A113 & "govt cusip",H$1) ->  | I113: =_xll.BDP($A113 & "govt cusip",I$1) ->  | J113: =_xll.BDP($A113 & "govt cusip",J$1) ->  | K113: =_xll.BDP($A113 & "govt cusip",K$1) ->  | L113: =_xll.BDP($A113 & "govt cusip",L$1) ->  | M113: =_xll.BDP($A113 & "govt cusip",M$1) ->  | N113: =_xll.BDP($A113 & "govt cusip",N$1) -> 
A114: 912810FE3 | B114: =_xll.BDP($A114 & "govt cusip",B$1) ->  | C114: =_xll.BDP($A114 & "govt cusip",C$1) ->  | D114: =_xll.BDP($A114 & "govt cusip",D$1) ->  | E114: =_xll.BDP($A114 & "govt cusip","PX_BID") ->  | F114: =_xll.BDP($A114 & "govt cusip","PX_ASK") ->  | G114: =_xll.BDP($A114 & "govt cusip",G$1) ->  | H114: =_xll.BDP($A114 & "govt cusip",H$1) ->  | I114: =_xll.BDP($A114 & "govt cusip",I$1) ->  | J114: =_xll.BDP($A114 & "govt cusip",J$1) ->  | K114: =_xll.BDP($A114 & "govt cusip",K$1) ->  | L114: =_xll.BDP($A114 & "govt cusip",L$1) ->  | M114: =_xll.BDP($A114 & "govt cusip",M$1) ->  | N114: =_xll.BDP($A114 & "govt cusip",N$1) -> 
A115: 912810FF0 | B115: =_xll.BDP($A115 & "govt cusip",B$1) ->  | C115: =_xll.BDP($A115 & "govt cusip",C$1) ->  | D115: =_xll.BDP($A115 & "govt cusip",D$1) ->  | E115: =_xll.BDP($A115 & "govt cusip","PX_BID") ->  | F115: =_xll.BDP($A115 & "govt cusip","PX_ASK") ->  | G115: =_xll.BDP($A115 & "govt cusip",G$1) ->  | H115: =_xll.BDP($A115 & "govt cusip",H$1) ->  | I115: =_xll.BDP($A115 & "govt cusip",I$1) ->  | J115: =_xll.BDP($A115 & "govt cusip",J$1) ->  | K115: =_xll.BDP($A115 & "govt cusip",K$1) ->  | L115: =_xll.BDP($A115 & "govt cusip",L$1) ->  | M115: =_xll.BDP($A115 & "govt cusip",M$1) ->  | N115: =_xll.BDP($A115 & "govt cusip",N$1) -> 
A116: 912810FG8 | B116: =_xll.BDP($A116 & "govt cusip",B$1) ->  | C116: =_xll.BDP($A116 & "govt cusip",C$1) ->  | D116: =_xll.BDP($A116 & "govt cusip",D$1) ->  | E116: =_xll.BDP($A116 & "govt cusip","PX_BID") ->  | F116: =_xll.BDP($A116 & "govt cusip","PX_ASK") ->  | G116: =_xll.BDP($A116 & "govt cusip",G$1) ->  | H116: =_xll.BDP($A116 & "govt cusip",H$1) ->  | I116: =_xll.BDP($A116 & "govt cusip",I$1) ->  | J116: =_xll.BDP($A116 & "govt cusip",J$1) ->  | K116: =_xll.BDP($A116 & "govt cusip",K$1) ->  | L116: =_xll.BDP($A116 & "govt cusip",L$1) ->  | M116: =_xll.BDP($A116 & "govt cusip",M$1) ->  | N116: =_xll.BDP($A116 & "govt cusip",N$1) -> 
A117: 912810FJ2 | B117: =_xll.BDP($A117 & "govt cusip",B$1) ->  | C117: =_xll.BDP($A117 & "govt cusip",C$1) ->  | D117: =_xll.BDP($A117 & "govt cusip",D$1) ->  | E117: =_xll.BDP($A117 & "govt cusip","PX_BID") ->  | F117: =_xll.BDP($A117 & "govt cusip","PX_ASK") ->  | G117: =_xll.BDP($A117 & "govt cusip",G$1) ->  | H117: =_xll.BDP($A117 & "govt cusip",H$1) ->  | I117: =_xll.BDP($A117 & "govt cusip",I$1) ->  | J117: =_xll.BDP($A117 & "govt cusip",J$1) ->  | K117: =_xll.BDP($A117 & "govt cusip",K$1) ->  | L117: =_xll.BDP($A117 & "govt cusip",L$1) ->  | M117: =_xll.BDP($A117 & "govt cusip",M$1) ->  | N117: =_xll.BDP($A117 & "govt cusip",N$1) -> 
A118: 912810FM5 | B118: =_xll.BDP($A118 & "govt cusip",B$1) ->  | C118: =_xll.BDP($A118 & "govt cusip",C$1) ->  | D118: =_xll.BDP($A118 & "govt cusip",D$1) ->  | E118: =_xll.BDP($A118 & "govt cusip","PX_BID") ->  | F118: =_xll.BDP($A118 & "govt cusip","PX_ASK") ->  | G118: =_xll.BDP($A118 & "govt cusip",G$1) ->  | H118: =_xll.BDP($A118 & "govt cusip",H$1) ->  | I118: =_xll.BDP($A118 & "govt cusip",I$1) ->  | J118: =_xll.BDP($A118 & "govt cusip",J$1) ->  | K118: =_xll.BDP($A118 & "govt cusip",K$1) ->  | L118: =_xll.BDP($A118 & "govt cusip",L$1) ->  | M118: =_xll.BDP($A118 & "govt cusip",M$1) ->  | N118: =_xll.BDP($A118 & "govt cusip",N$1) -> 
A119: 912810FP8 | B119: =_xll.BDP($A119 & "govt cusip",B$1) ->  | C119: =_xll.BDP($A119 & "govt cusip",C$1) ->  | D119: =_xll.BDP($A119 & "govt cusip",D$1) ->  | E119: =_xll.BDP($A119 & "govt cusip","PX_BID") ->  | F119: =_xll.BDP($A119 & "govt cusip","PX_ASK") ->  | G119: =_xll.BDP($A119 & "govt cusip",G$1) ->  | H119: =_xll.BDP($A119 & "govt cusip",H$1) ->  | I119: =_xll.BDP($A119 & "govt cusip",I$1) ->  | J119: =_xll.BDP($A119 & "govt cusip",J$1) ->  | K119: =_xll.BDP($A119 & "govt cusip",K$1) ->  | L119: =_xll.BDP($A119 & "govt cusip",L$1) ->  | M119: =_xll.BDP($A119 & "govt cusip",M$1) ->  | N119: =_xll.BDP($A119 & "govt cusip",N$1) -> 
A120: 912810FT0 | B120: =_xll.BDP($A120 & "govt cusip",B$1) ->  | C120: =_xll.BDP($A120 & "govt cusip",C$1) ->  | D120: =_xll.BDP($A120 & "govt cusip",D$1) ->  | E120: =_xll.BDP($A120 & "govt cusip","PX_BID") ->  | F120: =_xll.BDP($A120 & "govt cusip","PX_ASK") ->  | G120: =_xll.BDP($A120 & "govt cusip",G$1) ->  | H120: =_xll.BDP($A120 & "govt cusip",H$1) ->  | I120: =_xll.BDP($A120 & "govt cusip",I$1) ->  | J120: =_xll.BDP($A120 & "govt cusip",J$1) ->  | K120: =_xll.BDP($A120 & "govt cusip",K$1) ->  | L120: =_xll.BDP($A120 & "govt cusip",L$1) ->  | M120: =_xll.BDP($A120 & "govt cusip",M$1) ->  | N120: =_xll.BDP($A120 & "govt cusip",N$1) -> 
A121: 912810PT9 | B121: =_xll.BDP($A121 & "govt cusip",B$1) ->  | C121: =_xll.BDP($A121 & "govt cusip",C$1) ->  | D121: =_xll.BDP($A121 & "govt cusip",D$1) ->  | E121: =_xll.BDP($A121 & "govt cusip","PX_BID") ->  | F121: =_xll.BDP($A121 & "govt cusip","PX_ASK") ->  | G121: =_xll.BDP($A121 & "govt cusip",G$1) ->  | H121: =_xll.BDP($A121 & "govt cusip",H$1) ->  | I121: =_xll.BDP($A121 & "govt cusip",I$1) ->  | J121: =_xll.BDP($A121 & "govt cusip",J$1) ->  | K121: =_xll.BDP($A121 & "govt cusip",K$1) ->  | L121: =_xll.BDP($A121 & "govt cusip",L$1) ->  | M121: =_xll.BDP($A121 & "govt cusip",M$1) ->  | N121: =_xll.BDP($A121 & "govt cusip",N$1) -> 
A122: 912810PU6 | B122: =_xll.BDP($A122 & "govt cusip",B$1) ->  | C122: =_xll.BDP($A122 & "govt cusip",C$1) ->  | D122: =_xll.BDP($A122 & "govt cusip",D$1) ->  | E122: =_xll.BDP($A122 & "govt cusip","PX_BID") ->  | F122: =_xll.BDP($A122 & "govt cusip","PX_ASK") ->  | G122: =_xll.BDP($A122 & "govt cusip",G$1) ->  | H122: =_xll.BDP($A122 & "govt cusip",H$1) ->  | I122: =_xll.BDP($A122 & "govt cusip",I$1) ->  | J122: =_xll.BDP($A122 & "govt cusip",J$1) ->  | K122: =_xll.BDP($A122 & "govt cusip",K$1) ->  | L122: =_xll.BDP($A122 & "govt cusip",L$1) ->  | M122: =_xll.BDP($A122 & "govt cusip",M$1) ->  | N122: =_xll.BDP($A122 & "govt cusip",N$1) -> 

Sheet prices
A1: CUSIP | B1: MATURITY | C1: CPN | E1: NXT_CPN_DT | F1: ID_BB | G1: ASK | H1: DUR_BID | I1: DUR_MID | J1: YLD_YTM_MID | K1: YLD_YTM_BID | L1: YLD_YTM_ASK | M1: PX_CLEAN_ASK | N1: PX_DIRTY_ASK | O1: REPO_REPORATE | P1: days to next pay | Q1: days since | R1: dirty ask | S1: accrued int | T1: theo price
C2: 2010-01-29 | P2: 2010-01-29
A4: 912828HP8 | B4: 1/31/2010 | C4: 2.125 | D4: =(B4-$C$2)/365 -> 0.005479452055 | E4: 1/31/2010 | F4: 100 | G4: 100.03125 | H4: 0.008152173914 | I4: 0.008152173914 | J4: 0.2061465276 | K4: 2.103019729 | L4: -1.690140214 | M4: 100.03125 | N4: 101.0764266 | O4: 0.06 | P4: =COUPDAYSNC($P$2,B4,IF(C4>0,2,1)) -> 1 | Q4: =COUPDAYBS($P$2,B4,IF(C4>0,2,1)) -> 179 | S4: =IF(C4>0,Q4/(P4+Q4)*C4,0) -> 2.113194444 | T4: =NSbondPrice(prices!$P$2,prices!B4,prices!C4/100,'nelson siegel ASK'!$E$4,'nelson siegel ASK'!$E$5,'nelson siegel ASK'!$E$6,'nelson siegel ASK'!$E$7) -> 101.0637453
A5: 912828DL1 | B5: 2/15/2010 | C5: 3.5 | D5: 0.04657534247 | E5: 2/15/2010 | F5: 100.15625 | G5: 100.1875 | H5: 0.04891304348 | I5: 0.04891304348 | J5: -0.01364992251 | K5: 0.3003444167 | L5: -0.3275478416 | M5: 100.1875 | N5: 101.7663043 | O5: 0.06 | P5: 16 | Q5: =COUPDAYBS($P$2,B5,IF(C5>0,2,1)) -> 164 | S5: 3.188888889 | T5: =NSbondPrice(prices!$P$2,prices!B5,prices!C5/100,'nelson siegel ASK'!$E$4,'nelson siegel ASK'!$E$5,'nelson siegel ASK'!$E$6,'nelson siegel ASK'!$E$7) -> 101.7591225
A6: 912828GG9 | B6: 2/15/2010 | C6: 4.75 | D6: 0.04657534247 | E6: 2/15/2010 | F6: 100.21875 | G6: 100.25 | H6: 0.04891304348 | I6: 0.04891304348 | J6: -0.04069923047 | K6: 0.2713696202 | L6: -0.3526728384 | M6: 100.25 | N6: 102.392663 | O6: 0.06 | P6: 16 | Q6: 164 | S6: 4.327777778 | T6: =NSbondPrice(prices!$P$2,prices!B6,prices!C6/100,'nelson siegel ASK'!$E$4,'nelson siegel ASK'!$E$5,'nelson siegel ASK'!$E$6,'nelson siegel ASK'!$E$7) -> 102.3841786
A7: 9128275Z1 | B7: 2/15/2010 | C7: 6.5 | D7: 0.04657534247 | E7: 2/15/2010 | F7: 100.296875 | G7: 100.328125 | H7: 0.04891304348 | I7: 0.04891304348 | J7: 0.1076193317 | K7: 0.4170880323 | L7: -0.2017557133 | M7: 100.328125 | N7: 103.2601902 | O7: 0.06 | P7: 16 | Q7: 164 | S7: 5.922222222 | T7: =NSbondPrice(prices!$P$2,prices!B7,prices!C7/100,'nelson siegel ASK'!$E$4,'nelson siegel ASK'!$E$5,'nelson siegel ASK'!$E$6,'nelson siegel ASK'!$E$7) -> 103.259257
A8: 912828HS2 | B8: 2/28/2010 | C8: 2 | D8: 0.08219178082 | E8: 2/28/2010 | F8: 100.15625 | G8: 100.1875 | H8: 0.08563535912 | I8: 0.08563535912 | J8: -0.006986543955 | K8: 0.1736923917 | L8: -0.1876095855 | M8: 100.1875 | N8: 101.0162293 | O8: 0.06 | P8: 31 | Q8: 149 | S8: 1.655555556 | T8: =NSbondPrice(prices!$P$2,prices!B8,prices!C8/100,'nelson siegel ASK'!$E$4,'nelson siegel ASK'!$E$5,'nelson siegel ASK'!$E$6,'nelson siegel ASK'!$E$7) -> 101.0136595
A9: 912828DP2 | B9: 3/15/2010 | C9: 4 | D9: 0.1232876712 | E9: 3/15/2010 | F9: 100.484375 | G9: 100.515625 | H9: 0.1270718232 | I9: 0.1270718232 | J9: 0.06394381423 | K9: 0.1845328175 | L9: -0.05660824654 | M9: 100.515625 | N9: 102.0073377 | O9: 0.06 | P9: 46 | Q9: 134 | S9: 2.977777778 | T9: =NSbondPrice(prices!$P$2,prices!B9,prices!C9/100,'nelson siegel ASK'!$E$4,'nelson siegel ASK'!$E$5,'nelson siegel ASK'!$E$6,'nelson siegel ASK'!$E$7) -> 102.0166528
A10: 912828HU7 | B10: 3/31/2010 | C10: 1.75 | D10: 0.1671232877 | E10: 3/31/2010 | F10: 100.28125 | G10: 100.3125 | H10: 0.1703296704 | I10: 0.1703296704 | J10: 0.006995326584 | K10: 0.09794974425 | L10: -0.0839309184 | M10: 100.3125 | N10: 100.8894231 | O10: 0.06 | P10: 61 | Q10: 119 | S10: 1.156944444 | T10: =NSbondPrice(prices!$P$2,prices!B10,prices!C10/100,'nelson siegel ASK'!$E$4,'nelson siegel ASK'!$E$5,'nelson siegel ASK'!$E$6,'nelson siegel ASK'!$E$7) -> 100.8915754
A11: 912828DR8 | B11: 4/15/2010 | C11: 4 | D11: 0.2082191781 | E11: 4/15/2010 | F11: 100.8125 | G11: 100.84375 | H11: 0.2115384616 | I11: 0.2115384616 | J11: 0.08357092118 | K11: 0.1560229577 | L11: 0.01114108253 | M11: 100.84375 | N11: 101.9975962 | O11: 0.06 | P11: 76 | Q11: 104 | S11: 2.311111111 | T11: =NSbondPrice(prices!$P$2,prices!B11,prices!C11/100,'nelson siegel ASK'!$E$4,'nelson siegel ASK'!$E$5,'nelson siegel ASK'!$E$6,'nelson siegel ASK'!$E$7) -> 102.0141226
A12: 912828HX1 | B12: 4/30/2010 | C12: 2.125 | D12: 0.2493150685 | E12: 4/30/2010 | F12: 100.515625 | G12: 100.546875 | H12: 0.2541436466 | I12: 0.2541436466 | J12: 0.03428547488 | K12: 0.09514009682 | L12: -0.02655033119 | M12: 100.546875 | N12: 101.0693198 | O12: 0.06 | P12: 91 | Q12: 89 | S12: 1.050694444 | T12: =NSbondPrice(prices!$P$2,prices!B12,prices!C12/100,'nelson siegel ASK'!$E$4,'nelson siegel ASK'!$E$5,'nelson siegel ASK'!$E$6,'nelson siegel ASK'!$E$7) -> 101.0712722
A13: 912828DU1 | B13: 5/15/2010 | C13: 3.875 | D13: 0.2904109589 | E13: 5/15/2010 | F13: 101.109375 | G13: 101.140625 | H13: 0.2955801108 | I13: 0.2955801108 | J13: 0.06762870542 | K13: 0.1195148067 | L13: 0.01575851116 | M13: 101.140625 | N13: 101.9327521 | O13: 0.06 | P13: 106 | Q13: 74 | S13: 1.593055556 | T13: =NSbondPrice(prices!$P$2,prices!B13,prices!C13/100,'nelson siegel ASK'!$E$4,'nelson siegel ASK'!$E$5,'nelson siegel ASK'!$E$6,'nelson siegel ASK'!$E$7) -> 101.9384711
A14: 912828GR5 | B14: 5/15/2010 | C14: 4.5 | D14: 0.2904109589 | E14: 5/15/2010 | F14: 101.28125 | G14: 101.3125 | H14: 0.2955801108 | I14: 0.2955801108 | J14: 0.1100030796 | K14: 0.1617435374 | L14: 0.05827843753 | M14: 101.3125 | N14: 102.2323895 | O14: 0.06 | P14: 106 | Q14: 74 | S14: 1.85 | T14: =NSbondPrice(prices!$P$2,prices!B14,prices!C14/100,'nelson siegel ASK'!$E$4,'nelson siegel ASK'!$E$5,'nelson siegel ASK'!$E$6,'nelson siegel ASK'!$E$7) -> 102.2509741
A15: 912828JA9 | B15: 5/31/2010 | C15: 2.625 | D15: 0.3342465753 | E15: 5/31/2010 | F15: 100.84375 | G15: 100.875 | H15: 0.3379120883 | I15: 0.3379120883 | J15: 0.0807711503 | K15: 0.1264439154 | L15: 0.03511247471 | M15: 100.875 | N15: 101.3004808 | O15: 0.06 | P15: 121 | Q15: 59 | S15: 0.8604166667 | T15: =NSbondPrice(prices!$P$2,prices!B15,prices!C15/100,'nelson siegel ASK'!$E$4,'nelson siegel ASK'!$E$5,'nelson siegel ASK'!$E$6,'nelson siegel ASK'!$E$7) -> 101.3022744
A16: 912828DX5 | B16: 6/15/2010 | C16: 3.625 | D16: 0.3753424658 | E16: 6/15/2010 | F16: 101.3125 | G16: 101.34375 | H16: 0.3791208797 | I16: 0.3791208797 | J16: 0.119715167 | K16: 0.1602382091 | L16: 0.0792045667 | M16: 101.34375 | N16: 101.7819368 | O16: 0.06 | P16: 136 | Q16: 44 | S16: 0.8861111111 | T16: =NSbondPrice(prices!$P$2,prices!B16,prices!C16/100,'nelson siegel ASK'!$E$4,'nelson siegel ASK'!$E$5,'nelson siegel ASK'!$E$6,'nelson siegel ASK'!$E$7) -> 101.7890247
A17: 912828JC5 | B17: 6/30/2010 | C17: 2.875 | D17: 0.4164383562 | E17: 6/30/2010 | F17: 101.140625 | G17: 101.171875 | H17: 0.4226519345 | I17: 0.4226519345 | J17: 0.137403111 | K17: 0.1738961344 | L17: 0.100921335 | M17: 101.171875 | N17: 101.3942507 | O17: 0.06 | P17: 151 | Q17: 29 | S17: 0.4631944444 | T17: =NSbondPrice(prices!$P$2,prices!B17,prices!C17/100,'nelson siegel ASK'!$E$4,'nelson siegel ASK'!$E$5,'nelson siegel ASK'!$E$6,'nelson siegel ASK'!$E$7) -> 101.3984187
A18: 912828DZ0 | B18: 7/15/2010 | C18: 3.875 | D18: 0.4575342466 | E18: 7/15/2010 | F18: 101.71875 | G18: 101.75 | H18: 0.4640883988 | I18: 0.4640883988 | J18: 0.1352999333 | K18: 0.1683747295 | L18: 0.1022352812 | M18: 101.75 | N18: 101.8891575 | O18: 0.06 | P18: 166 | Q18: 14 | S18: 0.3013888889 | T18: =NSbondPrice(prices!$P$2,prices!B18,prices!C18/100,'nelson siegel ASK'!$E$4,'nelson siegel ASK'!$E$5,'nelson siegel ASK'!$E$6,'nelson siegel ASK'!$E$7) -> 101.8799205
A19: 912828ED8 | B19: 8/15/2010 | C19: 4.125 | D19: 0.5424657534 | E19: 2/15/2010 | F19: 102.140625 | G19: 102.171875 | H19: 0.5389983782 | I19: 0.5389997323 | J19: 0.1926533 | K19: 0.2205536 | L19: 0.1647611 | M19: 102.171875 | N19: 104.0326087 | O19: 0.06 | P19: 16 | Q19: 164 | S19: 3.758333333 | T19: =NSbondPrice(prices!$P$2,prices!B19,prices!C19/100,'nelson siegel ASK'!$E$4,'nelson siegel ASK'!$E$5,'nelson siegel ASK'!$E$6,'nelson siegel ASK'!$E$7) -> 104.0200367
A20: 9128276J6 | B20: 8/15/2010 | C20: 5.75 | D20: 0.5424657534 | E20: 2/15/2010 | F20: 103.03125 | G20: 103.0625 | H20: 0.5353050482 | I20: 0.535306877 | J20: 0.1934035 | K20: 0.2210645 | L20: 0.1657504 | M20: 103.0625 | N20: 105.65625 | O20: 0.06 | P20: 16 | Q20: 164 | S20: 5.238888889 | T20: =NSbondPrice(prices!$P$2,prices!B20,prices!C20/100,'nelson siegel ASK'!$E$4,'nelson siegel ASK'!$E$5,'nelson siegel ASK'!$E$6,'nelson siegel ASK'!$E$7) -> 105.6442724
A21: 912828EG1 | B21: 9/15/2010 | C21: 3.875 | D21: 0.6273972603 | E21: 3/15/2010 | F21: 102.28125 | G21: 102.3125 | H21: 0.6177350973 | I21: 0.6177362143 | J21: 0.2075535 | K21: 0.2319638 | L21: 0.18315 | M21: 102.3125 | N21: 103.7575967 | O21: 0.06 | P21: 46 | Q21: 134 | S21: 2.884722222 | T21: =NSbondPrice(prices!$P$2,prices!B21,prices!C21/100,'nelson siegel ASK'!$E$4,'nelson siegel ASK'!$E$5,'nelson siegel ASK'!$E$6,'nelson siegel ASK'!$E$7) -> 103.7155828
A22: 912828EJ5 | B22: 10/15/2010 | C22: 4.25 | D22: 0.7095890411 | E22: 4/15/2010 | F22: 102.84375 | G22: 102.875 | H22: 0.7013342899 | I22: 0.7013353597 | J22: 0.2255173 | K22: 0.2469487 | L22: 0.2040915 | M22: 102.875 | N22: 104.1009615 | O22: 0.06 | P22: 76 | Q22: 104 | S22: 2.455555556 | T22: =NSbondPrice(prices!$P$2,prices!B22,prices!C22/100,'nelson siegel ASK'!$E$4,'nelson siegel ASK'!$E$5,'nelson siegel ASK'!$E$6,'nelson siegel ASK'!$E$7) -> 104.0256821
A23: 912828EM8 | B23: 11/15/2010 | C23: 4.5 | D23: 0.7945205479 | E23: 5/15/2010 | F23: 103.359375 | G23: 103.390625 | H23: 0.7848003634 | I23: 0.7848013701 | J23: 0.2504994 | K23: 0.2696152 | L23: 0.2313882 | M23: 103.390625 | N23: 104.3105145 | O23: 0.06 | P23: 106 | Q23: 74 | S23: 1.85 | T23: =NSbondPrice(prices!$P$2,prices!B23,prices!C23/100,'nelson siegel ASK'!$E$4,'nelson siegel ASK'!$E$5,'nelson siegel ASK'!$E$6,'nelson siegel ASK'!$E$7) -> 104.1982028
A24: 912828EQ9 | B24: 12/15/2010 | C24: 4.375 | D24: 0.8767123288 | E24: 6/15/2010 | F24: 103.5625 | G24: 103.59375 | H24: 0.868625758 | I24: 0.8686266457 | J24: 0.2962291 | K24: 0.3135353 | L24: 0.2789271 | M24: 103.59375 | N24: 104.1225962 | O24: 0.06 | P24: 136 | Q24: 44 | S24: 1.069444444 | T24: =NSbondPrice(prices!$P$2,prices!B24,prices!C24/100,'nelson siegel ASK'!$E$4,'nelson siegel ASK'!$E$5,'nelson siegel ASK'!$E$6,'nelson siegel ASK'!$E$7) -> 103.9888371
A25: 912828ES5 | B25: 1/15/2011 | C25: 4.25 | D25: 0.9616438356 | E25: 7/15/2010 | F25: 103.75 | G25: 103.78125 | H25: 0.9538790737 | I25: 0.9538798619 | J25: 0.3344207 | K25: 0.3502117 | L25: 0.3186333 | M25: 103.78125 | N25: 103.9338743 | O25: 0.06 | P25: 166 | Q25: 14 | R25: =G25+S25 -> 104.1118056 | S25: 0.3305555556 | T25: =NSbondPrice(prices!$P$2,prices!B25,prices!C25/100,'nelson siegel ASK'!$E$4,'nelson siegel ASK'!$E$5,'nelson siegel ASK'!$E$6,'nelson siegel ASK'!$E$7) -> 103.7602735
A26: 9128276T4 | B26: 2/15/2011 | C26: 5 | D26: 1.046575342 | E26: 2/15/2010 | F26: 104.8125 | G26: 104.875 | H26: 1.013918518 | I26: 1.013926561 | J26: 0.3687383 | K26: 0.3975756 | L26: 0.3399139 | M26: 104.875 | N26: 107.1304348 | O26: 0.06 | P26: 16 | Q26: 164 | R26: =G26+S26 -> 109.4305556 | S26: 4.555555556 | T26: =NSbondPrice(prices!$P$2,prices!B26,prices!C26/100,'nelson siegel ASK'!$E$4,'nelson siegel ASK'!$E$5,'nelson siegel ASK'!$E$6,'nelson siegel ASK'!$E$7) -> 106.9072342
A27: 912828EX4 | B27: 2/28/2011 | C27: 4.5 | D27: 1.082191781 | E27: 2/28/2010 | F27: 104.40625 | G27: 104.46875 | H27: 1.053911067 | I27: 1.053918162 | J27: 0.3992929 | K27: 0.4272482 | L27: 0.37135 | M27: 104.46875 | N27: 106.3333909 | O27: 0.06 | P27: 31 | Q27: 149 | R27: 108.19375 | S27: 3.725 | T27: =NSbondPrice(prices!$P$2,prices!B27,prices!C27/100,'nelson siegel ASK'!$E$4,'nelson siegel ASK'!$E$5,'nelson siegel ASK'!$E$6,'nelson siegel ASK'!$E$7) -> 106.1109815
A28: 912828FA3 | B28: 3/31/2011 | C28: 4.75 | D28: 1.167123288 | E28: 3/31/2010 | F28: 105 | G28: 105.0625 | H28: 1.136951454 | I28: 1.136958341 | J28: 0.4348794 | K28: 0.4607256 | L28: 0.4090443 | M28: 105.0625 | N28: 106.6284341 | O28: 0.06 | P28: 61 | Q28: 119 | R28: 108.2027778 | S28: 3.140277778 | T28: =NSbondPrice(prices!$P$2,prices!B28,prices!C28/100,'nelson siegel ASK'!$E$4,'nelson siegel ASK'!$E$5,'nelson siegel ASK'!$E$6,'nelson siegel ASK'!$E$7) -> 106.3635671
A29: 912828FD7 | B29: 4/30/2011 | C29: 4.875 | D29: 1.249315068 | E29: 4/30/2010 | F29: 105.453125 | G29: 105.515625 | H29: 1.219934432 | I29: 1.219940998 | J29: 0.4828763 | K29: 0.5069507 | L29: 0.4588121 | M29: 105.515625 | N29: 106.7141747 | O29: 0.06 | P29: 91 | Q29: 89 | R29: 107.9260417 | S29: 2.410416667 | T29: =NSbondPrice(prices!$P$2,prices!B29,prices!C29/100,'nelson siegel ASK'!$E$4,'nelson siegel ASK'!$E$5,'nelson siegel ASK'!$E$6,'nelson siegel ASK'!$E$7) -> 106.4146343
A30: 912828FH8 | B30: 5/31/2011 | C30: 4.875 | D30: 1.334246575 | E30: 5/31/2010 | F30: 105.765625 | G30: 105.828125 | H30: 1.303692905 | I30: 1.303699057 | J30: 0.5209441 | K30: 0.5434962 | L30: 0.4984012 | M30: 105.828125 | N30: 106.6183036 | O30: 0.06 | P30: 121 | Q30: 59 | R30: 107.4260417 | S30: 1.597916667 | T30: =NSbondPrice(prices!$P$2,prices!B30,prices!C30/100,'nelson siegel ASK'!$E$4,'nelson siegel ASK'!$E$5,'nelson siegel ASK'!$E$6,'nelson siegel ASK'!$E$7) -> 106.2825447
A31: 912828FK1 | B31: 6/30/2011 | C31: 5.125 | D31: 1.416438356 | E31: 6/30/2010 | F31: 106.421875 | G31: 106.484375 | H31: 1.38679161 | I31: 1.386797643 | J31: 0.5640659 | K31: 0.585219 | L31: 0.5429213 | M31: 106.484375 | N31: 106.8807838 | O31: 0.06 | P31: 151 | Q31: 29 | R31: 107.3100694 | S31: 0.8256944444 | T31: =NSbondPrice(prices!$P$2,prices!B31,prices!C31/100,'nelson siegel ASK'!$E$4,'nelson siegel ASK'!$E$5,'nelson siegel ASK'!$E$6,'nelson siegel ASK'!$E$7) -> 106.5101657
A32: 912828FN5 | B32: 7/31/2011 | C32: 4.875 | D32: 1.501369863 | E32: 1/31/2010 | F32: 106.359375 | G32: 106.421875 | H32: 1.441059649 | I32: 1.441074366 | J32: 0.6115277 | K32: 0.631526 | L32: 0.5915373 | M32: 106.421875 | N32: 108.8196332 | O32: 0.06 | P32: 1 | Q32: 179 | R32: 111.2697917 | S32: 4.847916667 | T32: =NSbondPrice(prices!$P$2,prices!B32,prices!C32/100,'nelson siegel ASK'!$E$4,'nelson siegel ASK'!$E$5,'nelson siegel ASK'!$E$6,'nelson siegel ASK'!$E$7) -> 108.4099478
A33: 9128277B2 | B33: 8/15/2011 | C33: 5 | D33: 1.542465753 | E33: 2/15/2010 | F33: 106.78125 | G33: 106.84375 | H33: 1.48028473 | I33: 1.480299327 | J33: 0.5755875 | K33: 0.5950024 | L33: 0.5561801 | M33: 106.84375 | N33: 109.0991848 | O33: 0.06 | P33: 16 | Q33: 164 | R33: 111.3993056 | S33: 4.555555556 | T33: =NSbondPrice(prices!$P$2,prices!B33,prices!C33/100,'nelson siegel ASK'!$E$4,'nelson siegel ASK'!$E$5,'nelson siegel ASK'!$E$6,'nelson siegel ASK'!$E$7) -> 108.5836388
A34: 912828FS4 | B34: 8/31/2011 | C34: 4.625 | D34: 1.58630137 | E34: 2/28/2010 | F34: 106.21875 | G34: 106.28125 | H34: 1.52166026 | I34: 1.521673665 | J34: 0.6560238 | K34: 0.6750759 | L34: 0.6369791 | M34: 106.28125 | N34: 108.1976865 | O34: 0.06 | P34: 31 | Q34: 149 | R34: 110.1097222 | S34: 3.828472222 | T34: =NSbondPrice(prices!$P$2,prices!B34,prices!C34/100,'nelson siegel ASK'!$E$4,'nelson siegel ASK'!$E$5,'nelson siegel ASK'!$E$6,'nelson siegel ASK'!$E$7) -> 107.760838
A35: 912828FU9 | B35: 9/30/2011 | C35: 4.5 | D35: 1.668493151 | E35: 3/31/2010 | F35: 106.28125 | G35: 106.34375 | H35: 1.607916222 | I35: 1.607928659 | J35: 0.6918674 | K35: 0.7099627 | L35: 0.6737792 | M35: 106.34375 | N35: 107.8272665 | O35: 0.06 | P35: 61 | Q35: 119 | R35: 109.31875 | S35: 2.975 | T35: =NSbondPrice(prices!$P$2,prices!B35,prices!C35/100,'nelson siegel ASK'!$E$4,'nelson siegel ASK'!$E$5,'nelson siegel ASK'!$E$6,'nelson siegel ASK'!$E$7) -> 107.3302486
A36: 912828FW5 | B36: 10/31/2011 | C36: 4.625 | D36: 1.753424658 | E36: 4/30/2010 | F36: 106.734375 | G36: 106.796875 | H36: 1.690113961 | I36: 1.690126071 | J36: 0.7354327 | K36: 0.7526345 | L36: 0.7182374 | M36: 106.796875 | N36: 107.9339606 | O36: 0.06 | P36: 91 | Q36: 89 | R36: 109.0836806 | S36: 2.286805556 | T36: =NSbondPrice(prices!$P$2,prices!B36,prices!C36/100,'nelson siegel ASK'!$E$4,'nelson siegel ASK'!$E$5,'nelson siegel ASK'!$E$6,'nelson siegel ASK'!$E$7) -> 107.3927816
A37: 912828GA2 | B37: 11/30/2011 | C37: 4.5 | D37: 1.835616438 | E37: 5/31/2010 | F37: 106.71875 | G37: 106.78125 | H37: 1.775430428 | I37: 1.775441738 | J37: 0.7927259 | K37: 0.8091704 | L37: 0.7762877 | M37: 106.78125 | N37: 107.5106456 | O37: 0.06 | P37: 121 | Q37: 59 | R37: 108.25625 | S37: 1.475 | T37: =NSbondPrice(prices!$P$2,prices!B37,prices!C37/100,'nelson siegel ASK'!$E$4,'nelson siegel ASK'!$E$5,'nelson siegel ASK'!$E$6,'nelson siegel ASK'!$E$7) -> 106.9568399
A38: 912828GC8 | B38: 12/31/2011 | C38: 4.625 | D38: 1.920547945 | E38: 6/30/2010 | F38: 107.15625 | G38: 107.21875 | H38: 1.858544121 | I38: 1.858555185 | J38: 0.8478667 | K38: 0.8635704 | L38: 0.8321689 | M38: 107.21875 | N38: 107.5764848 | O38: 0.06 | P38: 151 | Q38: 29 | R38: 107.9638889 | S38: 0.7451388889 | T38: =NSbondPrice(prices!$P$2,prices!B38,prices!C38/100,'nelson siegel ASK'!$E$4,'nelson siegel ASK'!$E$5,'nelson siegel ASK'!$E$6,'nelson siegel ASK'!$E$7) -> 107.0085233
A39: 912828GF1 | B39: 1/31/2012 | C39: 4.75 | D39: 2.005479452 | E39: 1/31/2010 | F39: 107.671875 | G39: 107.734375 | H39: 1.900688984 | I39: 1.900711379 | J39: 0.871992 | K39: 0.8870012 | L39: 0.8569885 | M39: 107.734375 | N39: 110.0706522 | O39: 0.06 | P39: 1 | Q39: 179 | R39: 112.4579861 | S39: 4.723611111 | T39: =NSbondPrice(prices!$P$2,prices!B39,prices!C39/100,'nelson siegel ASK'!$E$4,'nelson siegel ASK'!$E$5,'nelson siegel ASK'!$E$6,'nelson siegel ASK'!$E$7) -> 109.4127976
A40: 9128277L0 | B40: 2/15/2012 | C40: 4.875 | D40: 2.046575342 | E40: 2/15/2010 | F40: 107.953125 | G40: 108.015625 | H40: 1.938841267 | I40: 1.938863685 | J40: 0.9314968 | K40: 0.9461957 | L40: 0.9168033 | M40: 108.015625 | N40: 110.2146739 | O40: 0.06 | P40: 16 | Q40: 164 | R40: 112.4572917 | S40: 4.441666667 | T40: =NSbondPrice(prices!$P$2,prices!B40,prices!C40/100,'nelson siegel ASK'!$E$4,'nelson siegel ASK'!$E$5,'nelson siegel ASK'!$E$6,'nelson siegel ASK'!$E$7) -> 109.6174131
A41: 912828GK0 | B41: 2/29/2012 | C41: 4.625 | D41: 2.084931507 | E41: 2/28/2010 | F41: 107.578125 | G41: 107.640625 | H41: 1.980617748 | I41: 1.980638888 | J41: 0.9320882 | K41: 0.9465635 | L41: 0.9176182 | M41: 107.640625 | N41: 109.5570615 | O41: 0.06 | P41: 31 | Q41: 149 | R41: 111.4690972 | S41: 3.828472222 | T41: =NSbondPrice(prices!$P$2,prices!B41,prices!C41/100,'nelson siegel ASK'!$E$4,'nelson siegel ASK'!$E$5,'nelson siegel ASK'!$E$6,'nelson siegel ASK'!$E$7) -> 108.9052036
A42: 912828GM6 | B42: 3/31/2012 | C42: 4.5 | D42: 2.169863014 | E42: 3/31/2010 | F42: 107.46875 | G42: 107.53125 | H42: 2.067768164 | I42: 2.067788076 | J42: 0.9975624 | K42: 1.0115011 | L42: 0.9836287 | M42: 107.53125 | N42: 109.0147665 | O42: 0.06 | P42: 61 | Q42: 119 | R42: 110.50625 | S42: 2.975 | T42: =NSbondPrice(prices!$P$2,prices!B42,prices!C42/100,'nelson siegel ASK'!$E$4,'nelson siegel ASK'!$E$5,'nelson siegel ASK'!$E$6,'nelson siegel ASK'!$E$7) -> 108.347421
A43: 912828GQ7 | B43: 4/30/2012 | C43: 4.5 | D43: 2.252054795 | E43: 4/30/2010 | F43: 107.671875 | G43: 107.734375 | H43: 2.151531879 | I43: 2.151551056 | J43: 1.0332598 | K43: 1.0466796 | L43: 1.0198448 | M43: 107.734375 | N43: 108.8407286 | O43: 0.06 | P43: 91 | Q43: 89 | R43: 109.959375 | S43: 2.225 | T43: =NSbondPrice(prices!$P$2,prices!B43,prices!C43/100,'nelson siegel ASK'!$E$4,'nelson siegel ASK'!$E$5,'nelson siegel ASK'!$E$6,'nelson siegel ASK'!$E$7) -> 108.1341556
A44: 912828GU8 | B44: 5/31/2012 | C44: 4.75 | D44: 2.336986301 | E44: 5/31/2010 | F44: 108.4375 | G44: 108.5 | H44: 2.230153663 | I44: 2.230172946 | J44: 1.0717713 | K44: 1.0846696 | L44: 1.0588776 | M44: 108.5 | N44: 109.2699176 | O44: 0.06 | P44: 121 | Q44: 59 | R44: 110.0569444 | S44: 1.556944444 | T44: =NSbondPrice(prices!$P$2,prices!B44,prices!C44/100,'nelson siegel ASK'!$E$4,'nelson siegel ASK'!$E$5,'nelson siegel ASK'!$E$6,'nelson siegel ASK'!$E$7) -> 108.5088182
A45: 912828GW4 | B45: 6/30/2012 | C45: 4.875 | D45: 2.419178082 | E45: 6/30/2010 | F45: 108.921875 | G45: 108.984375 | H45: 2.31229826 | I45: 2.312317256 | J45: 1.1184229 | K45: 1.1308555 | L45: 1.1059947 | M45: 108.984375 | N45: 109.3614468 | O45: 0.06 | P45: 151 | Q45: 29 | R45: 109.7697917 | S45: 0.7854166667 | T45: =NSbondPrice(prices!$P$2,prices!B45,prices!C45/100,'nelson siegel ASK'!$E$4,'nelson siegel ASK'!$E$5,'nelson siegel ASK'!$E$6,'nelson siegel ASK'!$E$7) -> 108.5580645
A46: 912828GZ7 | B46: 7/31/2012 | C46: 4.625 | D46: 2.504109589 | E46: 1/31/2010 | F46: 108.5 | G46: 108.5625 | H46: 2.352814217 | I46: 2.352845547 | J46: 1.163778 | K46: 1.1758364 | L46: 1.1517239 | M46: 108.5625 | N46: 110.8372962 | O46: 0.06 | P46: 1 | Q46: 179 | R46: 113.1618056 | S46: 4.599305556 | T46: =NSbondPrice(prices!$P$2,prices!B46,prices!C46/100,'nelson siegel ASK'!$E$4,'nelson siegel ASK'!$E$5,'nelson siegel ASK'!$E$6,'nelson siegel ASK'!$E$7) -> 110.0117308
A47: 912828AJ9 | B47: 8/15/2012 | C47: 4.375 | D47: 2.545205479 | E47: 2/15/2010 | F47: 108.078125 | G47: 108.140625 | H47: 2.40104958 | I47: 2.401079124 | J47: 1.1378765 | K47: 1.1497688 | L47: 1.1259884 | M47: 108.140625 | N47: 110.1141304 | O47: 0.06 | P47: 16 | Q47: 164 | R47: 112.1267361 | S47: 3.986111111 | T47: =NSbondPrice(prices!$P$2,prices!B47,prices!C47/100,'nelson siegel ASK'!$E$4,'nelson siegel ASK'!$E$5,'nelson siegel ASK'!$E$6,'nelson siegel ASK'!$E$7) -> 109.1448178
A48: 912828HC7 | B48: 8/31/2012 | C48: 4.125 | D48: 2.589041096 | E48: 2/28/2010 | F48: 107.46875 | G48: 107.53125 | H48: 2.44519969 | I48: 2.445227588 | J48: 1.1713879 | K48: 1.1831608 | L48: 1.1596191 | M48: 107.53125 | N48: 109.2405041 | O48: 0.06 | P48: 31 | Q48: 149 | R48: 110.9458333 | S48: 3.414583333 | T48: =NSbondPrice(prices!$P$2,prices!B48,prices!C48/100,'nelson siegel ASK'!$E$4,'nelson siegel ASK'!$E$5,'nelson siegel ASK'!$E$6,'nelson siegel ASK'!$E$7) -> 108.2939694
A49: 912828HE3 | B49: 9/30/2012 | C49: 4.25 | D49: 2.671232877 | E49: 3/31/2010 | F49: 107.859375 | G49: 107.921875 | H49: 2.525969111 | I49: 2.525996791 | J49: 1.2363437 | K49: 1.2477353 | L49: 1.2249562 | M49: 107.921875 | N49: 109.3229739 | O49: 0.06 | P49: 61 | Q49: 119 | R49: 110.7315972 | S49: 2.809722222 | T49: =NSbondPrice(prices!$P$2,prices!B49,prices!C49/100,'nelson siegel ASK'!$E$4,'nelson siegel ASK'!$E$5,'nelson siegel ASK'!$E$6,'nelson siegel ASK'!$E$7) -> 108.367038
A50: 912828HG8 | B50: 10/31/2012 | C50: 3.875 | D50: 2.756164384 | E50: 4/30/2010 | F50: 106.96875 | G50: 107.03125 | H50: 2.621078638 | I50: 2.6211037 | J50: 1.2796312 | K50: 1.290748 | L50: 1.2685183 | M50: 107.03125 | N50: 107.9839434 | O50: 0.06 | P50: 91 | Q50: 89 | R50: 108.9472222 | S50: 1.915972222 | T50: =NSbondPrice(prices!$P$2,prices!B50,prices!C50/100,'nelson siegel ASK'!$E$4,'nelson siegel ASK'!$E$5,'nelson siegel ASK'!$E$6,'nelson siegel ASK'!$E$7) -> 107.00059
A51: 912828AP5 | B51: 11/15/2012 | C51: 4 | D51: 2.797260274 | E51: 5/15/2010 | F51: 107.4375 | G51: 107.5 | H51: 2.658708369 | I51: 2.658733647 | J51: 1.2715634 | K51: 1.2824886 | L51: 1.260642 | M51: 107.5 | N51: 108.3176796 | O51: 0.06 | P51: 106 | Q51: 74 | R51: 109.1444444 | S51: 1.644444444 | T51: =NSbondPrice(prices!$P$2,prices!B51,prices!C51/100,'nelson siegel ASK'!$E$4,'nelson siegel ASK'!$E$5,'nelson siegel ASK'!$E$6,'nelson siegel ASK'!$E$7) -> 107.2240063
A52: 912828HK9 | B52: 11/30/2012 | C52: 3.375 | D52: 2.838356164 | E52: 5/31/2010 | F52: 105.625 | G52: 105.6875 | H52: 2.720300526 | I52: 2.72032242 | J52: 1.3367572 | K52: 1.347648 | L52: 1.3258702 | M52: 105.6875 | N52: 106.2345467 | O52: 0.06 | P52: 121 | Q52: 59 | R52: 106.79375 | S52: 1.10625 | T52: =NSbondPrice(prices!$P$2,prices!B52,prices!C52/100,'nelson siegel ASK'!$E$4,'nelson siegel ASK'!$E$5,'nelson siegel ASK'!$E$6,'nelson siegel ASK'!$E$7) -> 105.245648
A53: 912828HM5 | B53: 12/31/2012 | C53: 3.625 | D53: 2.923287671 | E53: 6/30/2010 | F53: 106.421875 | G53: 106.484375 | H53: 2.797136657 | I53: 2.797159165 | J53: 1.3648925 | K53: 1.375433 | L53: 1.3543557 | M53: 106.484375 | N53: 106.7647617 | O53: 0.06 | P53: 151 | Q53: 29 | R53: 107.0684028 | S53: 0.5840277778 | T53: =NSbondPrice(prices!$P$2,prices!B53,prices!C53/100,'nelson siegel ASK'!$E$4,'nelson siegel ASK'!$E$5,'nelson siegel ASK'!$E$6,'nelson siegel ASK'!$E$7) -> 105.6928599
A54: 912828HQ6 | B54: 1/31/2013 | C54: 2.875 | D54: 3.008219178 | E54: 1/31/2010 | F54: 104.265625 | G54: 104.328125 | H54: 2.867011086 | I54: 2.867040679 | J54: 1.4110013 | K54: 1.4213867 | L54: 1.4006195 | M54: 104.328125 | N54: 105.7421875 | O54: 0.06 | P54: 1 | Q54: 179 | R54: 107.1871528 | S54: 2.859027778 | T54: =NSbondPrice(prices!$P$2,prices!B54,prices!C54/100,'nelson siegel ASK'!$E$4,'nelson siegel ASK'!$E$5,'nelson siegel ASK'!$E$6,'nelson siegel ASK'!$E$7) -> 104.6343405
A55: 912828AU4 | B55: 2/15/2013 | C55: 3.875 | D55: 3.049315068 | E55: 2/15/2010 | F55: 107.265625 | G55: 107.328125 | H55: 2.864618848 | I55: 2.864655544 | J55: 1.4208235 | K55: 1.4309003 | L55: 1.4107502 | M55: 107.328125 | N55: 109.076087 | O55: 0.06 | P55: 16 | Q55: 164 | R55: 110.8586806 | S55: 3.530555556 | T55: =NSbondPrice(prices!$P$2,prices!B55,prices!C55/100,'nelson siegel ASK'!$E$4,'nelson siegel ASK'!$E$5,'nelson siegel ASK'!$E$6,'nelson siegel ASK'!$E$7) -> 107.9228557
A56: 912828HT0 | B56: 2/28/2013 | C56: 2.75 | D56: 3.084931507 | E56: 2/28/2010 | F56: 103.890625 | G56: 103.953125 | H56: 2.949987096 | I56: 2.950014985 | J56: 1.4456102 | K56: 1.4557677 | L56: 1.4354563 | M56: 103.953125 | N56: 105.0926278 | O56: 0.06 | P56: 31 | Q56: 149 | R56: 106.2295139 | S56: 2.276388889 | T56: =NSbondPrice(prices!$P$2,prices!B56,prices!C56/100,'nelson siegel ASK'!$E$4,'nelson siegel ASK'!$E$5,'nelson siegel ASK'!$E$6,'nelson siegel ASK'!$E$7) -> 103.9371089
A57: 912828HV5 | B57: 3/31/2013 | C57: 2.5 | D57: 3.169863014 | E57: 3/31/2010 | F57: 103.015625 | G57: 103.078125 | H57: 3.045833767 | I57: 3.045858984 | J57: 1.5117562 | K57: 1.5217101 | L57: 1.5018058 | M57: 103.078125 | N57: 103.9023008 | O57: 0.06 | P57: 61 | Q57: 119 | R57: 104.7309028 | S57: 1.652777778 | T57: =NSbondPrice(prices!$P$2,prices!B57,prices!C57/100,'nelson siegel ASK'!$E$4,'nelson siegel ASK'!$E$5,'nelson siegel ASK'!$E$6,'nelson siegel ASK'!$E$7) -> 102.7684948
A58: 912828HY9 | B58: 4/30/2013 | C58: 3.125 | D58: 3.252054795 | E58: 4/30/2010 | F58: 104.984375 | G58: 105.046875 | H58: 3.101575622 | I58: 3.101605015 | J58: 1.5384016 | K58: 1.5480011 | L58: 1.5288055 | M58: 105.046875 | N58: 105.8151761 | O58: 0.06 | P58: 91 | Q58: 89 | R58: 106.5920139 | S58: 1.545138889 | T58: =NSbondPrice(prices!$P$2,prices!B58,prices!C58/100,'nelson siegel ASK'!$E$4,'nelson siegel ASK'!$E$5,'nelson siegel ASK'!$E$6,'nelson siegel ASK'!$E$7) -> 104.6172551
A59: 912828BA7 | B59: 5/15/2013 | C59: 3.625 | D59: 3.293150685 | E59: 5/15/2010 | F59: 106.65625 | G59: 106.71875 | H59: 3.121416956 | I59: 3.121449436 | J59: 1.5356823 | K59: 1.5450746 | L59: 1.5262932 | M59: 106.71875 | N59: 107.4597721 | O59: 0.06 | P59: 106 | Q59: 74 | R59: 108.2090278 | S59: 1.490277778 | T59: =NSbondPrice(prices!$P$2,prices!B59,prices!C59/100,'nelson siegel ASK'!$E$4,'nelson siegel ASK'!$E$5,'nelson siegel ASK'!$E$6,'nelson siegel ASK'!$E$7) -> 106.1724489
A60: 912828JB7 | B60: 5/31/2013 | C60: 3.5 | D60: =(B60-$C$2)/365 -> 3.336986301 | E60: 5/31/2010 | F60: 106.15625 | G60: 106.21875 | H60: 3.16890685 | I60: 3.168938176 | J60: 1.5888856 | K60: 1.598198 | L60: 1.5795764 | M60: 106.21875 | N60: 106.7860577 | O60: 0.06 | P60: =COUPDAYSNC($P$2,B60,IF(C60>0,2,1)) -> 121 | Q60: 59 | R60: 107.3659722 | S60: =IF(C60>0,Q60/(P60+Q60)*C60,0) -> 1.147222222 | T60: =NSbondPrice(prices!$P$2,prices!B60,prices!C60/100,'nelson siegel ASK'!$E$4,'nelson siegel ASK'!$E$5,'nelson siegel ASK'!$E$6,'nelson siegel ASK'!$E$7) -> 105.5807251
A61: 912828JD3 | B61: 6/30/2013 | C61: 3.375 | D61: 3.419178082 | E61: 6/30/2010 | F61: 105.71875 | G61: 105.78125 | H61: 3.258863875 | I61: 3.258893685 | J61: 1.6402678 | K61: 1.649389 | L61: 1.6311497 | M61: 105.78125 | N61: 106.0422997 | O61: 0.06 | P61: 151 | Q61: 29 | R61: 106.325 | S61: 0.54375 | T61: =NSbondPrice(prices!$P$2,prices!B61,prices!C61/100,'nelson siegel ASK'!$E$4,'nelson siegel ASK'!$E$5,'nelson siegel ASK'!$E$6,'nelson siegel ASK'!$E$7) -> 104.8306437
A62: 912828BH2 | B62: 8/15/2013 | C62: 4.25 | D62: 3.545205479 | E62: 2/15/2010 | F62: 108.796875 | G62: 108.859375 | H62: 3.284864839 | I62: 3.284915843 | J62: 1.6770424 | K62: 1.6857061 | L62: 1.6683817 | M62: 108.859375 | N62: 110.7764946 | O62: 0.06 | P62: 16 | Q62: 164 | R62: 112.7315972 | S62: 3.872222222 | T62: =NSbondPrice(prices!$P$2,prices!B62,prices!C62/100,'nelson siegel ASK'!$E$4,'nelson siegel ASK'!$E$5,'nelson siegel ASK'!$E$6,'nelson siegel ASK'!$E$7) -> 109.4470437
A63: 912828BR0 | B63: 11/15/2013 | C63: 4.25 | D63: 3.797260274 | E63: 5/15/2010 | F63: 109 | G63: 109.0625 | H63: 3.530938948 | I63: 3.530986873 | J63: 1.7782074 | K63: 1.7863334 | L63: 1.7700842 | M63: 109.0625 | N63: 109.9312845 | O63: 0.06 | P63: 106 | Q63: 74 | R63: 110.8097222 | S63: 1.747222222 | T63: =NSbondPrice(prices!$P$2,prices!B63,prices!C63/100,'nelson siegel ASK'!$E$4,'nelson siegel ASK'!$E$5,'nelson siegel ASK'!$E$6,'nelson siegel ASK'!$E$7) -> 108.4134364
A64: 912828CA6 | B64: 2/15/2014 | C64: 4 | D64: 4.049315068 | E64: 2/15/2010 | F64: 108 | G64: 108.0625 | H64: 3.728588843 | I64: 3.728650726 | J64: 1.9282439 | K64: 1.9359493 | L64: 1.9205411 | M64: 108.0625 | N64: 109.8668478 | O64: 0.06 | P64: 16 | Q64: 164 | R64: 111.7069444 | S64: 3.644444444 | T64: =NSbondPrice(prices!$P$2,prices!B64,prices!C64/100,'nelson siegel ASK'!$E$4,'nelson siegel ASK'!$E$5,'nelson siegel ASK'!$E$6,'nelson siegel ASK'!$E$7) -> 108.3472227
A65: 912828CJ7 | B65: 5/15/2014 | C65: 4.75 | D65: 4.293150685 | E65: 5/15/2010 | F65: 111.078125 | G65: 111.140625 | H65: 3.925146924 | I65: 3.925212251 | J65: 2.0352302 | K65: 2.042407 | L65: 2.0280559 | M65: 111.140625 | N65: 112.1116195 | O65: 0.06 | P65: 106 | Q65: 74 | R65: 113.0934028 | S65: 1.952777778 | T65: =NSbondPrice(prices!$P$2,prices!B65,prices!C65/100,'nelson siegel ASK'!$E$4,'nelson siegel ASK'!$E$5,'nelson siegel ASK'!$E$6,'nelson siegel ASK'!$E$7) -> 110.5303614
A66: 912828CT5 | B66: 8/15/2014 | C66: 4.25 | D66: 4.545205479 | E66: 2/15/2010 | F66: 109.078125 | G66: 109.140625 | H66: 4.130551137 | I66: 4.130630227 | J66: 2.137616 | K66: 2.1445041 | L66: 2.1307303 | M66: 109.140625 | N66: 111.0577446 | O66: 0.06 | P66: 16 | Q66: 164 | R66: 113.0128472 | S66: 3.872222222 | T66: =NSbondPrice(prices!$P$2,prices!B66,prices!C66/100,'nelson siegel ASK'!$E$4,'nelson siegel ASK'!$E$5,'nelson siegel ASK'!$E$6,'nelson siegel ASK'!$E$7) -> 109.3289328
A67: 912828DC1 | B67: 11/15/2014 | C67: 4.25 | D67: 4.797260274 | E67: 5/15/2010 | F67: 108.921875 | G67: 108.984375 | H67: 4.375717103 | I67: 4.375792855 | J67: 2.2684586 | K67: 2.2750364 | L67: 2.2618831 | M67: 108.984375 | N67: 109.8531595 | O67: 0.06 | P67: 106 | Q67: 74 | R67: 110.7315972 | S67: 1.747222222 | T67: =NSbondPrice(prices!$P$2,prices!B67,prices!C67/100,'nelson siegel ASK'!$E$4,'nelson siegel ASK'!$E$5,'nelson siegel ASK'!$E$6,'nelson siegel ASK'!$E$7) -> 108.1070353
A68: 912828DM9 | B68: 2/15/2015 | C68: 4 | D68: 5.049315068 | E68: 2/15/2010 | F68: 107.59375 | G68: 107.65625 | H68: 4.564152295 | I68: 4.564244827 | J68: 2.387706 | K68: 2.3940385 | L68: 2.3813756 | M68: 107.65625 | N68: 109.4605978 | O68: 0.06 | P68: 16 | Q68: 164 | R68: 111.3006944 | S68: 3.644444444 | T68: =NSbondPrice(prices!$P$2,prices!B68,prices!C68/100,'nelson siegel ASK'!$E$4,'nelson siegel ASK'!$E$5,'nelson siegel ASK'!$E$6,'nelson siegel ASK'!$E$7) -> 107.7016831
A69: 912828DV9 | B69: 5/15/2015 | C69: 4.125 | D69: 5.293150685 | E69: 5/15/2010 | F69: 107.984375 | G69: 108.046875 | H69: 4.796953963 | I69: 4.79704463 | J69: 2.498944 | K69: 2.505004 | L69: 2.4928859 | M69: 108.046875 | N69: 108.890107 | O69: 0.06 | P69: 106 | Q69: =COUPDAYBS($P$2,B69,IF(C69>0,2,1)) -> 74 | R69: 109.7427083 | S69: 1.695833333 | T69: =NSbondPrice(prices!$P$2,prices!B69,prices!C69/100,'nelson siegel ASK'!$E$4,'nelson siegel ASK'!$E$5,'nelson siegel ASK'!$E$6,'nelson siegel ASK'!$E$7) -> 107.1459968
A70: 912828EE6 | B70: 8/15/2015 | C70: 4.25 | D70: 5.545205479 | E70: 2/15/2010 | F70: 108.453125 | G70: 108.515625 | H70: 4.940769023 | I70: 4.940883007 | J70: 2.5979967 | K70: 2.603801 | L70: 2.5921944 | M70: 108.515625 | N70: 110.4327446 | O70: 0.06 | P70: 16 | Q70: 164 | R70: 112.3878472 | S70: 3.872222222 | T70: =NSbondPrice(prices!$P$2,prices!B70,prices!C70/100,'nelson siegel ASK'!$E$4,'nelson siegel ASK'!$E$5,'nelson siegel ASK'!$E$6,'nelson siegel ASK'!$E$7) -> 108.6019752
A71: 912828EN6 | B71: 11/15/2015 | C71: 4.5 | D71: 5.797260274 | E71: 5/15/2010 | F71: 109.78125 | G71: 109.84375 | H71: 5.15842872 | I71: 5.158541787 | J71: 2.661095 | K71: 2.6666395 | L71: 2.6555524 | M71: 109.84375 | N71: 110.7636395 | O71: 0.06 | P71: 106 | Q71: 74 | R71: 111.69375 | S71: 1.85 | T71: =NSbondPrice(prices!$P$2,prices!B71,prices!C71/100,'nelson siegel ASK'!$E$4,'nelson siegel ASK'!$E$5,'nelson siegel ASK'!$E$6,'nelson siegel ASK'!$E$7) -> 108.7014334
A72: 912828EW6 | B72: 2/15/2016 | C72: 4.5 | D72: 6.049315068 | E72: 2/15/2010 | F72: 109.46875 | G72: 109.53125 | H72: 5.301262217 | I72: 5.301399643 | J72: 2.782474 | K72: 2.7878337 | L72: 2.777116 | M72: 109.53125 | N72: 111.5611413 | O72: 0.06 | P72: 16 | Q72: 164 | R72: 113.63125 | S72: 4.1 | T72: =NSbondPrice(prices!$P$2,prices!B72,prices!C72/100,'nelson siegel ASK'!$E$4,'nelson siegel ASK'!$E$5,'nelson siegel ASK'!$E$6,'nelson siegel ASK'!$E$7) -> 109.6104189
A73: 912828FF2 | B73: 5/15/2016 | C73: 5.125 | D73: 6.295890411 | E73: 5/15/2010 | F73: 112.90625 | G73: 112.96875 | H73: 5.469472456 | I73: 5.469613284 | J73: 2.8637662 | K73: 2.8688512 | L73: 2.8586828 | M73: 112.96875 | N73: 114.0164019 | O73: 0.06 | P73: 106 | Q73: 74 | R73: 115.0756944 | S73: 2.106944444 | T73: =NSbondPrice(prices!$P$2,prices!B73,prices!C73/100,'nelson siegel ASK'!$E$4,'nelson siegel ASK'!$E$5,'nelson siegel ASK'!$E$6,'nelson siegel ASK'!$E$7) -> 112.0123935
A74: 912828FQ8 | B74: 8/15/2016 | C74: 4.875 | D74: 6.547945205 | E74: 2/15/2010 | F74: 111.453125 | G74: 111.515625 | H74: 5.628736686 | I74: 5.628900799 | J74: 2.9344165 | K74: 2.9393725 | L74: 2.9294622 | M74: 111.515625 | N74: 113.7146739 | O74: 0.06 | P74: 16 | Q74: 164 | R74: 115.9572917 | S74: 4.441666667 | T74: =NSbondPrice(prices!$P$2,prices!B74,prices!C74/100,'nelson siegel ASK'!$E$4,'nelson siegel ASK'!$E$5,'nelson siegel ASK'!$E$6,'nelson siegel ASK'!$E$7) -> 111.5456503
A75: 912828FY1 | B75: 11/15/2016 | C75: 4.625 | D75: 6.8 | E75: 5/15/2010 | F75: 109.78125 | G75: 109.84375 | H75: 5.907549184 | I75: 5.907705523 | J75: 3.0164881 | K75: 3.0213369 | L75: 3.011641 | M75: 109.84375 | N75: 110.789192 | O75: 0.06 | P75: 106 | Q75: 74 | R75: 111.7451389 | S75: 1.901388889 | T75: =NSbondPrice(prices!$P$2,prices!B75,prices!C75/100,'nelson siegel ASK'!$E$4,'nelson siegel ASK'!$E$5,'nelson siegel ASK'!$E$6,'nelson siegel ASK'!$E$7) -> 108.5164346
A76: 912828GH7 | B76: 2/15/2017 | C76: 4.625 | D76: 7.052054795 | E76: 2/15/2010 | F76: 109.59375 | G76: 109.65625 | H76: 6.032054254 | I76: 6.032238361 | J76: 3.0944658 | K76: 3.0991757 | L76: 3.0897574 | M76: 109.65625 | N76: 111.7425272 | O76: 0.06 | P76: 16 | Q76: 164 | R76: 113.8701389 | S76: 4.213888889 | T76: =NSbondPrice(prices!$P$2,prices!B76,prices!C76/100,'nelson siegel ASK'!$E$4,'nelson siegel ASK'!$E$5,'nelson siegel ASK'!$E$6,'nelson siegel ASK'!$E$7) -> 109.3965155
A77: 912828GS3 | B77: 5/15/2017 | C77: 4.5 | D77: 7.295890411 | E77: 5/15/2010 | F77: 108.546875 | G77: 108.609375 | H77: 6.295661618 | I77: 6.295839454 | J77: 3.1729444 | K77: 3.1775502 | L77: 3.1683402 | M77: 108.609375 | N77: 109.5292645 | O77: 0.06 | P77: 106 | Q77: 74 | R77: 110.459375 | S77: 1.85 | T77: =NSbondPrice(prices!$P$2,prices!B77,prices!C77/100,'nelson siegel ASK'!$E$4,'nelson siegel ASK'!$E$5,'nelson siegel ASK'!$E$6,'nelson siegel ASK'!$E$7) -> 107.1445134
A78: 912828HA1 | B78: 8/15/2017 | C78: 4.75 | D78: 7.547945205 | E78: 2/15/2010 | F78: 110.09375 | G78: 110.15625 | H78: 6.370661531 | I78: 6.370872232 | J78: 3.2277207 | K78: 3.2321611 | L78: 3.2232818 | M78: 110.15625 | N78: 112.298913 | O78: 0.06 | P78: 16 | Q78: 164 | R78: 114.4840278 | S78: 4.327777778 | T78: =NSbondPrice(prices!$P$2,prices!B78,prices!C78/100,'nelson siegel ASK'!$E$4,'nelson siegel ASK'!$E$5,'nelson siegel ASK'!$E$6,'nelson siegel ASK'!$E$7) -> 109.7525724
A79: 912828HH6 | B79: 11/15/2017 | C79: 4.25 | D79: 7.8 | E79: 5/15/2010 | F79: 106.40625 | G79: 106.46875 | H79: 6.703407375 | I79: 6.703605771 | J79: 3.3058534 | K79: 3.3102702 | L79: 3.3014381 | M79: 106.46875 | N79: 107.3375345 | O79: 0.06 | P79: 106 | Q79: 74 | R79: 108.2159722 | S79: 1.747222222 | T79: =NSbondPrice(prices!$P$2,prices!B79,prices!C79/100,'nelson siegel ASK'!$E$4,'nelson siegel ASK'!$E$5,'nelson siegel ASK'!$E$6,'nelson siegel ASK'!$E$7) -> 104.6999459
A80: 912828HR4 | B80: 2/15/2018 | C80: 3.5 | D80: 8.052054795 | E80: 2/15/2010 | F80: 100.875 | G80: 100.9375 | H80: 6.980170909 | I80: 6.98038355 | J80: 3.3703206 | K80: 3.3747633 | L80: 3.3658795 | M80: 100.9375 | N80: 102.5163043 | O80: 0.06 | P80: 16 | Q80: 164 | R80: 104.1263889 | S80: 3.188888889 | T80: =NSbondPrice(prices!$P$2,prices!B80,prices!C80/100,'nelson siegel ASK'!$E$4,'nelson siegel ASK'!$E$5,'nelson siegel ASK'!$E$6,'nelson siegel ASK'!$E$7) -> 99.67915397
A81: 912828HZ6 | B81: 5/15/2018 | C81: 3.875 | D81: 8.295890411 | E81: 5/15/2010 | F81: 103.25 | G81: 103.3125 | H81: 7.141379371 | I81: 7.141596334 | J81: 3.4168558 | K81: 3.4211328 | L81: 3.4125802 | M81: 103.3125 | N81: 104.1046271 | O81: 0.06 | P81: 106 | Q81: 74 | R81: 104.9055556 | S81: 1.593055556 | T81: =NSbondPrice(prices!$P$2,prices!B81,prices!C81/100,'nelson siegel ASK'!$E$4,'nelson siegel ASK'!$E$5,'nelson siegel ASK'!$E$6,'nelson siegel ASK'!$E$7) -> 101.1414997
A82: 912810DP0 | B82: 5/15/2016 | C82: 11.25 | D82: 6.295890411 | E82: 2/15/2010 | F82: 142.171875 | G82: 142.234375 | H82: 4.035211506 | I82: 4.035345886 | J82: 2.3386218 | K82: 2.3439421 | L82: 2.3333029 | M82: 142.234375 | N82: 147.3091033 | O82: 0.06 | P82: 106 | Q82: 74 | R82: 146.859375 | S82: 4.625 | T82: =NSbondPrice(prices!$P$2,prices!B82,prices!C82/100,'nelson siegel ASK'!$E$4,'nelson siegel ASK'!$E$5,'nelson siegel ASK'!$E$6,'nelson siegel ASK'!$E$7) -> 148.8600929
A83: 912810DS4 | B83: 11/15/2016 | C83: 10.625 | D83: 6.8 | E83: 2/15/2010 | F83: 141.609375 | G83: 141.671875 | H83: 4.401492954 | I83: 4.401644892 | J83: 2.5330553 | K83: 2.5379657 | L83: 2.5281462 | M83: 141.671875 | N83: 146.4646739 | O83: 0.06 | P83: 106 | Q83: 74 | R83: 146.0399306 | S83: 4.368055556 | T83: =NSbondPrice(prices!$P$2,prices!B83,prices!C83/100,'nelson siegel ASK'!$E$4,'nelson siegel ASK'!$E$5,'nelson siegel ASK'!$E$6,'nelson siegel ASK'!$E$7) -> 146.9782048
A84: 912810DT2 | B84: 5/15/2017 | C84: 9.875 | D84: 7.295890411 | E84: 5/15/2010 | F84: 138.546875 | G84: 138.609375 | H84: 4.694179756 | I84: 4.694324692 | J84: 2.6490986 | K84: 2.6538968 | L84: 2.6443018 | M84: 138.609375 | N84: 140.6280214 | O84: 0.06 | P84: 106 | Q84: 74 | R84: 142.6690972 | S84: 4.059722222 | T84: =NSbondPrice(prices!$P$2,prices!B84,prices!C84/100,'nelson siegel ASK'!$E$4,'nelson siegel ASK'!$E$5,'nelson siegel ASK'!$E$6,'nelson siegel ASK'!$E$7) -> 143.6578088
A85: 912810DV7 | B85: 8/15/2017 | C85: 9.25 | D85: 7.547945205 | E85: 2/15/2010 | F85: 135.96875 | G85: 136.03125 | H85: 4.825424591 | I85: 4.825594233 | J85: 2.74881 | K85: 2.7534941 | L85: 2.7441272 | M85: 136.03125 | N85: 140.2038043 | O85: 0.06 | P85: 16 | Q85: 164 | R85: 144.4590278 | S85: 8.427777778 | T85: =NSbondPrice(prices!$P$2,prices!B85,prices!C85/100,'nelson siegel ASK'!$E$4,'nelson siegel ASK'!$E$5,'nelson siegel ASK'!$E$6,'nelson siegel ASK'!$E$7) -> 142.2863087
A86: 912810DW5 | B86: 5/15/2018 | C86: 7.25 | D86: 8.295890411 | E86: 5/15/2010 | F86: 124.96875 | G86: 125.03125 | H86: 5.242749119 | I86: 5.242906623 | J86: 2.8787285 | K86: 2.8835095 | L86: 2.8739489 | M86: 125.03125 | N86: 126.5132942 | O86: 0.06 | P86: 106 | Q86: 74 | R86: 128.0118056 | S86: 2.980555556 | T86: =NSbondPrice(prices!$P$2,prices!B86,prices!C86/100,'nelson siegel ASK'!$E$4,'nelson siegel ASK'!$E$5,'nelson siegel ASK'!$E$6,'nelson siegel ASK'!$E$7) -> 126.5361813
A87: 912810DX3 | B87: 11/15/2018 | C87: 7.5 | D87: 8.8 | E87: 5/15/2010 | F87: 127.1875 | G87: 127.25 | H87: 5.557351207 | I87: 5.557531633 | J87: 3.0359346 | K87: 3.0403689 | L87: 3.0315016 | M87: 127.25 | N87: 128.7831492 | O87: 0.06 | P87: 106 | Q87: 74 | R87: 130.3333333 | S87: 3.083333333 | T87: =NSbondPrice(prices!$P$2,prices!B87,prices!C87/100,'nelson siegel ASK'!$E$4,'nelson siegel ASK'!$E$5,'nelson siegel ASK'!$E$6,'nelson siegel ASK'!$E$7) -> 128.758221
A88: 912810DY1 | B88: 2/15/2019 | C88: 8.75 | D88: 9.052054795 | E88: 5/15/2010 | F88: 136.453125 | G88: 136.515625 | H88: 5.754020721 | I88: 5.754225378 | J88: 3.1186604 | K88: 3.1226498 | L88: 3.1146721 | M88: 136.515625 | N88: 138.304299 | O88: 0.06 | P88: 16 | Q88: 164 | R88: 144.4878472 | S88: 7.972222222 | T88: =NSbondPrice(prices!$P$2,prices!B88,prices!C88/100,'nelson siegel ASK'!$E$4,'nelson siegel ASK'!$E$5,'nelson siegel ASK'!$E$6,'nelson siegel ASK'!$E$7) -> 141.1475517
A89: 912810DZ8 | B89: 8/15/2019 | C89: 8.875 | D89: 9.547945205 | E89: 2/15/2010 | F89: 137.734375 | G89: 137.796875 | H89: 5.804662269 | I89: 5.804895815 | J89: 3.2028477 | K89: 3.2067063 | L89: 3.1989901 | M89: 137.796875 | N89: 141.8002717 | O89: 0.06 | P89: 16 | Q89: 164 | R89: 145.8829861 | S89: 8.086111111 | T89: =NSbondPrice(prices!$P$2,prices!B89,prices!C89/100,'nelson siegel ASK'!$E$4,'nelson siegel ASK'!$E$5,'nelson siegel ASK'!$E$6,'nelson siegel ASK'!$E$7) -> 142.9569204
A90: 912810EA2 | B90: 2/15/2020 | C90: 9.125 | D90: 10.05205479 | E90: 5/15/2010 | F90: 141.796875 | G90: 141.859375 | H90: 6.321884126 | I90: 6.32213179 | J90: 3.3150588 | K90: 3.3185563 | L90: 3.3115624 | M90: 141.859375 | N90: 143.7247065 | O90: 0.06 | P90: 16 | Q90: 164 | R90: =G90+S90 -> 150.1732639 | S90: 8.313888889 | T90: =NSbondPrice(prices!$P$2,prices!B90,prices!C90/100,'nelson siegel ASK'!$E$4,'nelson siegel ASK'!$E$5,'nelson siegel ASK'!$E$6,'nelson siegel ASK'!$E$7) -> 145.8606086
A91: 912810EB0 | B91: 5/15/2020 | C91: 9 | D91: 10.29863014 | E91: 5/15/2010 | F91: 141.96875 | G91: 142.03125 | H91: 6.626003006 | I91: 6.626273651 | J91: 3.4273134 | K91: 3.4306487 | L91: 3.4239789 | M91: 142.03125 | N91: 143.871029 | O91: 0.06 | P91: 106 | Q91: 74 | R91: 145.73125 | S91: 3.7 | T91: =NSbondPrice(prices!$P$2,prices!B91,prices!C91/100,'nelson siegel ASK'!$E$4,'nelson siegel ASK'!$E$5,'nelson siegel ASK'!$E$6,'nelson siegel ASK'!$E$7) -> 142.8979641
A92: 912810EC8 | B92: 8/15/2020 | C92: 8.875 | D92: 10.55068493 | E92: 2/15/2010 | F92: 141.328125 | G92: 141.390625 | H92: 6.680441782 | I92: 6.680743519 | J92: 3.5019621 | K92: 3.5052368 | L92: 3.4986883 | M92: 141.390625 | N92: 145.3940217 | O92: 0.06 | P92: 16 | Q92: 164 | R92: 149.4767361 | S92: 8.086111111 | T92: =NSbondPrice(prices!$P$2,prices!B92,prices!C92/100,'nelson siegel ASK'!$E$4,'nelson siegel ASK'!$E$5,'nelson siegel ASK'!$E$6,'nelson siegel ASK'!$E$7) -> 144.3019788
A93: 912810ED6 | B93: 2/15/2021 | C93: 8.125 | D93: 11.05479452 | E93: 2/15/2010 | F93: 136.265625 | G93: 136.328125 | H93: 7.067159388 | I93: 7.067488807 | J93: 3.5991477 | K93: 3.6023642 | L93: 3.5959322 | M93: 136.328125 | N93: 139.9932065 | O93: 0.06 | P93: 16 | Q93: 164 | R93: 143.7309028 | S93: 7.402777778 | T93: =NSbondPrice(prices!$P$2,prices!B93,prices!C93/100,'nelson siegel ASK'!$E$4,'nelson siegel ASK'!$E$5,'nelson siegel ASK'!$E$6,'nelson siegel ASK'!$E$7) -> 137.7817482
A94: 912810EE4 | B94: 5/15/2021 | C94: 8.5 | D94: 11.29863014 | E94: 2/15/2010 | F94: 140.390625 | G94: 140.453125 | H94: 7.285011901 | I94: 7.28536323 | J94: 3.6566275 | K94: 3.6596557 | L94: 3.6536 | M94: 140.453125 | N94: 144.2873641 | O94: 0.06 | P94: 106 | Q94: 74 | R94: 143.9475694 | S94: 3.494444444 | T94: =NSbondPrice(prices!$P$2,prices!B94,prices!C94/100,'nelson siegel ASK'!$E$4,'nelson siegel ASK'!$E$5,'nelson siegel ASK'!$E$6,'nelson siegel ASK'!$E$7) -> 139.5080707
A95: 912810EF1 | B95: 8/15/2021 | C95: 8.75 | D95: 11.55068493 | E95: 5/15/2010 | F95: 142.984375 | G95: 143.046875 | H95: 7.489323613 | I95: 7.48966601 | J95: 3.6892469 | K95: 3.6921819 | L95: 3.6863128 | M95: 143.046875 | N95: 144.835549 | O95: 0.06 | P95: 16 | Q95: 164 | R95: 151.0190972 | S95: 7.972222222 | T95: =NSbondPrice(prices!$P$2,prices!B95,prices!C95/100,'nelson siegel ASK'!$E$4,'nelson siegel ASK'!$E$5,'nelson siegel ASK'!$E$6,'nelson siegel ASK'!$E$7) -> 144.3417263
A96: 912810EG9 | B96: 11/15/2021 | C96: 8.75 | D96: 11.80273973 | E96: 2/15/2010 | F96: 143.40625 | G96: 143.46875 | H96: 7.509941548 | I96: 7.510315452 | J96: 3.7307734 | K96: 3.7336497 | L96: 3.727898 | M96: 143.46875 | N96: 147.4157609 | O96: 0.06 | P96: 106 | Q96: 74 | R96: 147.0659722 | S96: 3.597222222 | T96: =NSbondPrice(prices!$P$2,prices!B96,prices!C96/100,'nelson siegel ASK'!$E$4,'nelson siegel ASK'!$E$5,'nelson siegel ASK'!$E$6,'nelson siegel ASK'!$E$7) -> 142.448968
A97: 912810EH7 | B97: 8/15/2022 | C97: 7.875 | D97: 12.55068493 | E97: 2/15/2010 | F97: 136.453125 | G97: 136.515625 | H97: 7.921269553 | I97: 7.921677388 | J97: 3.8001368 | K97: 3.8030078 | L97: 3.7972667 | M97: 136.515625 | N97: 140.0679348 | O97: 0.06 | P97: 16 | Q97: 164 | R97: 143.690625 | S97: 7.175 | T97: =NSbondPrice(prices!$P$2,prices!B97,prices!C97/100,'nelson siegel ASK'!$E$4,'nelson siegel ASK'!$E$5,'nelson siegel ASK'!$E$6,'nelson siegel ASK'!$E$7) -> 136.3639828
A98: 912810EJ3 | B98: 11/15/2022 | C98: 8.125 | D98: 12.80273973 | E98: 5/15/2010 | F98: 138.9375 | G98: 139 | H98: 8.116321974 | I98: 8.116720596 | J98: 3.8395425 | K98: 3.8423332 | L98: 3.8367526 | M98: 139 | N98: 140.6609116 | O98: 0.06 | P98: 106 | Q98: 74 | R98: 142.3402778 | S98: 3.340277778 | T98: =NSbondPrice(prices!$P$2,prices!B98,prices!C98/100,'nelson siegel ASK'!$E$4,'nelson siegel ASK'!$E$5,'nelson siegel ASK'!$E$6,'nelson siegel ASK'!$E$7) -> 137.121881
A99: 912810EK0 | B99: 2/15/2023 | C99: 8.125 | D99: 13.05479452 | E99: 2/15/2010 | F99: 139.296875 | G99: 139.359375 | H99: 8.129488395 | I99: 8.129920247 | J99: 3.8695708 | K99: 3.8723113 | L99: 3.866831 | M99: 139.359375 | N99: 143.0244565 | O99: 0.06 | P99: 16 | Q99: 164 | R99: 146.7621528 | S99: 7.402777778 | T99: =NSbondPrice(prices!$P$2,prices!B99,prices!C99/100,'nelson siegel ASK'!$E$4,'nelson siegel ASK'!$E$5,'nelson siegel ASK'!$E$6,'nelson siegel ASK'!$E$7) -> 139.3252228
A100: 912810EL8 | B100: 8/15/2023 | C100: 8 | D100: 13.55068493 | E100: 5/15/2010 | F100: 138.375 | G100: 138.4375 | H100: 8.394463913 | I100: 8.394890539 | J100: 3.904703 | K100: 3.9074134 | L100: 3.9019933 | M100: 138.4375 | N100: 140.0728591 | O100: 0.06 | P100: 16 | Q100: 164 | R100: 145.7263889 | S100: 7.288888889 | T100: =NSbondPrice(prices!$P$2,prices!B100,prices!C100/100,'nelson siegel ASK'!$E$4,'nelson siegel ASK'!$E$5,'nelson siegel ASK'!$E$6,'nelson siegel ASK'!$E$7) -> 138.3488984
A101: 912810EM6 | B101: 11/15/2024 | C101: 7.25 | D101: 14.80547945 | E101: 2/15/2010 | F101: 131.875 | G101: 131.9375 | H101: 8.809627428 | I101: 8.810128294 | J101: 3.9924633 | K101: 3.99514 | L101: 3.9897873 | M101: 131.9375 | N101: 135.2078804 | O101: 0.06 | P101: 106 | Q101: 74 | R101: 134.9180556 | S101: 2.980555556 | T101: =NSbondPrice(prices!$P$2,prices!B101,prices!C101/100,'nelson siegel ASK'!$E$4,'nelson siegel ASK'!$E$5,'nelson siegel ASK'!$E$6,'nelson siegel ASK'!$E$7) -> 128.7578965
A102: 912810EN4 | B102: 2/15/2025 | C102: 7.625 | D102: 15.05753425 | E102: 5/15/2010 | F102: 135.8125 | G102: 135.875 | H102: 8.967440549 | I102: 8.967927706 | J102: 4.014581 | K102: 4.0171684 | L102: 4.0119944 | M102: 135.875 | N102: 137.4337017 | O102: 0.06 | P102: 16 | Q102: 164 | R102: 142.8222222 | S102: 6.947222222 | T102: =NSbondPrice(prices!$P$2,prices!B102,prices!C102/100,'nelson siegel ASK'!$E$4,'nelson siegel ASK'!$E$5,'nelson siegel ASK'!$E$6,'nelson siegel ASK'!$E$7) -> 134.9956402
A103: 912810EP9 | B103: 8/15/2025 | C103: 7.125 | D103: 15.55342466 | E103: 2/15/2010 | F103: 130.609375 | G103: 130.671875 | H103: 9.077285993 | I103: 9.077821231 | J103: 4.0740574 | K103: 4.076682 | L103: 4.0714337 | M103: 130.671875 | N103: 133.8858696 | O103: 0.06 | P103: 16 | Q103: 164 | R103: 137.1635417 | S103: 6.491666667 | T103: =NSbondPrice(prices!$P$2,prices!B103,prices!C103/100,'nelson siegel ASK'!$E$4,'nelson siegel ASK'!$E$5,'nelson siegel ASK'!$E$6,'nelson siegel ASK'!$E$7) -> 129.3713301
A104: 912810EQ7 | B104: 2/15/2026 | C104: 6.25 | D104: 16.05753425 | E104: 2/15/2010 | F104: 121.71875 | G104: 121.78125 | H104: 9.551737694 | I104: 9.55232371 | J104: 4.1366437 | K104: 4.1393247 | L104: 4.1339636 | M104: 121.78125 | N104: 124.6005435 | O104: 0.06 | P104: 16 | Q104: 164 | R104: 127.4756944 | S104: 5.694444444 | T104: =NSbondPrice(prices!$P$2,prices!B104,prices!C104/100,'nelson siegel ASK'!$E$4,'nelson siegel ASK'!$E$5,'nelson siegel ASK'!$E$6,'nelson siegel ASK'!$E$7) -> 118.9639709
A105: 912810ES3 | B105: 8/15/2026 | C105: 7.5 | D105: 16.55342466 | E105: 5/15/2010 | F105: 136.234375 | G105: 136.265625 | H105: 9.927255434 | I105: 9.927558168 | J105: 4.1874669 | K105: 4.1886332 | L105: 4.1863007 | M105: 136.265625 | N105: 137.7987742 | O105: 0.06 | P105: 16 | Q105: 164 | R105: 143.0989583 | S105: 6.833333333 | T105: =NSbondPrice(prices!$P$2,prices!B105,prices!C105/100,'nelson siegel ASK'!$E$4,'nelson siegel ASK'!$E$5,'nelson siegel ASK'!$E$6,'nelson siegel ASK'!$E$7) -> 134.3400637
A106: 912810ET1 | B106: 11/15/2026 | C106: 7.625 | D106: 16.80547945 | E106: 2/15/2010 | F106: 137.765625 | G106: 137.828125 | H106: 9.87119343 | I106: 9.871832062 | J106: 4.2087949 | K106: 4.2110838 | L106: 4.2065068 | M106: 137.828125 | N106: 141.267663 | O106: 0.06 | P106: 106 | Q106: 74 | R106: 140.9628472 | S106: 3.134722222 | T106: =NSbondPrice(prices!$P$2,prices!B106,prices!C106/100,'nelson siegel ASK'!$E$4,'nelson siegel ASK'!$E$5,'nelson siegel ASK'!$E$6,'nelson siegel ASK'!$E$7) -> 134.1365352
A107: 912810EV6 | B107: 2/15/2027 | C107: 6.875 | D107: 17.05753425 | E107: 2/15/2010 | F107: 129.578125 | G107: 129.640625 | H107: 10.2923335 | I107: 10.29303052 | J107: 4.2525272 | K107: 4.2548639 | L107: 4.2501912 | M107: 129.640625 | N107: 132.7418478 | O107: 0.06 | P107: 16 | Q107: 164 | R107: 135.9045139 | S107: 6.263888889 | T107: =NSbondPrice(prices!$P$2,prices!B107,prices!C107/100,'nelson siegel ASK'!$E$4,'nelson siegel ASK'!$E$5,'nelson siegel ASK'!$E$6,'nelson siegel ASK'!$E$7) -> 126.821913
A108: 912810EW4 | B108: 8/15/2027 | C108: 6 | D108: 17.55342466 | E108: 2/15/2010 | F108: 119.5625 | G108: 119.625 | H108: 10.79337321 | I108: 10.79414098 | J108: 4.2972955 | K108: 4.299714 | L108: 4.2948778 | M108: 119.625 | N108: 122.3315217 | O108: 0.06 | P108: 16 | Q108: 164 | R108: 125.0916667 | S108: 5.466666667 | T108: =NSbondPrice(prices!$P$2,prices!B108,prices!C108/100,'nelson siegel ASK'!$E$4,'nelson siegel ASK'!$E$5,'nelson siegel ASK'!$E$6,'nelson siegel ASK'!$E$7) -> 115.8951057
A109: 912810EX2 | B109: 11/15/2027 | C109: 6.75 | D109: 17.80547945 | E109: 2/15/2010 | F109: 128.828125 | G109: 128.890625 | H109: 10.76041294 | I109: 10.76117851 | J109: 4.295325 | K109: 4.2975742 | L109: 4.2930765 | M109: 128.890625 | N109: 131.935462 | O109: 0.06 | P109: 106 | Q109: 74 | R109: 131.665625 | S109: 2.775 | T109: =NSbondPrice(prices!$P$2,prices!B109,prices!C109/100,'nelson siegel ASK'!$E$4,'nelson siegel ASK'!$E$5,'nelson siegel ASK'!$E$6,'nelson siegel ASK'!$E$7) -> 123.8196356
A110: 912810EY0 | B110: 8/15/2028 | C110: 6.5 | D110: 18.55616438 | E110: 5/15/2010 | F110: 125.828125 | G110: 125.890625 | H110: 11.08153311 | I110: 11.08230398 | J110: 4.318494 | K110: 4.3207593 | L110: 4.3162295 | M110: 125.890625 | N110: 127.2193543 | O110: 0.06 | P110: 16 | Q110: 164 | R110: 131.8128472 | S110: 5.922222222 | T110: =NSbondPrice(prices!$P$2,prices!B110,prices!C110/100,'nelson siegel ASK'!$E$4,'nelson siegel ASK'!$E$5,'nelson siegel ASK'!$E$6,'nelson siegel ASK'!$E$7) -> 122.5006229
A111: 912810EZ7 | B111: 11/15/2028 | C111: 6.625 | D111: 18.80821918 | E111: 2/15/2010 | F111: 127.421875 | G111: 127.484375 | H111: 11.00409842 | I111: 11.00490463 | J111: 4.3308856 | K111: 4.33311 | L111: 4.3286618 | M111: 127.484375 | N111: 130.4728261 | O111: 0.06 | P111: 106 | Q111: 74 | R111: 130.2079861 | S111: 2.723611111 | T111: =NSbondPrice(prices!$P$2,prices!B111,prices!C111/100,'nelson siegel ASK'!$E$4,'nelson siegel ASK'!$E$5,'nelson siegel ASK'!$E$6,'nelson siegel ASK'!$E$7) -> 122.5709898
A112: 912810FA1 | B112: 2/15/2029 | C112: 6.375 | D112: 19.06027397 | E112: 2/15/2010 | F112: 124.5625 | G112: 124.625 | H112: 11.29356254 | I112: 11.29441679 | J112: 4.355632 | K112: 4.3578502 | L112: 4.3534145 | M112: 124.625 | N112: 127.5006793 | O112: 0.06 | P112: 16 | Q112: 164 | R112: 130.4333333 | S112: 5.808333333 | T112: =NSbondPrice(prices!$P$2,prices!B112,prices!C112/100,'nelson siegel ASK'!$E$4,'nelson siegel ASK'!$E$5,'nelson siegel ASK'!$E$6,'nelson siegel ASK'!$E$7) -> 120.9924531
A113: 912810FB9 | B113: 8/15/2029 | C113: 6.125 | D113: 19.55616438 | E113: 5/15/2010 | F113: 121.546875 | G113: 121.609375 | H113: 11.62824997 | I113: 11.62911103 | J113: 4.3675827 | K113: 4.3698187 | L113: 4.3653476 | M113: 121.609375 | N113: 122.8614468 | O113: 0.06 | P113: 16 | Q113: 164 | R113: 127.1899306 | S113: 5.580555556 | T113: =NSbondPrice(prices!$P$2,prices!B113,prices!C113/100,'nelson siegel ASK'!$E$4,'nelson siegel ASK'!$E$5,'nelson siegel ASK'!$E$6,'nelson siegel ASK'!$E$7) -> 117.7954466
A114: 912810FE3 | B114: 5/15/2030 | C114: 5.5 | D114: 20.30410959 | E114: 2/15/2010 | F114: 113.640625 | G114: 113.703125 | H114: 12.04173583 | I114: 12.04272381 | J114: 4.412701 | K114: 4.4149847 | L114: 4.410418 | M114: 113.703125 | N114: 116.1841033 | O114: 0.06 | P114: 106 | Q114: 74 | R114: 115.9642361 | S114: 2.261111111 | T114: =NSbondPrice(prices!$P$2,prices!B114,prices!C114/100,'nelson siegel ASK'!$E$4,'nelson siegel ASK'!$E$5,'nelson siegel ASK'!$E$6,'nelson siegel ASK'!$E$7) -> 108.073842
A115: 912810FF0 | B115: 2/15/2031 | C115: 5.25 | D115: 21.06027397 | E115: 5/15/2010 | F115: 110.484375 | G115: 110.546875 | H115: 12.40183712 | I115: 12.40283486 | J115: 4.4199535 | K115: 4.4222618 | L115: 4.4176462 | M115: 110.546875 | N115: 111.6200794 | O115: 0.06 | P115: 16 | Q115: 164 | R115: 115.3302083 | S115: 4.783333333 | T115: =NSbondPrice(prices!$P$2,prices!B115,prices!C115/100,'nelson siegel ASK'!$E$4,'nelson siegel ASK'!$E$5,'nelson siegel ASK'!$E$6,'nelson siegel ASK'!$E$7) -> 106.0219767
A116: 912810FG8 | B116: 2/15/2036 | C116: 5.25 | D116: 26.0630137 | E116: 2/15/2010 | F116: 110.453125 | G116: 110.515625 | H116: 12.35858369 | I116: 12.35963167 | J116: 4.4292228 | K116: 4.4315133 | L116: 4.4269332 | M116: 110.515625 | N116: 112.8838315 | O116: 0.06 | P116: 16 | Q116: 164 | R116: 115.2989583 | S116: 4.783333333 | T116: =NSbondPrice(prices!$P$2,prices!B116,prices!C116/100,'nelson siegel ASK'!$E$4,'nelson siegel ASK'!$E$5,'nelson siegel ASK'!$E$6,'nelson siegel ASK'!$E$7) -> 107.281122
A117: 912810FJ2 | B117: 2/15/2037 | C117: 6.125 | D117: 27.06575342 | E117: 2/15/2010 | F117: 122.25 | G117: 122.28125 | H117: 12.17381556 | I117: 12.17432125 | J117: 4.41296 | K117: 4.4140093 | L117: 4.4119109 | M117: 122.28125 | N117: 125.0441576 | O117: 0.06 | P117: 16 | Q117: 164 | R117: 127.8618056 | S117: 5.580555556 | T117: =NSbondPrice(prices!$P$2,prices!B117,prices!C117/100,'nelson siegel ASK'!$E$4,'nelson siegel ASK'!$E$5,'nelson siegel ASK'!$E$6,'nelson siegel ASK'!$E$7) -> 121.4134215
A118: 912810FM5 | B118: 5/15/2037 | C118: 6.25 | D118: 27.30958904 | E118: 5/15/2010 | F118: 124.28125 | G118: 124.34375 | H118: 12.55615756 | I118: 12.55718428 | J118: 4.4221813 | K118: 4.424207 | L118: 4.4201562 | M118: 124.34375 | N118: 125.6213743 | O118: 0.06 | P118: 106 | Q118: 74 | R118: 126.9131944 | S118: 2.569444444 | T118: =NSbondPrice(prices!$P$2,prices!B118,prices!C118/100,'nelson siegel ASK'!$E$4,'nelson siegel ASK'!$E$5,'nelson siegel ASK'!$E$6,'nelson siegel ASK'!$E$7) -> 122.0069802
A119: 912810FP8 | B119: 2/15/2031 | C119: 5.375 | D119: 21.06027397 | E119: 2/15/2010 | F119: 112.375 | G119: 112.4375 | H119: 13.06354101 | I119: 13.06474106 | J119: 4.4599905 | K119: 4.4621203 | L119: 4.4578614 | M119: 112.4375 | N119: 114.8620924 | O119: 0.06 | P119: =COUPDAYSNC($P$2,B119,IF(C119>0,2,1)) -> 16 | Q119: 164 | R119: 117.3347222 | S119: =IF(C119>0,Q119/(P119+Q119)*C119,0) -> 4.897222222 | T119: =NSbondPrice(prices!$P$2,prices!B119,prices!C119/100,'nelson siegel ASK'!$E$4,'nelson siegel ASK'!$E$5,'nelson siegel ASK'!$E$6,'nelson siegel ASK'!$E$7) -> 107.7643406
A120: 912810FT0 | B120: 2/15/2036 | C120: 4.5 | D120: =(B120-$C$2)/365 -> 26.0630137 | E120: 2/15/2010 | F120: 99.796875 | G120: 99.859375 | H120: 15.27255767 | I120: 15.27435202 | J120: 4.5111376 | K120: 4.513192 | L120: 4.5090842 | M120: 99.859375 | N120: 101.8892663 | O120: 0.06 | P120: 16 | Q120: 164 | R120: 103.959375 | S120: 4.1 | T120: =NSbondPrice(prices!$P$2,prices!B120,prices!C120/100,'nelson siegel ASK'!$E$4,'nelson siegel ASK'!$E$5,'nelson siegel ASK'!$E$6,'nelson siegel ASK'!$E$7) -> 95.73699157
A121: 912810PT9 | B121: 2/15/2037 | C121: 4.75 | D121: 27.06575342 | E121: 2/15/2010 | F121: 103.609375 | G121: 103.671875 | H121: 15.39179515 | I121: 15.39362792 | J121: 4.5153901 | K121: 4.517353 | L121: 4.5134282 | M121: 103.671875 | N121: 105.814538 | O121: 0.06 | P121: 16 | Q121: 164 | R121: 107.9996528 | S121: 4.327777778 | T121: =NSbondPrice(prices!$P$2,prices!B121,prices!C121/100,'nelson siegel ASK'!$E$4,'nelson siegel ASK'!$E$5,'nelson siegel ASK'!$E$6,'nelson siegel ASK'!$E$7) -> 99.89468807
A122: 912810PU6 | B122: 5/15/2037 | C122: 5 | D122: 27.30958904 | E122: 5/15/2010 | F122: 107.671875 | G122: 107.734375 | H122: 15.47998289 | I122: 15.48174455 | J122: 4.5062804 | K122: 4.5081792 | L122: 4.5043825 | M122: 107.734375 | N122: 108.7564744 | O122: 0.06 | P122: 106 | Q122: 74 | R122: 109.7899306 | S122: 2.055555556 | T122: =NSbondPrice(prices!$P$2,prices!B122,prices!C122/100,'nelson siegel ASK'!$E$4,'nelson siegel ASK'!$E$5,'nelson siegel ASK'!$E$6,'nelson siegel ASK'!$E$7) -> 102.6761549

Sheet nelson siegel ASK
A1: Mkt Price | B1: Th. Price | C1: Pricing Errors | D1: abs(diff) | E1: parameters | F1: sq. er w/o bills | G1: sq err w bills
A4: =prices!N4 -> 101.0764266 | B4: =NSbondPrice(prices!$P$2,prices!$B4,prices!$C4/100,'nelson siegel ASK'!$E$4,'nelson siegel ASK'!$E$5,'nelson siegel ASK'!$E$6,'nelson siegel ASK'!$E$7) -> 101.0637453 | C4: =A4-B4 -> 0.01268130417 | D4: =ABS(A4-B4) -> 0.01268130417 | E4: -0.03 | F4: =SUM(D25:D118) -> 209.8710789 | G4: =SUM(D4:D118) -> 210.3673796
A5: =prices!N5 -> 101.7663043 | B5: =NSbondPrice(prices!$P$2,prices!$B5,prices!$C5/100,'nelson siegel ASK'!$E$4,'nelson siegel ASK'!$E$5,'nelson siegel ASK'!$E$6,'nelson siegel ASK'!$E$7) -> 101.7591225 | C5: =A5-B5 -> 0.007181803985 | D5: =ABS(A5-B5) -> 0.007181803985 | E5: 0.02770788696
A6: =prices!N6 -> 102.392663 | B6: =NSbondPrice(prices!$P$2,prices!$B6,prices!$C6/100,'nelson siegel ASK'!$E$4,'nelson siegel ASK'!$E$5,'nelson siegel ASK'!$E$6,'nelson siegel ASK'!$E$7) -> 102.3841786 | C6: 0.008484464356 | D6: =ABS(A6-B6) -> 0.008484464356 | E6: 0.232637296
A7: =prices!N7 -> 103.2601902 | B7: =NSbondPrice(prices!$P$2,prices!$B7,prices!$C7/100,'nelson siegel ASK'!$E$4,'nelson siegel ASK'!$E$5,'nelson siegel ASK'!$E$6,'nelson siegel ASK'!$E$7) -> 103.259257 | C7: 0.0009331888746 | D7: 0.0009331888746 | E7: 0.07714531732
A8: =prices!N8 -> 101.0162293 | B8: =NSbondPrice(prices!$P$2,prices!$B8,prices!$C8/100,'nelson siegel ASK'!$E$4,'nelson siegel ASK'!$E$5,'nelson siegel ASK'!$E$6,'nelson siegel ASK'!$E$7) -> 101.0136595 | C8: 0.00256979152 | D8: 0.00256979152
A9: =prices!N9 -> 102.0073377 | B9: =NSbondPrice(prices!$P$2,prices!$B9,prices!$C9/100,'nelson siegel ASK'!$E$4,'nelson siegel ASK'!$E$5,'nelson siegel ASK'!$E$6,'nelson siegel ASK'!$E$7) -> 102.0166528 | C9: -0.009315135002 | D9: 0.009315135002
A10: =prices!N10 -> 100.8894231 | B10: =NSbondPrice(prices!$P$2,prices!$B10,prices!$C10/100,'nelson siegel ASK'!$E$4,'nelson siegel ASK'!$E$5,'nelson siegel ASK'!$E$6,'nelson siegel ASK'!$E$7) -> 100.8915754 | C10: -0.002152289629 | D10: 0.002152289629
A11: =prices!N11 -> 101.9975962 | B11: =NSbondPrice(prices!$P$2,prices!$B11,prices!$C11/100,'nelson siegel ASK'!$E$4,'nelson siegel ASK'!$E$5,'nelson siegel ASK'!$E$6,'nelson siegel ASK'!$E$7) -> 102.0141226 | C11: -0.01652643195 | D11: 0.01652643195
A12: =prices!N12 -> 101.0693198 | B12: =NSbondPrice(prices!$P$2,prices!$B12,prices!$C12/100,'nelson siegel ASK'!$E$4,'nelson siegel ASK'!$E$5,'nelson siegel ASK'!$E$6,'nelson siegel ASK'!$E$7) -> 101.0712722 | C12: -0.001952492068 | D12: 0.001952492068
A13: =prices!N13 -> 101.9327521 | B13: =NSbondPrice(prices!$P$2,prices!$B13,prices!$C13/100,'nelson siegel ASK'!$E$4,'nelson siegel ASK'!$E$5,'nelson siegel ASK'!$E$6,'nelson siegel ASK'!$E$7) -> 101.9384711 | C13: -0.005719004355 | D13: 0.005719004355
A14: =prices!N14 -> 102.2323895 | B14: =NSbondPrice(prices!$P$2,prices!$B14,prices!$C14/100,'nelson siegel ASK'!$E$4,'nelson siegel ASK'!$E$5,'nelson siegel ASK'!$E$6,'nelson siegel ASK'!$E$7) -> 102.2509741 | C14: -0.01858455035 | D14: 0.01858455035
A15: =prices!N15 -> 101.3004808 | B15: =NSbondPrice(prices!$P$2,prices!$B15,prices!$C15/100,'nelson siegel ASK'!$E$4,'nelson siegel ASK'!$E$5,'nelson siegel ASK'!$E$6,'nelson siegel ASK'!$E$7) -> 101.3022744 | C15: -0.001793599383 | D15: 0.001793599383
A16: =prices!N16 -> 101.7819368 | B16: =NSbondPrice(prices!$P$2,prices!$B16,prices!$C16/100,'nelson siegel ASK'!$E$4,'nelson siegel ASK'!$E$5,'nelson siegel ASK'!$E$6,'nelson siegel ASK'!$E$7) -> 101.7890247 | C16: -0.007087907946 | D16: 0.007087907946
A17: =prices!N17 -> 101.3942507 | B17: =NSbondPrice(prices!$P$2,prices!$B17,prices!$C17/100,'nelson siegel ASK'!$E$4,'nelson siegel ASK'!$E$5,'nelson siegel ASK'!$E$6,'nelson siegel ASK'!$E$7) -> 101.3984187 | C17: -0.004167983747 | D17: 0.004167983747
A18: =prices!N18 -> 101.8891575 | B18: =NSbondPrice(prices!$P$2,prices!$B18,prices!$C18/100,'nelson siegel ASK'!$E$4,'nelson siegel ASK'!$E$5,'nelson siegel ASK'!$E$6,'nelson siegel ASK'!$E$7) -> 101.8799205 | C18: 0.009237003296 | D18: 0.009237003296
A19: =prices!N19 -> 104.0326087 | B19: =NSbondPrice(prices!$P$2,prices!$B19,prices!$C19/100,'nelson siegel ASK'!$E$4,'nelson siegel ASK'!$E$5,'nelson siegel ASK'!$E$6,'nelson siegel ASK'!$E$7) -> 104.0200367 | C19: 0.01257203873 | D19: 0.01257203873
A20: =prices!N20 -> 105.65625 | B20: =NSbondPrice(prices!$P$2,prices!$B20,prices!$C20/100,'nelson siegel ASK'!$E$4,'nelson siegel ASK'!$E$5,'nelson siegel ASK'!$E$6,'nelson siegel ASK'!$E$7) -> 105.6442724 | C20: 0.01197756236 | D20: 0.01197756236
A21: =prices!N21 -> 103.7575967 | B21: =NSbondPrice(prices!$P$2,prices!$B21,prices!$C21/100,'nelson siegel ASK'!$E$4,'nelson siegel ASK'!$E$5,'nelson siegel ASK'!$E$6,'nelson siegel ASK'!$E$7) -> 103.7155828 | C21: 0.04201386674 | D21: 0.04201386674
A22: =prices!N22 -> 104.1009615 | B22: =NSbondPrice(prices!$P$2,prices!$B22,prices!$C22/100,'nelson siegel ASK'!$E$4,'nelson siegel ASK'!$E$5,'nelson siegel ASK'!$E$6,'nelson siegel ASK'!$E$7) -> 104.0256821 | C22: 0.07527946144 | D22: 0.07527946144
A23: =prices!N23 -> 104.3105145 | B23: =NSbondPrice(prices!$P$2,prices!$B23,prices!$C23/100,'nelson siegel ASK'!$E$4,'nelson siegel ASK'!$E$5,'nelson siegel ASK'!$E$6,'nelson siegel ASK'!$E$7) -> 104.1982028 | C23: 0.1123117122 | D23: 0.1123117122
A24: =prices!N24 -> 104.1225962 | B24: =NSbondPrice(prices!$P$2,prices!$B24,prices!$C24/100,'nelson siegel ASK'!$E$4,'nelson siegel ASK'!$E$5,'nelson siegel ASK'!$E$6,'nelson siegel ASK'!$E$7) -> 103.9888371 | C24: 0.133759049 | D24: 0.133759049
A25: =prices!N25 -> 103.9338743 | B25: =NSbondPrice(prices!$P$2,prices!$B25,prices!$C25/100,'nelson siegel ASK'!$E$4,'nelson siegel ASK'!$E$5,'nelson siegel ASK'!$E$6,'nelson siegel ASK'!$E$7) -> 103.7602735 | C25: 0.1736008493 | D25: 0.1736008493
A26: =prices!N26 -> 107.1304348 | B26: =NSbondPrice(prices!$P$2,prices!$B26,prices!$C26/100,'nelson siegel ASK'!$E$4,'nelson siegel ASK'!$E$5,'nelson siegel ASK'!$E$6,'nelson siegel ASK'!$E$7) -> 106.9072342 | C26: 0.2232006014 | D26: 0.2232006014
A27: =prices!N27 -> 106.3333909 | B27: =NSbondPrice(prices!$P$2,prices!$B27,prices!$C27/100,'nelson siegel ASK'!$E$4,'nelson siegel ASK'!$E$5,'nelson siegel ASK'!$E$6,'nelson siegel ASK'!$E$7) -> 106.1109815 | C27: 0.2224094115 | D27: 0.2224094115
A28: =prices!N28 -> 106.6284341 | B28: =NSbondPrice(prices!$P$2,prices!$B28,prices!$C28/100,'nelson siegel ASK'!$E$4,'nelson siegel ASK'!$E$5,'nelson siegel ASK'!$E$6,'nelson siegel ASK'!$E$7) -> 106.3635671 | C28: 0.2648669456 | D28: 0.2648669456
A29: =prices!N29 -> 106.7141747 | B29: =NSbondPrice(prices!$P$2,prices!$B29,prices!$C29/100,'nelson siegel ASK'!$E$4,'nelson siegel ASK'!$E$5,'nelson siegel ASK'!$E$6,'nelson siegel ASK'!$E$7) -> 106.4146343 | C29: 0.2995404717 | D29: 0.2995404717
A30: =prices!N30 -> 106.6183036 | B30: =NSbondPrice(prices!$P$2,prices!$B30,prices!$C30/100,'nelson siegel ASK'!$E$4,'nelson siegel ASK'!$E$5,'nelson siegel ASK'!$E$6,'nelson siegel ASK'!$E$7) -> 106.2825447 | C30: 0.3357588909 | D30: 0.3357588909
A31: =prices!N31 -> 106.8807838 | B31: =NSbondPrice(prices!$P$2,prices!$B31,prices!$C31/100,'nelson siegel ASK'!$E$4,'nelson siegel ASK'!$E$5,'nelson siegel ASK'!$E$6,'nelson siegel ASK'!$E$7) -> 106.5101657 | C31: 0.3706181037 | D31: 0.3706181037
A32: =prices!N32 -> 108.8196332 | B32: =NSbondPrice(prices!$P$2,prices!$B32,prices!$C32/100,'nelson siegel ASK'!$E$4,'nelson siegel ASK'!$E$5,'nelson siegel ASK'!$E$6,'nelson siegel ASK'!$E$7) -> 108.4099478 | C32: 0.4096853847 | D32: 0.4096853847
A33: =prices!N33 -> 109.0991848 | B33: =NSbondPrice(prices!$P$2,prices!$B33,prices!$C33/100,'nelson siegel ASK'!$E$4,'nelson siegel ASK'!$E$5,'nelson siegel ASK'!$E$6,'nelson siegel ASK'!$E$7) -> 108.5836388 | C33: 0.515545978 | D33: 0.515545978
A34: =prices!N34 -> 108.1976865 | B34: =NSbondPrice(prices!$P$2,prices!$B34,prices!$C34/100,'nelson siegel ASK'!$E$4,'nelson siegel ASK'!$E$5,'nelson siegel ASK'!$E$6,'nelson siegel ASK'!$E$7) -> 107.760838 | C34: 0.4368484971 | D34: 0.4368484971
A35: =prices!N35 -> 107.8272665 | B35: =NSbondPrice(prices!$P$2,prices!$B35,prices!$C35/100,'nelson siegel ASK'!$E$4,'nelson siegel ASK'!$E$5,'nelson siegel ASK'!$E$6,'nelson siegel ASK'!$E$7) -> 107.3302486 | C35: 0.4970179193 | D35: 0.4970179193
A36: =prices!N36 -> 107.9339606 | B36: =NSbondPrice(prices!$P$2,prices!$B36,prices!$C36/100,'nelson siegel ASK'!$E$4,'nelson siegel ASK'!$E$5,'nelson siegel ASK'!$E$6,'nelson siegel ASK'!$E$7) -> 107.3927816 | C36: 0.5411790054 | D36: 0.5411790054
A37: =prices!N37 -> 107.5106456 | B37: =NSbondPrice(prices!$P$2,prices!$B37,prices!$C37/100,'nelson siegel ASK'!$E$4,'nelson siegel ASK'!$E$5,'nelson siegel ASK'!$E$6,'nelson siegel ASK'!$E$7) -> 106.9568399 | C37: 0.5538056878 | D37: 0.5538056878
A38: =prices!N38 -> 107.5764848 | B38: =NSbondPrice(prices!$P$2,prices!$B38,prices!$C38/100,'nelson siegel ASK'!$E$4,'nelson siegel ASK'!$E$5,'nelson siegel ASK'!$E$6,'nelson siegel ASK'!$E$7) -> 107.0085233 | C38: 0.5679614763 | D38: 0.5679614763
A39: =prices!N39 -> 110.0706522 | B39: =NSbondPrice(prices!$P$2,prices!$B39,prices!$C39/100,'nelson siegel ASK'!$E$4,'nelson siegel ASK'!$E$5,'nelson siegel ASK'!$E$6,'nelson siegel ASK'!$E$7) -> 109.4127976 | C39: 0.6578545667 | D39: 0.6578545667
A40: =prices!N40 -> 110.2146739 | B40: =NSbondPrice(prices!$P$2,prices!$B40,prices!$C40/100,'nelson siegel ASK'!$E$4,'nelson siegel ASK'!$E$5,'nelson siegel ASK'!$E$6,'nelson siegel ASK'!$E$7) -> 109.6174131 | C40: 0.5972608483 | D40: 0.5972608483
A41: =prices!N41 -> 109.5570615 | B41: =NSbondPrice(prices!$P$2,prices!$B41,prices!$C41/100,'nelson siegel ASK'!$E$4,'nelson siegel ASK'!$E$5,'nelson siegel ASK'!$E$6,'nelson siegel ASK'!$E$7) -> 108.9052036 | C41: 0.6518578629 | D41: 0.6518578629
A42: =prices!N42 -> 109.0147665 | B42: =NSbondPrice(prices!$P$2,prices!$B42,prices!$C42/100,'nelson siegel ASK'!$E$4,'nelson siegel ASK'!$E$5,'nelson siegel ASK'!$E$6,'nelson siegel ASK'!$E$7) -> 108.347421 | C42: 0.6673455168 | D42: 0.6673455168
A43: =prices!N43 -> 108.8407286 | B43: =NSbondPrice(prices!$P$2,prices!$B43,prices!$C43/100,'nelson siegel ASK'!$E$4,'nelson siegel ASK'!$E$5,'nelson siegel ASK'!$E$6,'nelson siegel ASK'!$E$7) -> 108.1341556 | C43: 0.7065729558 | D43: 0.7065729558
A44: =prices!N44 -> 109.2699176 | B44: =NSbondPrice(prices!$P$2,prices!$B44,prices!$C44/100,'nelson siegel ASK'!$E$4,'nelson siegel ASK'!$E$5,'nelson siegel ASK'!$E$6,'nelson siegel ASK'!$E$7) -> 108.5088182 | C44: 0.761099391 | D44: 0.761099391
A45: =prices!N45 -> 109.3614468 | B45: =NSbondPrice(prices!$P$2,prices!$B45,prices!$C45/100,'nelson siegel ASK'!$E$4,'nelson siegel ASK'!$E$5,'nelson siegel ASK'!$E$6,'nelson siegel ASK'!$E$7) -> 108.5580645 | C45: 0.8033823721 | D45: 0.8033823721
A46: =prices!N46 -> 110.8372962 | B46: =NSbondPrice(prices!$P$2,prices!$B46,prices!$C46/100,'nelson siegel ASK'!$E$4,'nelson siegel ASK'!$E$5,'nelson siegel ASK'!$E$6,'nelson siegel ASK'!$E$7) -> 110.0117308 | C46: 0.825565392 | D46: 0.825565392
A47: =prices!N47 -> 110.1141304 | B47: =NSbondPrice(prices!$P$2,prices!$B47,prices!$C47/100,'nelson siegel ASK'!$E$4,'nelson siegel ASK'!$E$5,'nelson siegel ASK'!$E$6,'nelson siegel ASK'!$E$7) -> 109.1448178 | C47: 0.9693126621 | D47: 0.9693126621
A48: =prices!N48 -> 109.2405041 | B48: =NSbondPrice(prices!$P$2,prices!$B48,prices!$C48/100,'nelson siegel ASK'!$E$4,'nelson siegel ASK'!$E$5,'nelson siegel ASK'!$E$6,'nelson siegel ASK'!$E$7) -> 108.2939694 | C48: 0.946534788 | D48: 0.946534788
A49: =prices!N49 -> 109.3229739 | B49: =NSbondPrice(prices!$P$2,prices!$B49,prices!$C49/100,'nelson siegel ASK'!$E$4,'nelson siegel ASK'!$E$5,'nelson siegel ASK'!$E$6,'nelson siegel ASK'!$E$7) -> 108.367038 | C49: 0.9559358811 | D49: 0.9559358811
A50: =prices!N50 -> 107.9839434 | B50: =NSbondPrice(prices!$P$2,prices!$B50,prices!$C50/100,'nelson siegel ASK'!$E$4,'nelson siegel ASK'!$E$5,'nelson siegel ASK'!$E$6,'nelson siegel ASK'!$E$7) -> 107.00059 | C50: 0.9833533575 | D50: 0.9833533575
A51: =prices!N51 -> 108.3176796 | B51: =NSbondPrice(prices!$P$2,prices!$B51,prices!$C51/100,'nelson siegel ASK'!$E$4,'nelson siegel ASK'!$E$5,'nelson siegel ASK'!$E$6,'nelson siegel ASK'!$E$7) -> 107.2240063 | C51: 1.093673256 | D51: 1.093673256
A52: =prices!N52 -> 106.2345467 | B52: =NSbondPrice(prices!$P$2,prices!$B52,prices!$C52/100,'nelson siegel ASK'!$E$4,'nelson siegel ASK'!$E$5,'nelson siegel ASK'!$E$6,'nelson siegel ASK'!$E$7) -> 105.245648 | C52: 0.9888987154 | D52: 0.9888987154
A53: =prices!N53 -> 106.7647617 | B53: =NSbondPrice(prices!$P$2,prices!$B53,prices!$C53/100,'nelson siegel ASK'!$E$4,'nelson siegel ASK'!$E$5,'nelson siegel ASK'!$E$6,'nelson siegel ASK'!$E$7) -> 105.6928599 | C53: 1.071901845 | D53: 1.071901845
A54: =prices!N54 -> 105.7421875 | B54: =NSbondPrice(prices!$P$2,prices!$B54,prices!$C54/100,'nelson siegel ASK'!$E$4,'nelson siegel ASK'!$E$5,'nelson siegel ASK'!$E$6,'nelson siegel ASK'!$E$7) -> 104.6343405 | C54: 1.107846974 | D54: 1.107846974
A55: =prices!N55 -> 109.076087 | B55: =NSbondPrice(prices!$P$2,prices!$B55,prices!$C55/100,'nelson siegel ASK'!$E$4,'nelson siegel ASK'!$E$5,'nelson siegel ASK'!$E$6,'nelson siegel ASK'!$E$7) -> 107.9228557 | C55: 1.15323127 | D55: 1.15323127
A56: =prices!N56 -> 105.0926278 | B56: =NSbondPrice(prices!$P$2,prices!$B56,prices!$C56/100,'nelson siegel ASK'!$E$4,'nelson siegel ASK'!$E$5,'nelson siegel ASK'!$E$6,'nelson siegel ASK'!$E$7) -> 103.9371089 | C56: 1.155518831 | D56: 1.155518831
A57: =prices!N57 -> 103.9023008 | B57: =NSbondPrice(prices!$P$2,prices!$B57,prices!$C57/100,'nelson siegel ASK'!$E$4,'nelson siegel ASK'!$E$5,'nelson siegel ASK'!$E$6,'nelson siegel ASK'!$E$7) -> 102.7684948 | C57: 1.133806005 | D57: 1.133806005
A58: =prices!N58 -> 105.8151761 | B58: =NSbondPrice(prices!$P$2,prices!$B58,prices!$C58/100,'nelson siegel ASK'!$E$4,'nelson siegel ASK'!$E$5,'nelson siegel ASK'!$E$6,'nelson siegel ASK'!$E$7) -> 104.6172551 | C58: 1.197920958 | D58: 1.197920958
A59: =prices!N59 -> 107.4597721 | B59: =NSbondPrice(prices!$P$2,prices!$B59,prices!$C59/100,'nelson siegel ASK'!$E$4,'nelson siegel ASK'!$E$5,'nelson siegel ASK'!$E$6,'nelson siegel ASK'!$E$7) -> 106.1724489 | C59: 1.287323213 | D59: 1.287323213
A60: =prices!N60 -> 106.7860577 | B60: =NSbondPrice(prices!$P$2,prices!$B60,prices!$C60/100,'nelson siegel ASK'!$E$4,'nelson siegel ASK'!$E$5,'nelson siegel ASK'!$E$6,'nelson siegel ASK'!$E$7) -> 105.5807251 | C60: 1.205332611 | D60: 1.205332611
A61: =prices!N61 -> 106.0422997 | B61: =NSbondPrice(prices!$P$2,prices!$B61,prices!$C61/100,'nelson siegel ASK'!$E$4,'nelson siegel ASK'!$E$5,'nelson siegel ASK'!$E$6,'nelson siegel ASK'!$E$7) -> 104.8306437 | C61: 1.211655997 | D61: 1.211655997
A62: =prices!N62 -> 110.7764946 | B62: =NSbondPrice(prices!$P$2,prices!$B62,prices!$C62/100,'nelson siegel ASK'!$E$4,'nelson siegel ASK'!$E$5,'nelson siegel ASK'!$E$6,'nelson siegel ASK'!$E$7) -> 109.4470437 | C62: 1.329450911 | D62: 1.329450911
A63: =prices!N63 -> 109.9312845 | B63: =NSbondPrice(prices!$P$2,prices!$B63,prices!$C63/100,'nelson siegel ASK'!$E$4,'nelson siegel ASK'!$E$5,'nelson siegel ASK'!$E$6,'nelson siegel ASK'!$E$7) -> 108.4134364 | C63: 1.517848107 | D63: 1.517848107
A64: =prices!N64 -> 109.8668478 | B64: =NSbondPrice(prices!$P$2,prices!$B64,prices!$C64/100,'nelson siegel ASK'!$E$4,'nelson siegel ASK'!$E$5,'nelson siegel ASK'!$E$6,'nelson siegel ASK'!$E$7) -> 108.3472227 | C64: 1.5196251 | D64: 1.5196251
A65: =prices!N65 -> 112.1116195 | B65: =NSbondPrice(prices!$P$2,prices!$B65,prices!$C65/100,'nelson siegel ASK'!$E$4,'nelson siegel ASK'!$E$5,'nelson siegel ASK'!$E$6,'nelson siegel ASK'!$E$7) -> 110.5303614 | C65: 1.5812581 | D65: 1.5812581
A66: =prices!N66 -> 111.0577446 | B66: =NSbondPrice(prices!$P$2,prices!$B66,prices!$C66/100,'nelson siegel ASK'!$E$4,'nelson siegel ASK'!$E$5,'nelson siegel ASK'!$E$6,'nelson siegel ASK'!$E$7) -> 109.3289328 | C66: 1.728811786 | D66: 1.728811786
A67: =prices!N67 -> 109.8531595 | B67: =NSbondPrice(prices!$P$2,prices!$B67,prices!$C67/100,'nelson siegel ASK'!$E$4,'nelson siegel ASK'!$E$5,'nelson siegel ASK'!$E$6,'nelson siegel ASK'!$E$7) -> 108.1070353 | C67: 1.74612425 | D67: 1.74612425
A68: =prices!N68 -> 109.4605978 | B68: =NSbondPrice(prices!$P$2,prices!$B68,prices!$C68/100,'nelson siegel ASK'!$E$4,'nelson siegel ASK'!$E$5,'nelson siegel ASK'!$E$6,'nelson siegel ASK'!$E$7) -> 107.7016831 | C68: 1.758914738 | D68: 1.758914738
A69: =prices!N69 -> 108.890107 | B69: =NSbondPrice(prices!$P$2,prices!$B69,prices!$C69/100,'nelson siegel ASK'!$E$4,'nelson siegel ASK'!$E$5,'nelson siegel ASK'!$E$6,'nelson siegel ASK'!$E$7) -> 107.1459968 | C69: =A69-B69 -> 1.744110276 | D69: 1.744110276
A70: =prices!N70 -> 110.4327446 | B70: =NSbondPrice(prices!$P$2,prices!$B70,prices!$C70/100,'nelson siegel ASK'!$E$4,'nelson siegel ASK'!$E$5,'nelson siegel ASK'!$E$6,'nelson siegel ASK'!$E$7) -> 108.6019752 | C70: 1.830769353 | D70: =ABS(A70-B70) -> 1.830769353
A71: =prices!N71 -> 110.7636395 | B71: =NSbondPrice(prices!$P$2,prices!$B71,prices!$C71/100,'nelson siegel ASK'!$E$4,'nelson siegel ASK'!$E$5,'nelson siegel ASK'!$E$6,'nelson siegel ASK'!$E$7) -> 108.7014334 | C71: 2.062206076 | D71: 2.062206076
A72: =prices!N72 -> 111.5611413 | B72: =NSbondPrice(prices!$P$2,prices!$B72,prices!$C72/100,'nelson siegel ASK'!$E$4,'nelson siegel ASK'!$E$5,'nelson siegel ASK'!$E$6,'nelson siegel ASK'!$E$7) -> 109.6104189 | C72: 1.950722372 | D72: 1.950722372
A73: =prices!N73 -> 114.0164019 | B73: =NSbondPrice(prices!$P$2,prices!$B73,prices!$C73/100,'nelson siegel ASK'!$E$4,'nelson siegel ASK'!$E$5,'nelson siegel ASK'!$E$6,'nelson siegel ASK'!$E$7) -> 112.0123935 | C73: 2.004008468 | D73: 2.004008468
A74: =prices!N74 -> 113.7146739 | B74: =NSbondPrice(prices!$P$2,prices!$B74,prices!$C74/100,'nelson siegel ASK'!$E$4,'nelson siegel ASK'!$E$5,'nelson siegel ASK'!$E$6,'nelson siegel ASK'!$E$7) -> 111.5456503 | C74: 2.169023563 | D74: 2.169023563
A75: =prices!N75 -> 110.789192 | B75: =NSbondPrice(prices!$P$2,prices!$B75,prices!$C75/100,'nelson siegel ASK'!$E$4,'nelson siegel ASK'!$E$5,'nelson siegel ASK'!$E$6,'nelson siegel ASK'!$E$7) -> 108.5164346 | C75: 2.272757381 | D75: 2.272757381
A76: =prices!N76 -> 111.7425272 | B76: =NSbondPrice(prices!$P$2,prices!$B76,prices!$C76/100,'nelson siegel ASK'!$E$4,'nelson siegel ASK'!$E$5,'nelson siegel ASK'!$E$6,'nelson siegel ASK'!$E$7) -> 109.3965155 | C76: 2.346011697 | D76: 2.346011697
A77: =prices!N77 -> 109.5292645 | B77: =NSbondPrice(prices!$P$2,prices!$B77,prices!$C77/100,'nelson siegel ASK'!$E$4,'nelson siegel ASK'!$E$5,'nelson siegel ASK'!$E$6,'nelson siegel ASK'!$E$7) -> 107.1445134 | C77: 2.38475107 | D77: 2.38475107
A78: =prices!N78 -> 112.298913 | B78: =NSbondPrice(prices!$P$2,prices!$B78,prices!$C78/100,'nelson siegel ASK'!$E$4,'nelson siegel ASK'!$E$5,'nelson siegel ASK'!$E$6,'nelson siegel ASK'!$E$7) -> 109.7525724 | C78: 2.546340629 | D78: 2.546340629
A79: =prices!N79 -> 107.3375345 | B79: =NSbondPrice(prices!$P$2,prices!$B79,prices!$C79/100,'nelson siegel ASK'!$E$4,'nelson siegel ASK'!$E$5,'nelson siegel ASK'!$E$6,'nelson siegel ASK'!$E$7) -> 104.6999459 | C79: 2.63758865 | D79: 2.63758865
A80: =prices!N80 -> 102.5163043 | B80: =NSbondPrice(prices!$P$2,prices!$B80,prices!$C80/100,'nelson siegel ASK'!$E$4,'nelson siegel ASK'!$E$5,'nelson siegel ASK'!$E$6,'nelson siegel ASK'!$E$7) -> 99.67915397 | C80: 2.837150375 | D80: 2.837150375
A81: =prices!N81 -> 104.1046271 | B81: =NSbondPrice(prices!$P$2,prices!$B81,prices!$C81/100,'nelson siegel ASK'!$E$4,'nelson siegel ASK'!$E$5,'nelson siegel ASK'!$E$6,'nelson siegel ASK'!$E$7) -> 101.1414997 | C81: 2.963127363 | D81: 2.963127363
A82: =prices!N82 -> 147.3091033 | B82: =NSbondPrice(prices!$P$2,prices!$B82,prices!$C82/100,'nelson siegel ASK'!$E$4,'nelson siegel ASK'!$E$5,'nelson siegel ASK'!$E$6,'nelson siegel ASK'!$E$7) -> 148.8600929 | C82: =A82-B82 -> -1.550989611 | D82: =ABS(A82-B82) -> 1.550989611
A83: =prices!N83 -> 146.4646739 | B83: =NSbondPrice(prices!$P$2,prices!$B83,prices!$C83/100,'nelson siegel ASK'!$E$4,'nelson siegel ASK'!$E$5,'nelson siegel ASK'!$E$6,'nelson siegel ASK'!$E$7) -> 146.9782048 | C83: -0.513530839 | D83: 0.513530839
A84: =prices!N84 -> 140.6280214 | B84: =NSbondPrice(prices!$P$2,prices!$B84,prices!$C84/100,'nelson siegel ASK'!$E$4,'nelson siegel ASK'!$E$5,'nelson siegel ASK'!$E$6,'nelson siegel ASK'!$E$7) -> 143.6578088 | C84: -3.02978743 | D84: 3.02978743
A85: =prices!N85 -> 140.2038043 | B85: =NSbondPrice(prices!$P$2,prices!$B85,prices!$C85/100,'nelson siegel ASK'!$E$4,'nelson siegel ASK'!$E$5,'nelson siegel ASK'!$E$6,'nelson siegel ASK'!$E$7) -> 142.2863087 | C85: -2.082504389 | D85: 2.082504389
A86: =prices!N86 -> 126.5132942 | B86: =NSbondPrice(prices!$P$2,prices!$B86,prices!$C86/100,'nelson siegel ASK'!$E$4,'nelson siegel ASK'!$E$5,'nelson siegel ASK'!$E$6,'nelson siegel ASK'!$E$7) -> 126.5361813 | C86: -0.02288713613 | D86: 0.02288713613
A87: =prices!N87 -> 128.7831492 | B87: =NSbondPrice(prices!$P$2,prices!$B87,prices!$C87/100,'nelson siegel ASK'!$E$4,'nelson siegel ASK'!$E$5,'nelson siegel ASK'!$E$6,'nelson siegel ASK'!$E$7) -> 128.758221 | C87: 0.02492817541 | D87: 0.02492817541
A88: =prices!N88 -> 138.304299 | B88: =NSbondPrice(prices!$P$2,prices!$B88,prices!$C88/100,'nelson siegel ASK'!$E$4,'nelson siegel ASK'!$E$5,'nelson siegel ASK'!$E$6,'nelson siegel ASK'!$E$7) -> 141.1475517 | C88: -2.843252682 | D88: 2.843252682
A89: =prices!N89 -> 141.8002717 | B89: =NSbondPrice(prices!$P$2,prices!$B89,prices!$C89/100,'nelson siegel ASK'!$E$4,'nelson siegel ASK'!$E$5,'nelson siegel ASK'!$E$6,'nelson siegel ASK'!$E$7) -> 142.9569204 | C89: -1.156648636 | D89: 1.156648636
A90: =prices!N90 -> 143.7247065 | B90: =NSbondPrice(prices!$P$2,prices!$B90,prices!$C90/100,'nelson siegel ASK'!$E$4,'nelson siegel ASK'!$E$5,'nelson siegel ASK'!$E$6,'nelson siegel ASK'!$E$7) -> 145.8606086 | C90: -2.135902107 | D90: 2.135902107
A91: =prices!N91 -> 143.871029 | B91: =NSbondPrice(prices!$P$2,prices!$B91,prices!$C91/100,'nelson siegel ASK'!$E$4,'nelson siegel ASK'!$E$5,'nelson siegel ASK'!$E$6,'nelson siegel ASK'!$E$7) -> 142.8979641 | C91: 0.9730649224 | D91: 0.9730649224
A92: =prices!N92 -> 145.3940217 | B92: =NSbondPrice(prices!$P$2,prices!$B92,prices!$C92/100,'nelson siegel ASK'!$E$4,'nelson siegel ASK'!$E$5,'nelson siegel ASK'!$E$6,'nelson siegel ASK'!$E$7) -> 144.3019788 | C92: 1.092042934 | D92: 1.092042934
A93: =prices!N93 -> 139.9932065 | B93: =NSbondPrice(prices!$P$2,prices!$B93,prices!$C93/100,'nelson siegel ASK'!$E$4,'nelson siegel ASK'!$E$5,'nelson siegel ASK'!$E$6,'nelson siegel ASK'!$E$7) -> 137.7817482 | C93: 2.211458346 | D93: 2.211458346
A94: =prices!N94 -> 144.2873641 | B94: =NSbondPrice(prices!$P$2,prices!$B94,prices!$C94/100,'nelson siegel ASK'!$E$4,'nelson siegel ASK'!$E$5,'nelson siegel ASK'!$E$6,'nelson siegel ASK'!$E$7) -> 139.5080707 | C94: 4.779293427 | D94: 4.779293427
A95: =prices!N95 -> 144.835549 | B95: =NSbondPrice(prices!$P$2,prices!$B95,prices!$C95/100,'nelson siegel ASK'!$E$4,'nelson siegel ASK'!$E$5,'nelson siegel ASK'!$E$6,'nelson siegel ASK'!$E$7) -> 144.3417263 | C95: 0.4938227614 | D95: 0.4938227614
A96: =prices!N96 -> 147.4157609 | B96: =NSbondPrice(prices!$P$2,prices!$B96,prices!$C96/100,'nelson siegel ASK'!$E$4,'nelson siegel ASK'!$E$5,'nelson siegel ASK'!$E$6,'nelson siegel ASK'!$E$7) -> 142.448968 | C96: 4.966792855 | D96: 4.966792855
A97: =prices!N97 -> 140.0679348 | B97: =NSbondPrice(prices!$P$2,prices!$B97,prices!$C97/100,'nelson siegel ASK'!$E$4,'nelson siegel ASK'!$E$5,'nelson siegel ASK'!$E$6,'nelson siegel ASK'!$E$7) -> 136.3639828 | C97: 3.703951987 | D97: 3.703951987
A98: =prices!N98 -> 140.6609116 | B98: =NSbondPrice(prices!$P$2,prices!$B98,prices!$C98/100,'nelson siegel ASK'!$E$4,'nelson siegel ASK'!$E$5,'nelson siegel ASK'!$E$6,'nelson siegel ASK'!$E$7) -> 137.121881 | C98: 3.539030577 | D98: 3.539030577
A99: =prices!N99 -> 143.0244565 | B99: =NSbondPrice(prices!$P$2,prices!$B99,prices!$C99/100,'nelson siegel ASK'!$E$4,'nelson siegel ASK'!$E$5,'nelson siegel ASK'!$E$6,'nelson siegel ASK'!$E$7) -> 139.3252228 | C99: 3.699233737 | D99: 3.699233737
A100: =prices!N100 -> 140.0728591 | B100: =NSbondPrice(prices!$P$2,prices!$B100,prices!$C100/100,'nelson siegel ASK'!$E$4,'nelson siegel ASK'!$E$5,'nelson siegel ASK'!$E$6,'nelson siegel ASK'!$E$7) -> 138.3488984 | C100: 1.72396068 | D100: 1.72396068
A101: =prices!N101 -> 135.2078804 | B101: =NSbondPrice(prices!$P$2,prices!$B101,prices!$C101/100,'nelson siegel ASK'!$E$4,'nelson siegel ASK'!$E$5,'nelson siegel ASK'!$E$6,'nelson siegel ASK'!$E$7) -> 128.7578965 | C101: 6.449983959 | D101: 6.449983959
A102: =prices!N102 -> 137.4337017 | B102: =NSbondPrice(prices!$P$2,prices!$B102,prices!$C102/100,'nelson siegel ASK'!$E$4,'nelson siegel ASK'!$E$5,'nelson siegel ASK'!$E$6,'nelson siegel ASK'!$E$7) -> 134.9956402 | C102: 2.438061504 | D102: 2.438061504
A103: =prices!N103 -> 133.8858696 | B103: =NSbondPrice(prices!$P$2,prices!$B103,prices!$C103/100,'nelson siegel ASK'!$E$4,'nelson siegel ASK'!$E$5,'nelson siegel ASK'!$E$6,'nelson siegel ASK'!$E$7) -> 129.3713301 | C103: 4.51453947 | D103: 4.51453947
A104: =prices!N104 -> 124.6005435 | B104: =NSbondPrice(prices!$P$2,prices!$B104,prices!$C104/100,'nelson siegel ASK'!$E$4,'nelson siegel ASK'!$E$5,'nelson siegel ASK'!$E$6,'nelson siegel ASK'!$E$7) -> 118.9639709 | C104: 5.636572545 | D104: 5.636572545
A105: =prices!N105 -> 137.7987742 | B105: =NSbondPrice(prices!$P$2,prices!$B105,prices!$C105/100,'nelson siegel ASK'!$E$4,'nelson siegel ASK'!$E$5,'nelson siegel ASK'!$E$6,'nelson siegel ASK'!$E$7) -> 134.3400637 | C105: 3.458710457 | D105: 3.458710457
A106: =prices!N106 -> 141.267663 | B106: =NSbondPrice(prices!$P$2,prices!$B106,prices!$C106/100,'nelson siegel ASK'!$E$4,'nelson siegel ASK'!$E$5,'nelson siegel ASK'!$E$6,'nelson siegel ASK'!$E$7) -> 134.1365352 | C106: 7.131127893 | D106: 7.131127893
A107: =prices!N107 -> 132.7418478 | B107: =NSbondPrice(prices!$P$2,prices!$B107,prices!$C107/100,'nelson siegel ASK'!$E$4,'nelson siegel ASK'!$E$5,'nelson siegel ASK'!$E$6,'nelson siegel ASK'!$E$7) -> 126.821913 | C107: 5.919934859 | D107: 5.919934859
A108: =prices!N108 -> 122.3315217 | B108: =NSbondPrice(prices!$P$2,prices!$B108,prices!$C108/100,'nelson siegel ASK'!$E$4,'nelson siegel ASK'!$E$5,'nelson siegel ASK'!$E$6,'nelson siegel ASK'!$E$7) -> 115.8951057 | C108: 6.436416024 | D108: 6.436416024
A109: =prices!N109 -> 131.935462 | B109: =NSbondPrice(prices!$P$2,prices!$B109,prices!$C109/100,'nelson siegel ASK'!$E$4,'nelson siegel ASK'!$E$5,'nelson siegel ASK'!$E$6,'nelson siegel ASK'!$E$7) -> 123.8196356 | C109: 8.115826317 | D109: 8.115826317
A110: =prices!N110 -> 127.2193543 | B110: =NSbondPrice(prices!$P$2,prices!$B110,prices!$C110/100,'nelson siegel ASK'!$E$4,'nelson siegel ASK'!$E$5,'nelson siegel ASK'!$E$6,'nelson siegel ASK'!$E$7) -> 122.5006229 | C110: 4.718731391 | D110: 4.718731391
A111: =prices!N111 -> 130.4728261 | B111: =NSbondPrice(prices!$P$2,prices!$B111,prices!$C111/100,'nelson siegel ASK'!$E$4,'nelson siegel ASK'!$E$5,'nelson siegel ASK'!$E$6,'nelson siegel ASK'!$E$7) -> 122.5709898 | C111: 7.901836257 | D111: 7.901836257
A112: =prices!N112 -> 127.5006793 | B112: =NSbondPrice(prices!$P$2,prices!$B112,prices!$C112/100,'nelson siegel ASK'!$E$4,'nelson siegel ASK'!$E$5,'nelson siegel ASK'!$E$6,'nelson siegel ASK'!$E$7) -> 120.9924531 | C112: 6.508226236 | D112: 6.508226236
A113: =prices!N113 -> 122.8614468 | B113: =NSbondPrice(prices!$P$2,prices!$B113,prices!$C113/100,'nelson siegel ASK'!$E$4,'nelson siegel ASK'!$E$5,'nelson siegel ASK'!$E$6,'nelson siegel ASK'!$E$7) -> 117.7954466 | C113: 5.066000186 | D113: 5.066000186
A114: =prices!N114 -> 116.1841033 | B114: =NSbondPrice(prices!$P$2,prices!$B114,prices!$C114/100,'nelson siegel ASK'!$E$4,'nelson siegel ASK'!$E$5,'nelson siegel ASK'!$E$6,'nelson siegel ASK'!$E$7) -> 108.073842 | C114: 8.110261278 | D114: 8.110261278
A115: =prices!N115 -> 111.6200794 | B115: =NSbondPrice(prices!$P$2,prices!$B115,prices!$C115/100,'nelson siegel ASK'!$E$4,'nelson siegel ASK'!$E$5,'nelson siegel ASK'!$E$6,'nelson siegel ASK'!$E$7) -> 106.0219767 | C115: 5.598102754 | D115: 5.598102754
A116: =prices!N116 -> 112.8838315 | B116: =NSbondPrice(prices!$P$2,prices!$B116,prices!$C116/100,'nelson siegel ASK'!$E$4,'nelson siegel ASK'!$E$5,'nelson siegel ASK'!$E$6,'nelson siegel ASK'!$E$7) -> 107.281122 | C116: 5.602709537 | D116: 5.602709537
A117: =prices!N117 -> 125.0441576 | B117: =NSbondPrice(prices!$P$2,prices!$B117,prices!$C117/100,'nelson siegel ASK'!$E$4,'nelson siegel ASK'!$E$5,'nelson siegel ASK'!$E$6,'nelson siegel ASK'!$E$7) -> 121.4134215 | C117: 3.630736126 | D117: 3.630736126
A118: =prices!N118 -> 125.6213743 | B118: =NSbondPrice(prices!$P$2,prices!$B118,prices!$C118/100,'nelson siegel ASK'!$E$4,'nelson siegel ASK'!$E$5,'nelson siegel ASK'!$E$6,'nelson siegel ASK'!$E$7) -> 122.0069802 | C118: 3.614394147 | D118: 3.614394147

Sheet Plot Discount
A1: maturity | B1: Nelson Siegel | C1: Cubic Spline
A2: 0.01 | B2: =NelsonSiegel(A2, 'nelson siegel ASK'!$E$4, 'nelson siegel ASK'!$E$5, 'nelson siegel ASK'!$E$6, 'nelson siegel ASK'!$E$7)*100 -> -0.2213109709 | C2: =100*cubicSpline(A2,'cubic spline'!$F$4,'cubic spline'!$F$5,'cubic spline'!$F$6,'cubic spline'!$F$7,'cubic spline'!$F$8,'cubic spline'!$F$9,'cubic spline'!$F$10,'cubic spline'!$F$11,'cubic spline'!$F$12,'cubic spline'!$F$13) -> -0.1891069925
A3: 0.5 | B3: =NelsonSiegel(A3, 'nelson siegel ASK'!$E$4, 'nelson siegel ASK'!$E$5, 'nelson siegel ASK'!$E$6, 'nelson siegel ASK'!$E$7)*100 -> 0.155330354 | C3: =100*cubicSpline(A3,'cubic spline'!$F$4,'cubic spline'!$F$5,'cubic spline'!$F$6,'cubic spline'!$F$7,'cubic spline'!$F$8,'cubic spline'!$F$9,'cubic spline'!$F$10,'cubic spline'!$F$11,'cubic spline'!$F$12,'cubic spline'!$F$13) -> 0.08103268596
A4: 1 | B4: =NelsonSiegel(A4, 'nelson siegel ASK'!$E$4, 'nelson siegel ASK'!$E$5, 'nelson siegel ASK'!$E$6, 'nelson siegel ASK'!$E$7)*100 -> 0.5191095535 | C4: =100*cubicSpline(A4,'cubic spline'!$F$4,'cubic spline'!$F$5,'cubic spline'!$F$6,'cubic spline'!$F$7,'cubic spline'!$F$8,'cubic spline'!$F$9,'cubic spline'!$F$10,'cubic spline'!$F$11,'cubic spline'!$F$12,'cubic spline'!$F$13) -> 0.3550115772
A5: 1.5 | B5: =NelsonSiegel(A5, 'nelson siegel ASK'!$E$4, 'nelson siegel ASK'!$E$5, 'nelson siegel ASK'!$E$6, 'nelson siegel ASK'!$E$7)*100 -> 0.8630298891 | C5: =100*cubicSpline(A5,'cubic spline'!$F$4,'cubic spline'!$F$5,'cubic spline'!$F$6,'cubic spline'!$F$7,'cubic spline'!$F$8,'cubic spline'!$F$9,'cubic spline'!$F$10,'cubic spline'!$F$11,'cubic spline'!$F$12,'cubic spline'!$F$13) -> 0.6266179728
A6: 2 | B6: =NelsonSiegel(A6, 'nelson siegel ASK'!$E$4, 'nelson siegel ASK'!$E$5, 'nelson siegel ASK'!$E$6, 'nelson siegel ASK'!$E$7)*100 -> 1.18795808 | C6: =100*cubicSpline(A6,'cubic spline'!$F$4,'cubic spline'!$F$5,'cubic spline'!$F$6,'cubic spline'!$F$7,'cubic spline'!$F$8,'cubic spline'!$F$9,'cubic spline'!$F$10,'cubic spline'!$F$11,'cubic spline'!$F$12,'cubic spline'!$F$13) -> 0.8951655509
A7: 2.5 | B7: =NelsonSiegel(A7, 'nelson siegel ASK'!$E$4, 'nelson siegel ASK'!$E$5, 'nelson siegel ASK'!$E$6, 'nelson siegel ASK'!$E$7)*100 -> 1.494725432 | C7: =100*cubicSpline(A7,'cubic spline'!$F$4,'cubic spline'!$F$5,'cubic spline'!$F$6,'cubic spline'!$F$7,'cubic spline'!$F$8,'cubic spline'!$F$9,'cubic spline'!$F$10,'cubic spline'!$F$11,'cubic spline'!$F$12,'cubic spline'!$F$13) -> 1.15996799
A8: 3 | B8: =NelsonSiegel(A8, 'nelson siegel ASK'!$E$4, 'nelson siegel ASK'!$E$5, 'nelson siegel ASK'!$E$6, 'nelson siegel ASK'!$E$7)*100 -> 1.784129244 | C8: =100*cubicSpline(A8,'cubic spline'!$F$4,'cubic spline'!$F$5,'cubic spline'!$F$6,'cubic spline'!$F$7,'cubic spline'!$F$8,'cubic spline'!$F$9,'cubic spline'!$F$10,'cubic spline'!$F$11,'cubic spline'!$F$12,'cubic spline'!$F$13) -> 1.420338968
A9: 3.5 | B9: =NelsonSiegel(A9, 'nelson siegel ASK'!$E$4, 'nelson siegel ASK'!$E$5, 'nelson siegel ASK'!$E$6, 'nelson siegel ASK'!$E$7)*100 -> 2.056934162 | C9: =100*cubicSpline(A9,'cubic spline'!$F$4,'cubic spline'!$F$5,'cubic spline'!$F$6,'cubic spline'!$F$7,'cubic spline'!$F$8,'cubic spline'!$F$9,'cubic spline'!$F$10,'cubic spline'!$F$11,'cubic spline'!$F$12,'cubic spline'!$F$13) -> 1.675592163
A10: 4 | B10: =NelsonSiegel(A10, 'nelson siegel ASK'!$E$4, 'nelson siegel ASK'!$E$5, 'nelson siegel ASK'!$E$6, 'nelson siegel ASK'!$E$7)*100 -> 2.313873472 | C10: =100*cubicSpline(A10,'cubic spline'!$F$4,'cubic spline'!$F$5,'cubic spline'!$F$6,'cubic spline'!$F$7,'cubic spline'!$F$8,'cubic spline'!$F$9,'cubic spline'!$F$10,'cubic spline'!$F$11,'cubic spline'!$F$12,'cubic spline'!$F$13) -> 1.925041253
A11: 4.5 | B11: =NelsonSiegel(A11, 'nelson siegel ASK'!$E$4, 'nelson siegel ASK'!$E$5, 'nelson siegel ASK'!$E$6, 'nelson siegel ASK'!$E$7)*100 -> 2.555650349 | C11: =100*cubicSpline(A11,'cubic spline'!$F$4,'cubic spline'!$F$5,'cubic spline'!$F$6,'cubic spline'!$F$7,'cubic spline'!$F$8,'cubic spline'!$F$9,'cubic spline'!$F$10,'cubic spline'!$F$11,'cubic spline'!$F$12,'cubic spline'!$F$13) -> 2.167999918
A12: 5 | B12: =NelsonSiegel(A12, 'nelson siegel ASK'!$E$4, 'nelson siegel ASK'!$E$5, 'nelson siegel ASK'!$E$6, 'nelson siegel ASK'!$E$7)*100 -> 2.782939058 | C12: =100*cubicSpline(A12,'cubic spline'!$F$4,'cubic spline'!$F$5,'cubic spline'!$F$6,'cubic spline'!$F$7,'cubic spline'!$F$8,'cubic spline'!$F$9,'cubic spline'!$F$10,'cubic spline'!$F$11,'cubic spline'!$F$12,'cubic spline'!$F$13) -> 2.403781834
A13: 5.5 | B13: =NelsonSiegel(A13, 'nelson siegel ASK'!$E$4, 'nelson siegel ASK'!$E$5, 'nelson siegel ASK'!$E$6, 'nelson siegel ASK'!$E$7)*100 -> 2.996386104 | C13: =100*cubicSpline(A13,'cubic spline'!$F$4,'cubic spline'!$F$5,'cubic spline'!$F$6,'cubic spline'!$F$7,'cubic spline'!$F$8,'cubic spline'!$F$9,'cubic spline'!$F$10,'cubic spline'!$F$11,'cubic spline'!$F$12,'cubic spline'!$F$13) -> 2.63170068
A14: 6 | B14: =NelsonSiegel(A14, 'nelson siegel ASK'!$E$4, 'nelson siegel ASK'!$E$5, 'nelson siegel ASK'!$E$6, 'nelson siegel ASK'!$E$7)*100 -> 3.196611339 | C14: =100*cubicSpline(A14,'cubic spline'!$F$4,'cubic spline'!$F$5,'cubic spline'!$F$6,'cubic spline'!$F$7,'cubic spline'!$F$8,'cubic spline'!$F$9,'cubic spline'!$F$10,'cubic spline'!$F$11,'cubic spline'!$F$12,'cubic spline'!$F$13) -> 2.851070134
A15: 6.5 | B15: =NelsonSiegel(A15, 'nelson siegel ASK'!$E$4, 'nelson siegel ASK'!$E$5, 'nelson siegel ASK'!$E$6, 'nelson siegel ASK'!$E$7)*100 -> 3.384209021 | C15: =100*cubicSpline(A15,'cubic spline'!$F$4,'cubic spline'!$F$5,'cubic spline'!$F$6,'cubic spline'!$F$7,'cubic spline'!$F$8,'cubic spline'!$F$9,'cubic spline'!$F$10,'cubic spline'!$F$11,'cubic spline'!$F$12,'cubic spline'!$F$13) -> 3.061203875
A16: 7 | B16: =NelsonSiegel(A16, 'nelson siegel ASK'!$E$4, 'nelson siegel ASK'!$E$5, 'nelson siegel ASK'!$E$6, 'nelson siegel ASK'!$E$7)*100 -> 3.559748843 | C16: =100*cubicSpline(A16,'cubic spline'!$F$4,'cubic spline'!$F$5,'cubic spline'!$F$6,'cubic spline'!$F$7,'cubic spline'!$F$8,'cubic spline'!$F$9,'cubic spline'!$F$10,'cubic spline'!$F$11,'cubic spline'!$F$12,'cubic spline'!$F$13) -> 3.26141558
A17: 7.5 | B17: =NelsonSiegel(A17, 'nelson siegel ASK'!$E$4, 'nelson siegel ASK'!$E$5, 'nelson siegel ASK'!$E$6, 'nelson siegel ASK'!$E$7)*100 -> 3.723776906 | C17: =100*cubicSpline(A17,'cubic spline'!$F$4,'cubic spline'!$F$5,'cubic spline'!$F$6,'cubic spline'!$F$7,'cubic spline'!$F$8,'cubic spline'!$F$9,'cubic spline'!$F$10,'cubic spline'!$F$11,'cubic spline'!$F$12,'cubic spline'!$F$13) -> 3.451018929
A18: 8 | B18: =NelsonSiegel(A18, 'nelson siegel ASK'!$E$4, 'nelson siegel ASK'!$E$5, 'nelson siegel ASK'!$E$6, 'nelson siegel ASK'!$E$7)*100 -> 3.876816671 | C18: =100*cubicSpline(A18,'cubic spline'!$F$4,'cubic spline'!$F$5,'cubic spline'!$F$6,'cubic spline'!$F$7,'cubic spline'!$F$8,'cubic spline'!$F$9,'cubic spline'!$F$10,'cubic spline'!$F$11,'cubic spline'!$F$12,'cubic spline'!$F$13) -> 3.629327598
A19: 8.5 | B19: =NelsonSiegel(A19, 'nelson siegel ASK'!$E$4, 'nelson siegel ASK'!$E$5, 'nelson siegel ASK'!$E$6, 'nelson siegel ASK'!$E$7)*100 -> 4.019369855 | C19: =100*cubicSpline(A19,'cubic spline'!$F$4,'cubic spline'!$F$5,'cubic spline'!$F$6,'cubic spline'!$F$7,'cubic spline'!$F$8,'cubic spline'!$F$9,'cubic spline'!$F$10,'cubic spline'!$F$11,'cubic spline'!$F$12,'cubic spline'!$F$13) -> 3.795655267
A20: 9 | B20: =NelsonSiegel(A20, 'nelson siegel ASK'!$E$4, 'nelson siegel ASK'!$E$5, 'nelson siegel ASK'!$E$6, 'nelson siegel ASK'!$E$7)*100 -> 4.151917308 | C20: =100*cubicSpline(A20,'cubic spline'!$F$4,'cubic spline'!$F$5,'cubic spline'!$F$6,'cubic spline'!$F$7,'cubic spline'!$F$8,'cubic spline'!$F$9,'cubic spline'!$F$10,'cubic spline'!$F$11,'cubic spline'!$F$12,'cubic spline'!$F$13) -> 3.949315614
A21: 9.5 | B21: =NelsonSiegel(A21, 'nelson siegel ASK'!$E$4, 'nelson siegel ASK'!$E$5, 'nelson siegel ASK'!$E$6, 'nelson siegel ASK'!$E$7)*100 -> 4.274919848 | C21: =100*cubicSpline(A21,'cubic spline'!$F$4,'cubic spline'!$F$5,'cubic spline'!$F$6,'cubic spline'!$F$7,'cubic spline'!$F$8,'cubic spline'!$F$9,'cubic spline'!$F$10,'cubic spline'!$F$11,'cubic spline'!$F$12,'cubic spline'!$F$13) -> 4.089622316
A22: 10 | B22: =NelsonSiegel(A22, 'nelson siegel ASK'!$E$4, 'nelson siegel ASK'!$E$5, 'nelson siegel ASK'!$E$6, 'nelson siegel ASK'!$E$7)*100 -> 4.388819061 | C22: =100*cubicSpline(A22,'cubic spline'!$F$4,'cubic spline'!$F$5,'cubic spline'!$F$6,'cubic spline'!$F$7,'cubic spline'!$F$8,'cubic spline'!$F$9,'cubic spline'!$F$10,'cubic spline'!$F$11,'cubic spline'!$F$12,'cubic spline'!$F$13) -> 4.215889052
A23: 10.5 | B23: =NelsonSiegel(A23, 'nelson siegel ASK'!$E$4, 'nelson siegel ASK'!$E$5, 'nelson siegel ASK'!$E$6, 'nelson siegel ASK'!$E$7)*100 -> 4.494038075 | C23: =100*cubicSpline(A23,'cubic spline'!$F$4,'cubic spline'!$F$5,'cubic spline'!$F$6,'cubic spline'!$F$7,'cubic spline'!$F$8,'cubic spline'!$F$9,'cubic spline'!$F$10,'cubic spline'!$F$11,'cubic spline'!$F$12,'cubic spline'!$F$13) -> 4.327659134
A24: 11 | B24: =NelsonSiegel(A24, 'nelson siegel ASK'!$E$4, 'nelson siegel ASK'!$E$5, 'nelson siegel ASK'!$E$6, 'nelson siegel ASK'!$E$7)*100 -> 4.590982304 | C24: =100*cubicSpline(A24,'cubic spline'!$F$4,'cubic spline'!$F$5,'cubic spline'!$F$6,'cubic spline'!$F$7,'cubic spline'!$F$8,'cubic spline'!$F$9,'cubic spline'!$F$10,'cubic spline'!$F$11,'cubic spline'!$F$12,'cubic spline'!$F$13) -> 4.425394403
A25: 11.5 | B25: =NelsonSiegel(A25, 'nelson siegel ASK'!$E$4, 'nelson siegel ASK'!$E$5, 'nelson siegel ASK'!$E$6, 'nelson siegel ASK'!$E$7)*100 -> 4.680040153 | C25: =100*cubicSpline(A25,'cubic spline'!$F$4,'cubic spline'!$F$5,'cubic spline'!$F$6,'cubic spline'!$F$7,'cubic spline'!$F$8,'cubic spline'!$F$9,'cubic spline'!$F$10,'cubic spline'!$F$11,'cubic spline'!$F$12,'cubic spline'!$F$13) -> 4.509786337
A26: 12 | B26: =NelsonSiegel(A26, 'nelson siegel ASK'!$E$4, 'nelson siegel ASK'!$E$5, 'nelson siegel ASK'!$E$6, 'nelson siegel ASK'!$E$7)*100 ->  | C26: =100*cubicSpline(A26,'cubic spline'!$F$4,'cubic spline'!$F$5,'cubic spline'!$F$6,'cubic spline'!$F$7,'cubic spline'!$F$8,'cubic spline'!$F$9,'cubic spline'!$F$10,'cubic spline'!$F$11,'cubic spline'!$F$12,'cubic spline'!$F$13) -> 4.58152641
A27: 12.5 | B27: =NelsonSiegel(A27, 'nelson siegel ASK'!$E$4, 'nelson siegel ASK'!$E$5, 'nelson siegel ASK'!$E$6, 'nelson siegel ASK'!$E$7)*100 -> 4.835969393 | C27: =100*cubicSpline(A27,'cubic spline'!$F$4,'cubic spline'!$F$5,'cubic spline'!$F$6,'cubic spline'!$F$7,'cubic spline'!$F$8,'cubic spline'!$F$9,'cubic spline'!$F$10,'cubic spline'!$F$11,'cubic spline'!$F$12,'cubic spline'!$F$13) -> 4.6413061 | F27: =xsq(2) -> 
A28: 13 | B28: =NelsonSiegel(A28, 'nelson siegel ASK'!$E$4, 'nelson siegel ASK'!$E$5, 'nelson siegel ASK'!$E$6, 'nelson siegel ASK'!$E$7)*100 -> 4.903538594 | C28: =100*cubicSpline(A28,'cubic spline'!$F$4,'cubic spline'!$F$5,'cubic spline'!$F$6,'cubic spline'!$F$7,'cubic spline'!$F$8,'cubic spline'!$F$9,'cubic spline'!$F$10,'cubic spline'!$F$11,'cubic spline'!$F$12,'cubic spline'!$F$13) -> 4.689816881
A29: 13.5 | B29: =NelsonSiegel(A29, 'nelson siegel ASK'!$E$4, 'nelson siegel ASK'!$E$5, 'nelson siegel ASK'!$E$6, 'nelson siegel ASK'!$E$7)*100 -> 4.964618274 | C29: =100*cubicSpline(A29,'cubic spline'!$F$4,'cubic spline'!$F$5,'cubic spline'!$F$6,'cubic spline'!$F$7,'cubic spline'!$F$8,'cubic spline'!$F$9,'cubic spline'!$F$10,'cubic spline'!$F$11,'cubic spline'!$F$12,'cubic spline'!$F$13) -> 4.727750231
A30: 14 | B30: =NelsonSiegel(A30, 'nelson siegel ASK'!$E$4, 'nelson siegel ASK'!$E$5, 'nelson siegel ASK'!$E$6, 'nelson siegel ASK'!$E$7)*100 -> 5.019521554 | C30: =100*cubicSpline(A30,'cubic spline'!$F$4,'cubic spline'!$F$5,'cubic spline'!$F$6,'cubic spline'!$F$7,'cubic spline'!$F$8,'cubic spline'!$F$9,'cubic spline'!$F$10,'cubic spline'!$F$11,'cubic spline'!$F$12,'cubic spline'!$F$13) -> 4.755797624
A31: 14.5 | B31: =NelsonSiegel(A31, 'nelson siegel ASK'!$E$4, 'nelson siegel ASK'!$E$5, 'nelson siegel ASK'!$E$6, 'nelson siegel ASK'!$E$7)*100 -> 5.068548264 | C31: =100*cubicSpline(A31,'cubic spline'!$F$4,'cubic spline'!$F$5,'cubic spline'!$F$6,'cubic spline'!$F$7,'cubic spline'!$F$8,'cubic spline'!$F$9,'cubic spline'!$F$10,'cubic spline'!$F$11,'cubic spline'!$F$12,'cubic spline'!$F$13) -> 4.774650537
A32: 15 | B32: =NelsonSiegel(A32, 'nelson siegel ASK'!$E$4, 'nelson siegel ASK'!$E$5, 'nelson siegel ASK'!$E$6, 'nelson siegel ASK'!$E$7)*100 -> 5.111985493 | C32: =100*cubicSpline(A32,'cubic spline'!$F$4,'cubic spline'!$F$5,'cubic spline'!$F$6,'cubic spline'!$F$7,'cubic spline'!$F$8,'cubic spline'!$F$9,'cubic spline'!$F$10,'cubic spline'!$F$11,'cubic spline'!$F$12,'cubic spline'!$F$13) -> 4.785000445
A33: 15.5 | B33: =NelsonSiegel(A33, 'nelson siegel ASK'!$E$4, 'nelson siegel ASK'!$E$5, 'nelson siegel ASK'!$E$6, 'nelson siegel ASK'!$E$7)*100 -> 5.150108094 | C33: =100*cubicSpline(A33,'cubic spline'!$F$4,'cubic spline'!$F$5,'cubic spline'!$F$6,'cubic spline'!$F$7,'cubic spline'!$F$8,'cubic spline'!$F$9,'cubic spline'!$F$10,'cubic spline'!$F$11,'cubic spline'!$F$12,'cubic spline'!$F$13) -> 4.787538825
A34: 16 | B34: =NelsonSiegel(A34, 'nelson siegel ASK'!$E$4, 'nelson siegel ASK'!$E$5, 'nelson siegel ASK'!$E$6, 'nelson siegel ASK'!$E$7)*100 -> 5.183179185 | C34: =100*cubicSpline(A34,'cubic spline'!$F$4,'cubic spline'!$F$5,'cubic spline'!$F$6,'cubic spline'!$F$7,'cubic spline'!$F$8,'cubic spline'!$F$9,'cubic spline'!$F$10,'cubic spline'!$F$11,'cubic spline'!$F$12,'cubic spline'!$F$13) -> 4.782957153
A35: 16.5 | B35: =NelsonSiegel(A35, 'nelson siegel ASK'!$E$4, 'nelson siegel ASK'!$E$5, 'nelson siegel ASK'!$E$6, 'nelson siegel ASK'!$E$7)*100 -> 5.211450626 | C35: =100*cubicSpline(A35,'cubic spline'!$F$4,'cubic spline'!$F$5,'cubic spline'!$F$6,'cubic spline'!$F$7,'cubic spline'!$F$8,'cubic spline'!$F$9,'cubic spline'!$F$10,'cubic spline'!$F$11,'cubic spline'!$F$12,'cubic spline'!$F$13) -> 4.771946904
A36: 17 | B36: =NelsonSiegel(A36, 'nelson siegel ASK'!$E$4, 'nelson siegel ASK'!$E$5, 'nelson siegel ASK'!$E$6, 'nelson siegel ASK'!$E$7)*100 -> 5.235163472 | C36: =100*cubicSpline(A36,'cubic spline'!$F$4,'cubic spline'!$F$5,'cubic spline'!$F$6,'cubic spline'!$F$7,'cubic spline'!$F$8,'cubic spline'!$F$9,'cubic spline'!$F$10,'cubic spline'!$F$11,'cubic spline'!$F$12,'cubic spline'!$F$13) -> 4.755199555
A37: 17.5 | B37: =NelsonSiegel(A37, 'nelson siegel ASK'!$E$4, 'nelson siegel ASK'!$E$5, 'nelson siegel ASK'!$E$6, 'nelson siegel ASK'!$E$7)*100 -> 5.254548417 | C37: =100*cubicSpline(A37,'cubic spline'!$F$4,'cubic spline'!$F$5,'cubic spline'!$F$6,'cubic spline'!$F$7,'cubic spline'!$F$8,'cubic spline'!$F$9,'cubic spline'!$F$10,'cubic spline'!$F$11,'cubic spline'!$F$12,'cubic spline'!$F$13) -> 4.733406581
A38: 18 | B38: =NelsonSiegel(A38, 'nelson siegel ASK'!$E$4, 'nelson siegel ASK'!$E$5, 'nelson siegel ASK'!$E$6, 'nelson siegel ASK'!$E$7)*100 -> 5.269826209 | C38: =100*cubicSpline(A38,'cubic spline'!$F$4,'cubic spline'!$F$5,'cubic spline'!$F$6,'cubic spline'!$F$7,'cubic spline'!$F$8,'cubic spline'!$F$9,'cubic spline'!$F$10,'cubic spline'!$F$11,'cubic spline'!$F$12,'cubic spline'!$F$13) -> 4.707259458
A39: 18.5 | B39: =NelsonSiegel(A39, 'nelson siegel ASK'!$E$4, 'nelson siegel ASK'!$E$5, 'nelson siegel ASK'!$E$6, 'nelson siegel ASK'!$E$7)*100 -> 5.281208062 | C39: =100*cubicSpline(A39,'cubic spline'!$F$4,'cubic spline'!$F$5,'cubic spline'!$F$6,'cubic spline'!$F$7,'cubic spline'!$F$8,'cubic spline'!$F$9,'cubic spline'!$F$10,'cubic spline'!$F$11,'cubic spline'!$F$12,'cubic spline'!$F$13) -> 4.677449662
A40: 19 | B40: =NelsonSiegel(A40, 'nelson siegel ASK'!$E$4, 'nelson siegel ASK'!$E$5, 'nelson siegel ASK'!$E$6, 'nelson siegel ASK'!$E$7)*100 -> 5.288896042 | C40: =100*cubicSpline(A40,'cubic spline'!$F$4,'cubic spline'!$F$5,'cubic spline'!$F$6,'cubic spline'!$F$7,'cubic spline'!$F$8,'cubic spline'!$F$9,'cubic spline'!$F$10,'cubic spline'!$F$11,'cubic spline'!$F$12,'cubic spline'!$F$13) -> 4.64466867
A41: 19.5 | B41: =NelsonSiegel(A41, 'nelson siegel ASK'!$E$4, 'nelson siegel ASK'!$E$5, 'nelson siegel ASK'!$E$6, 'nelson siegel ASK'!$E$7)*100 -> 5.293083439 | C41: =100*cubicSpline(A41,'cubic spline'!$F$4,'cubic spline'!$F$5,'cubic spline'!$F$6,'cubic spline'!$F$7,'cubic spline'!$F$8,'cubic spline'!$F$9,'cubic spline'!$F$10,'cubic spline'!$F$11,'cubic spline'!$F$12,'cubic spline'!$F$13) -> 4.609607957
A42: 20 | B42: =NelsonSiegel(A42, 'nelson siegel ASK'!$E$4, 'nelson siegel ASK'!$E$5, 'nelson siegel ASK'!$E$6, 'nelson siegel ASK'!$E$7)*100 -> 5.293955128 | C42: =100*cubicSpline(A42,'cubic spline'!$F$4,'cubic spline'!$F$5,'cubic spline'!$F$6,'cubic spline'!$F$7,'cubic spline'!$F$8,'cubic spline'!$F$9,'cubic spline'!$F$10,'cubic spline'!$F$11,'cubic spline'!$F$12,'cubic spline'!$F$13) -> 4.572958999
A43: 20.5 | B43: =NelsonSiegel(A43, 'nelson siegel ASK'!$E$4, 'nelson siegel ASK'!$E$5, 'nelson siegel ASK'!$E$6, 'nelson siegel ASK'!$E$7)*100 -> 5.291687911 | C43: =100*cubicSpline(A43,'cubic spline'!$F$4,'cubic spline'!$F$5,'cubic spline'!$F$6,'cubic spline'!$F$7,'cubic spline'!$F$8,'cubic spline'!$F$9,'cubic spline'!$F$10,'cubic spline'!$F$11,'cubic spline'!$F$12,'cubic spline'!$F$13) -> 4.534082077
A44: 21 | B44: =NelsonSiegel(A44, 'nelson siegel ASK'!$E$4, 'nelson siegel ASK'!$E$5, 'nelson siegel ASK'!$E$6, 'nelson siegel ASK'!$E$7)*100 -> 5.286450849 | C44: =100*cubicSpline(A44,'cubic spline'!$F$4,'cubic spline'!$F$5,'cubic spline'!$F$6,'cubic spline'!$F$7,'cubic spline'!$F$8,'cubic spline'!$F$9,'cubic spline'!$F$10,'cubic spline'!$F$11,'cubic spline'!$F$12,'cubic spline'!$F$13) -> 4.498476256
A45: 21.5 | B45: =NelsonSiegel(A45, 'nelson siegel ASK'!$E$4, 'nelson siegel ASK'!$E$5, 'nelson siegel ASK'!$E$6, 'nelson siegel ASK'!$E$7)*100 -> 5.278405583 | C45: =100*cubicSpline(A45,'cubic spline'!$F$4,'cubic spline'!$F$5,'cubic spline'!$F$6,'cubic spline'!$F$7,'cubic spline'!$F$8,'cubic spline'!$F$9,'cubic spline'!$F$10,'cubic spline'!$F$11,'cubic spline'!$F$12,'cubic spline'!$F$13) -> 4.4670341
A46: 22 | B46: =NelsonSiegel(A46, 'nelson siegel ASK'!$E$4, 'nelson siegel ASK'!$E$5, 'nelson siegel ASK'!$E$6, 'nelson siegel ASK'!$E$7)*100 -> 5.26770663 | C46: =100*cubicSpline(A46,'cubic spline'!$F$4,'cubic spline'!$F$5,'cubic spline'!$F$6,'cubic spline'!$F$7,'cubic spline'!$F$8,'cubic spline'!$F$9,'cubic spline'!$F$10,'cubic spline'!$F$11,'cubic spline'!$F$12,'cubic spline'!$F$13) -> 4.442285828
A47: 22.5 | B47: =NelsonSiegel(A47, 'nelson siegel ASK'!$E$4, 'nelson siegel ASK'!$E$5, 'nelson siegel ASK'!$E$6, 'nelson siegel ASK'!$E$7)*100 -> 5.254501685 | C47: =100*cubicSpline(A47,'cubic spline'!$F$4,'cubic spline'!$F$5,'cubic spline'!$F$6,'cubic spline'!$F$7,'cubic spline'!$F$8,'cubic spline'!$F$9,'cubic spline'!$F$10,'cubic spline'!$F$11,'cubic spline'!$F$12,'cubic spline'!$F$13) -> 4.426761658
A48: 23 | B48: =NelsonSiegel(A48, 'nelson siegel ASK'!$E$4, 'nelson siegel ASK'!$E$5, 'nelson siegel ASK'!$E$6, 'nelson siegel ASK'!$E$7)*100 -> 5.238931897 | C48: =100*cubicSpline(A48,'cubic spline'!$F$4,'cubic spline'!$F$5,'cubic spline'!$F$6,'cubic spline'!$F$7,'cubic spline'!$F$8,'cubic spline'!$F$9,'cubic spline'!$F$10,'cubic spline'!$F$11,'cubic spline'!$F$12,'cubic spline'!$F$13) -> 4.422991806
A49: 23.5 | B49: =NelsonSiegel(A49, 'nelson siegel ASK'!$E$4, 'nelson siegel ASK'!$E$5, 'nelson siegel ASK'!$E$6, 'nelson siegel ASK'!$E$7)*100 -> 5.221132139 | C49: =100*cubicSpline(A49,'cubic spline'!$F$4,'cubic spline'!$F$5,'cubic spline'!$F$6,'cubic spline'!$F$7,'cubic spline'!$F$8,'cubic spline'!$F$9,'cubic spline'!$F$10,'cubic spline'!$F$11,'cubic spline'!$F$12,'cubic spline'!$F$13) -> 4.433506491
A50: 24 | B50: =NelsonSiegel(A50, 'nelson siegel ASK'!$E$4, 'nelson siegel ASK'!$E$5, 'nelson siegel ASK'!$E$6, 'nelson siegel ASK'!$E$7)*100 -> 5.201231269 | C50: =100*cubicSpline(A50,'cubic spline'!$F$4,'cubic spline'!$F$5,'cubic spline'!$F$6,'cubic spline'!$F$7,'cubic spline'!$F$8,'cubic spline'!$F$9,'cubic spline'!$F$10,'cubic spline'!$F$11,'cubic spline'!$F$12,'cubic spline'!$F$13) -> 4.460835929
A51: 24.5 | B51: =NelsonSiegel(A51, 'nelson siegel ASK'!$E$4, 'nelson siegel ASK'!$E$5, 'nelson siegel ASK'!$E$6, 'nelson siegel ASK'!$E$7)*100 -> 5.179352378 | C51: =100*cubicSpline(A51,'cubic spline'!$F$4,'cubic spline'!$F$5,'cubic spline'!$F$6,'cubic spline'!$F$7,'cubic spline'!$F$8,'cubic spline'!$F$9,'cubic spline'!$F$10,'cubic spline'!$F$11,'cubic spline'!$F$12,'cubic spline'!$F$13) -> 4.507510339
A52: 25 | B52: =NelsonSiegel(A52, 'nelson siegel ASK'!$E$4, 'nelson siegel ASK'!$E$5, 'nelson siegel ASK'!$E$6, 'nelson siegel ASK'!$E$7)*100 -> 5.155613029 | C52: =100*cubicSpline(A52,'cubic spline'!$F$4,'cubic spline'!$F$5,'cubic spline'!$F$6,'cubic spline'!$F$7,'cubic spline'!$F$8,'cubic spline'!$F$9,'cubic spline'!$F$10,'cubic spline'!$F$11,'cubic spline'!$F$12,'cubic spline'!$F$13) -> 4.576059938
A53: 25.5 | B53: =NelsonSiegel(A53, 'nelson siegel ASK'!$E$4, 'nelson siegel ASK'!$E$5, 'nelson siegel ASK'!$E$6, 'nelson siegel ASK'!$E$7)*100 -> 5.130125484 | C53: =100*cubicSpline(A53,'cubic spline'!$F$4,'cubic spline'!$F$5,'cubic spline'!$F$6,'cubic spline'!$F$7,'cubic spline'!$F$8,'cubic spline'!$F$9,'cubic spline'!$F$10,'cubic spline'!$F$11,'cubic spline'!$F$12,'cubic spline'!$F$13) -> 4.669014944
A54: 26 | B54: =NelsonSiegel(A54, 'nelson siegel ASK'!$E$4, 'nelson siegel ASK'!$E$5, 'nelson siegel ASK'!$E$6, 'nelson siegel ASK'!$E$7)*100 -> 5.102996927 | C54: =100*cubicSpline(A54,'cubic spline'!$F$4,'cubic spline'!$F$5,'cubic spline'!$F$6,'cubic spline'!$F$7,'cubic spline'!$F$8,'cubic spline'!$F$9,'cubic spline'!$F$10,'cubic spline'!$F$11,'cubic spline'!$F$12,'cubic spline'!$F$13) -> 4.788905574
A55: 26.5 | B55: =NelsonSiegel(A55, 'nelson siegel ASK'!$E$4, 'nelson siegel ASK'!$E$5, 'nelson siegel ASK'!$E$6, 'nelson siegel ASK'!$E$7)*100 -> 5.074329673 | C55: =100*cubicSpline(A55,'cubic spline'!$F$4,'cubic spline'!$F$5,'cubic spline'!$F$6,'cubic spline'!$F$7,'cubic spline'!$F$8,'cubic spline'!$F$9,'cubic spline'!$F$10,'cubic spline'!$F$11,'cubic spline'!$F$12,'cubic spline'!$F$13) -> 4.938262045
A56: 27 | B56: =NelsonSiegel(A56, 'nelson siegel ASK'!$E$4, 'nelson siegel ASK'!$E$5, 'nelson siegel ASK'!$E$6, 'nelson siegel ASK'!$E$7)*100 -> 5.044221374 | C56: =100*cubicSpline(A56,'cubic spline'!$F$4,'cubic spline'!$F$5,'cubic spline'!$F$6,'cubic spline'!$F$7,'cubic spline'!$F$8,'cubic spline'!$F$9,'cubic spline'!$F$10,'cubic spline'!$F$11,'cubic spline'!$F$12,'cubic spline'!$F$13) -> 5.119614576
A57: 27.5 | B57: =NelsonSiegel(A57, 'nelson siegel ASK'!$E$4, 'nelson siegel ASK'!$E$5, 'nelson siegel ASK'!$E$6, 'nelson siegel ASK'!$E$7)*100 -> 5.012765208 | C57: =100*cubicSpline(A57,'cubic spline'!$F$4,'cubic spline'!$F$5,'cubic spline'!$F$6,'cubic spline'!$F$7,'cubic spline'!$F$8,'cubic spline'!$F$9,'cubic spline'!$F$10,'cubic spline'!$F$11,'cubic spline'!$F$12,'cubic spline'!$F$13) -> 5.335493384
A58: 28 | B58: =NelsonSiegel(A58, 'nelson siegel ASK'!$E$4, 'nelson siegel ASK'!$E$5, 'nelson siegel ASK'!$E$6, 'nelson siegel ASK'!$E$7)*100 -> 4.980050074 | C58: =100*cubicSpline(A58,'cubic spline'!$F$4,'cubic spline'!$F$5,'cubic spline'!$F$6,'cubic spline'!$F$7,'cubic spline'!$F$8,'cubic spline'!$F$9,'cubic spline'!$F$10,'cubic spline'!$F$11,'cubic spline'!$F$12,'cubic spline'!$F$13) -> 5.588428686
A59: 28.5 | B59: =NelsonSiegel(A59, 'nelson siegel ASK'!$E$4, 'nelson siegel ASK'!$E$5, 'nelson siegel ASK'!$E$6, 'nelson siegel ASK'!$E$7)*100 -> 4.94616076 | C59: =100*cubicSpline(A59,'cubic spline'!$F$4,'cubic spline'!$F$5,'cubic spline'!$F$6,'cubic spline'!$F$7,'cubic spline'!$F$8,'cubic spline'!$F$9,'cubic spline'!$F$10,'cubic spline'!$F$11,'cubic spline'!$F$12,'cubic spline'!$F$13) -> 5.8809507
A60: 29 | B60: =NelsonSiegel(A60, 'nelson siegel ASK'!$E$4, 'nelson siegel ASK'!$E$5, 'nelson siegel ASK'!$E$6, 'nelson siegel ASK'!$E$7)*100 -> 4.911178128 | C60: =100*cubicSpline(A60,'cubic spline'!$F$4,'cubic spline'!$F$5,'cubic spline'!$F$6,'cubic spline'!$F$7,'cubic spline'!$F$8,'cubic spline'!$F$9,'cubic spline'!$F$10,'cubic spline'!$F$11,'cubic spline'!$F$12,'cubic spline'!$F$13) -> 6.215589643
A61: 29.5 | B61: =NelsonSiegel(A61, 'nelson siegel ASK'!$E$4, 'nelson siegel ASK'!$E$5, 'nelson siegel ASK'!$E$6, 'nelson siegel ASK'!$E$7)*100 -> 4.875179268 | C61: =100*cubicSpline(A61,'cubic spline'!$F$4,'cubic spline'!$F$5,'cubic spline'!$F$6,'cubic spline'!$F$7,'cubic spline'!$F$8,'cubic spline'!$F$9,'cubic spline'!$F$10,'cubic spline'!$F$11,'cubic spline'!$F$12,'cubic spline'!$F$13) -> 6.594875734
A62: 30 | B62: =NelsonSiegel(A62, 'nelson siegel ASK'!$E$4, 'nelson siegel ASK'!$E$5, 'nelson siegel ASK'!$E$6, 'nelson siegel ASK'!$E$7)*100 -> 4.838237664 | C62: =100*cubicSpline(A62,'cubic spline'!$F$4,'cubic spline'!$F$5,'cubic spline'!$F$6,'cubic spline'!$F$7,'cubic spline'!$F$8,'cubic spline'!$F$9,'cubic spline'!$F$10,'cubic spline'!$F$11,'cubic spline'!$F$12,'cubic spline'!$F$13) -> 7.021339189
A63: 31 | B63: =NelsonSiegel(A63, 'nelson siegel ASK'!$E$4, 'nelson siegel ASK'!$E$5, 'nelson siegel ASK'!$E$6, 'nelson siegel ASK'!$E$7)*100 -> 4.761803018 | C63: =100*cubicSpline(A63,'cubic spline'!$F$4,'cubic spline'!$F$5,'cubic spline'!$F$6,'cubic spline'!$F$7,'cubic spline'!$F$8,'cubic spline'!$F$9,'cubic spline'!$F$10,'cubic spline'!$F$11,'cubic spline'!$F$12,'cubic spline'!$F$13) -> 8.025919064
A64: 32 | B64: =NelsonSiegel(A64, 'nelson siegel ASK'!$E$4, 'nelson siegel ASK'!$E$5, 'nelson siegel ASK'!$E$6, 'nelson siegel ASK'!$E$7)*100 -> 4.682395503 | C64: =100*cubicSpline(A64,'cubic spline'!$F$4,'cubic spline'!$F$5,'cubic spline'!$F$6,'cubic spline'!$F$7,'cubic spline'!$F$8,'cubic spline'!$F$9,'cubic spline'!$F$10,'cubic spline'!$F$11,'cubic spline'!$F$12,'cubic spline'!$F$13) -> 9.249571007
A65: 33 | B65: =NelsonSiegel(A65, 'nelson siegel ASK'!$E$4, 'nelson siegel ASK'!$E$5, 'nelson siegel ASK'!$E$6, 'nelson siegel ASK'!$E$7)*100 -> 4.600487811 | C65: =100*cubicSpline(A65,'cubic spline'!$F$4,'cubic spline'!$F$5,'cubic spline'!$F$6,'cubic spline'!$F$7,'cubic spline'!$F$8,'cubic spline'!$F$9,'cubic spline'!$F$10,'cubic spline'!$F$11,'cubic spline'!$F$12,'cubic spline'!$F$13) -> 10.71253676
A66: 34 | B66: =NelsonSiegel(A66, 'nelson siegel ASK'!$E$4, 'nelson siegel ASK'!$E$5, 'nelson siegel ASK'!$E$6, 'nelson siegel ASK'!$E$7)*100 -> 4.516508056 | C66: =100*cubicSpline(A66,'cubic spline'!$F$4,'cubic spline'!$F$5,'cubic spline'!$F$6,'cubic spline'!$F$7,'cubic spline'!$F$8,'cubic spline'!$F$9,'cubic spline'!$F$10,'cubic spline'!$F$11,'cubic spline'!$F$12,'cubic spline'!$F$13) -> 12.43505806
A67: 35 | B67: =NelsonSiegel(A67, 'nelson siegel ASK'!$E$4, 'nelson siegel ASK'!$E$5, 'nelson siegel ASK'!$E$6, 'nelson siegel ASK'!$E$7)*100 -> 4.430843497 | C67: =100*cubicSpline(A67,'cubic spline'!$F$4,'cubic spline'!$F$5,'cubic spline'!$F$6,'cubic spline'!$F$7,'cubic spline'!$F$8,'cubic spline'!$F$9,'cubic spline'!$F$10,'cubic spline'!$F$11,'cubic spline'!$F$12,'cubic spline'!$F$13) -> 14.43737666
A68: 36 | B68: =NelsonSiegel(A68, 'nelson siegel ASK'!$E$4, 'nelson siegel ASK'!$E$5, 'nelson siegel ASK'!$E$6, 'nelson siegel ASK'!$E$7)*100 -> 4.343843969 | C68: =100*cubicSpline(A68,'cubic spline'!$F$4,'cubic spline'!$F$5,'cubic spline'!$F$6,'cubic spline'!$F$7,'cubic spline'!$F$8,'cubic spline'!$F$9,'cubic spline'!$F$10,'cubic spline'!$F$11,'cubic spline'!$F$12,'cubic spline'!$F$13) -> 16.73973429
A69: 37 | B69: =NelsonSiegel(A69, 'nelson siegel ASK'!$E$4, 'nelson siegel ASK'!$E$5, 'nelson siegel ASK'!$E$6, 'nelson siegel ASK'!$E$7)*100 -> 4.255825036 | C69: =100*cubicSpline(A69,'cubic spline'!$F$4,'cubic spline'!$F$5,'cubic spline'!$F$6,'cubic spline'!$F$7,'cubic spline'!$F$8,'cubic spline'!$F$9,'cubic spline'!$F$10,'cubic spline'!$F$11,'cubic spline'!$F$12,'cubic spline'!$F$13) -> 19.36237268
A70: 38 | B70: =NelsonSiegel(A70, 'nelson siegel ASK'!$E$4, 'nelson siegel ASK'!$E$5, 'nelson siegel ASK'!$E$6, 'nelson siegel ASK'!$E$7)*100 -> 4.167070894 | C70: =100*cubicSpline(A70,'cubic spline'!$F$4,'cubic spline'!$F$5,'cubic spline'!$F$6,'cubic spline'!$F$7,'cubic spline'!$F$8,'cubic spline'!$F$9,'cubic spline'!$F$10,'cubic spline'!$F$11,'cubic spline'!$F$12,'cubic spline'!$F$13) -> 22.32553359
A71: 39 | B71: =NelsonSiegel(A71, 'nelson siegel ASK'!$E$4, 'nelson siegel ASK'!$E$5, 'nelson siegel ASK'!$E$6, 'nelson siegel ASK'!$E$7)*100 -> 4.07783704 | C71: =100*cubicSpline(A71,'cubic spline'!$F$4,'cubic spline'!$F$5,'cubic spline'!$F$6,'cubic spline'!$F$7,'cubic spline'!$F$8,'cubic spline'!$F$9,'cubic spline'!$F$10,'cubic spline'!$F$11,'cubic spline'!$F$12,'cubic spline'!$F$13) -> 25.64945875
A72: 40 | B72: =NelsonSiegel(A72, 'nelson siegel ASK'!$E$4, 'nelson siegel ASK'!$E$5, 'nelson siegel ASK'!$E$6, 'nelson siegel ASK'!$E$7)*100 -> 3.988352731 | C72: =100*cubicSpline(A72,'cubic spline'!$F$4,'cubic spline'!$F$5,'cubic spline'!$F$6,'cubic spline'!$F$7,'cubic spline'!$F$8,'cubic spline'!$F$9,'cubic spline'!$F$10,'cubic spline'!$F$11,'cubic spline'!$F$12,'cubic spline'!$F$13) -> 29.35438991
A73: 41 | B73: =NelsonSiegel(A73, 'nelson siegel ASK'!$E$4, 'nelson siegel ASK'!$E$5, 'nelson siegel ASK'!$E$6, 'nelson siegel ASK'!$E$7)*100 -> 3.898823234 | C73: =100*cubicSpline(A73,'cubic spline'!$F$4,'cubic spline'!$F$5,'cubic spline'!$F$6,'cubic spline'!$F$7,'cubic spline'!$F$8,'cubic spline'!$F$9,'cubic spline'!$F$10,'cubic spline'!$F$11,'cubic spline'!$F$12,'cubic spline'!$F$13) -> 33.4605688
A74: 42 | B74: =NelsonSiegel(A74, 'nelson siegel ASK'!$E$4, 'nelson siegel ASK'!$E$5, 'nelson siegel ASK'!$E$6, 'nelson siegel ASK'!$E$7)*100 -> 3.80943191 | C74: =100*cubicSpline(A74,'cubic spline'!$F$4,'cubic spline'!$F$5,'cubic spline'!$F$6,'cubic spline'!$F$7,'cubic spline'!$F$8,'cubic spline'!$F$9,'cubic spline'!$F$10,'cubic spline'!$F$11,'cubic spline'!$F$12,'cubic spline'!$F$13) -> 37.98823716
A75: 43 | B75: =NelsonSiegel(A75, 'nelson siegel ASK'!$E$4, 'nelson siegel ASK'!$E$5, 'nelson siegel ASK'!$E$6, 'nelson siegel ASK'!$E$7)*100 -> 3.720342117 | C75: =100*cubicSpline(A75,'cubic spline'!$F$4,'cubic spline'!$F$5,'cubic spline'!$F$6,'cubic spline'!$F$7,'cubic spline'!$F$8,'cubic spline'!$F$9,'cubic spline'!$F$10,'cubic spline'!$F$11,'cubic spline'!$F$12,'cubic spline'!$F$13) -> 42.95763674
A76: 44 | B76: =NelsonSiegel(A76, 'nelson siegel ASK'!$E$4, 'nelson siegel ASK'!$E$5, 'nelson siegel ASK'!$E$6, 'nelson siegel ASK'!$E$7)*100 -> 3.631698961 | C76: =100*cubicSpline(A76,'cubic spline'!$F$4,'cubic spline'!$F$5,'cubic spline'!$F$6,'cubic spline'!$F$7,'cubic spline'!$F$8,'cubic spline'!$F$9,'cubic spline'!$F$10,'cubic spline'!$F$11,'cubic spline'!$F$12,'cubic spline'!$F$13) -> 48.38900927
A77: 45 | B77: =NelsonSiegel(A77, 'nelson siegel ASK'!$E$4, 'nelson siegel ASK'!$E$5, 'nelson siegel ASK'!$E$6, 'nelson siegel ASK'!$E$7)*100 -> 3.54363091 | C77: =100*cubicSpline(A77,'cubic spline'!$F$4,'cubic spline'!$F$5,'cubic spline'!$F$6,'cubic spline'!$F$7,'cubic spline'!$F$8,'cubic spline'!$F$9,'cubic spline'!$F$10,'cubic spline'!$F$11,'cubic spline'!$F$12,'cubic spline'!$F$13) -> 54.3025965
A78: 46 | B78: =NelsonSiegel(A78, 'nelson siegel ASK'!$E$4, 'nelson siegel ASK'!$E$5, 'nelson siegel ASK'!$E$6, 'nelson siegel ASK'!$E$7)*100 -> 3.456251271 | C78: =100*cubicSpline(A78,'cubic spline'!$F$4,'cubic spline'!$F$5,'cubic spline'!$F$6,'cubic spline'!$F$7,'cubic spline'!$F$8,'cubic spline'!$F$9,'cubic spline'!$F$10,'cubic spline'!$F$11,'cubic spline'!$F$12,'cubic spline'!$F$13) -> 60.71864016
A79: 47 | B79: =NelsonSiegel(A79, 'nelson siegel ASK'!$E$4, 'nelson siegel ASK'!$E$5, 'nelson siegel ASK'!$E$6, 'nelson siegel ASK'!$E$7)*100 -> 3.369659547 | C79: =100*cubicSpline(A79,'cubic spline'!$F$4,'cubic spline'!$F$5,'cubic spline'!$F$6,'cubic spline'!$F$7,'cubic spline'!$F$8,'cubic spline'!$F$9,'cubic spline'!$F$10,'cubic spline'!$F$11,'cubic spline'!$F$12,'cubic spline'!$F$13) -> 67.657382
A80: 48 | B80: =NelsonSiegel(A80, 'nelson siegel ASK'!$E$4, 'nelson siegel ASK'!$E$5, 'nelson siegel ASK'!$E$6, 'nelson siegel ASK'!$E$7)*100 -> 3.283942683 | C80: =100*cubicSpline(A80,'cubic spline'!$F$4,'cubic spline'!$F$5,'cubic spline'!$F$6,'cubic spline'!$F$7,'cubic spline'!$F$8,'cubic spline'!$F$9,'cubic spline'!$F$10,'cubic spline'!$F$11,'cubic spline'!$F$12,'cubic spline'!$F$13) -> 75.13906376
A81: 49 | B81: =NelsonSiegel(A81, 'nelson siegel ASK'!$E$4, 'nelson siegel ASK'!$E$5, 'nelson siegel ASK'!$E$6, 'nelson siegel ASK'!$E$7)*100 -> 3.199176211 | C81: =100*cubicSpline(A81,'cubic spline'!$F$4,'cubic spline'!$F$5,'cubic spline'!$F$6,'cubic spline'!$F$7,'cubic spline'!$F$8,'cubic spline'!$F$9,'cubic spline'!$F$10,'cubic spline'!$F$11,'cubic spline'!$F$12,'cubic spline'!$F$13) -> 83.18392717
A82: 50 | B82: =NelsonSiegel(A82, 'nelson siegel ASK'!$E$4, 'nelson siegel ASK'!$E$5, 'nelson siegel ASK'!$E$6, 'nelson siegel ASK'!$E$7)*100 -> 3.115425298 | C82: =100*cubicSpline(A82,'cubic spline'!$F$4,'cubic spline'!$F$5,'cubic spline'!$F$6,'cubic spline'!$F$7,'cubic spline'!$F$8,'cubic spline'!$F$9,'cubic spline'!$F$10,'cubic spline'!$F$11,'cubic spline'!$F$12,'cubic spline'!$F$13) -> 91.81221398
A83: 51 | B83: =NelsonSiegel(A83, 'nelson siegel ASK'!$E$4, 'nelson siegel ASK'!$E$5, 'nelson siegel ASK'!$E$6, 'nelson siegel ASK'!$E$7)*100 -> 3.032745707 | C83: =100*cubicSpline(A83,'cubic spline'!$F$4,'cubic spline'!$F$5,'cubic spline'!$F$6,'cubic spline'!$F$7,'cubic spline'!$F$8,'cubic spline'!$F$9,'cubic spline'!$F$10,'cubic spline'!$F$11,'cubic spline'!$F$12,'cubic spline'!$F$13) -> 101.0441659
A84: 52 | B84: =NelsonSiegel(A84, 'nelson siegel ASK'!$E$4, 'nelson siegel ASK'!$E$5, 'nelson siegel ASK'!$E$6, 'nelson siegel ASK'!$E$7)*100 -> 2.951184678 | C84: =100*cubicSpline(A84,'cubic spline'!$F$4,'cubic spline'!$F$5,'cubic spline'!$F$6,'cubic spline'!$F$7,'cubic spline'!$F$8,'cubic spline'!$F$9,'cubic spline'!$F$10,'cubic spline'!$F$11,'cubic spline'!$F$12,'cubic spline'!$F$13) -> 110.9000248
A85: 53 | B85: =NelsonSiegel(A85, 'nelson siegel ASK'!$E$4, 'nelson siegel ASK'!$E$5, 'nelson siegel ASK'!$E$6, 'nelson siegel ASK'!$E$7)*100 -> 2.87078174 | C85: =100*cubicSpline(A85,'cubic spline'!$F$4,'cubic spline'!$F$5,'cubic spline'!$F$6,'cubic spline'!$F$7,'cubic spline'!$F$8,'cubic spline'!$F$9,'cubic spline'!$F$10,'cubic spline'!$F$11,'cubic spline'!$F$12,'cubic spline'!$F$13) -> 121.4000322
A86: 54 | B86: =NelsonSiegel(A86, 'nelson siegel ASK'!$E$4, 'nelson siegel ASK'!$E$5, 'nelson siegel ASK'!$E$6, 'nelson siegel ASK'!$E$7)*100 -> 2.791569445 | C86: =100*cubicSpline(A86,'cubic spline'!$F$4,'cubic spline'!$F$5,'cubic spline'!$F$6,'cubic spline'!$F$7,'cubic spline'!$F$8,'cubic spline'!$F$9,'cubic spline'!$F$10,'cubic spline'!$F$11,'cubic spline'!$F$12,'cubic spline'!$F$13) -> 132.56443
A87: 55 | B87: =NelsonSiegel(A87, 'nelson siegel ASK'!$E$4, 'nelson siegel ASK'!$E$5, 'nelson siegel ASK'!$E$6, 'nelson siegel ASK'!$E$7)*100 -> 2.713574051 | C87: =100*cubicSpline(A87,'cubic spline'!$F$4,'cubic spline'!$F$5,'cubic spline'!$F$6,'cubic spline'!$F$7,'cubic spline'!$F$8,'cubic spline'!$F$9,'cubic spline'!$F$10,'cubic spline'!$F$11,'cubic spline'!$F$12,'cubic spline'!$F$13) -> 144.4134599
A88: 56 | B88: =NelsonSiegel(A88, 'nelson siegel ASK'!$E$4, 'nelson siegel ASK'!$E$5, 'nelson siegel ASK'!$E$6, 'nelson siegel ASK'!$E$7)*100 -> 2.636816139 | C88: =100*cubicSpline(A88,'cubic spline'!$F$4,'cubic spline'!$F$5,'cubic spline'!$F$6,'cubic spline'!$F$7,'cubic spline'!$F$8,'cubic spline'!$F$9,'cubic spline'!$F$10,'cubic spline'!$F$11,'cubic spline'!$F$12,'cubic spline'!$F$13) -> 156.9673637
A89: 57 | B89: =NelsonSiegel(A89, 'nelson siegel ASK'!$E$4, 'nelson siegel ASK'!$E$5, 'nelson siegel ASK'!$E$6, 'nelson siegel ASK'!$E$7)*100 -> 2.561311181 | C89: =100*cubicSpline(A89,'cubic spline'!$F$4,'cubic spline'!$F$5,'cubic spline'!$F$6,'cubic spline'!$F$7,'cubic spline'!$F$8,'cubic spline'!$F$9,'cubic spline'!$F$10,'cubic spline'!$F$11,'cubic spline'!$F$12,'cubic spline'!$F$13) -> 170.246383
A90: 58 | B90: =NelsonSiegel(A90, 'nelson siegel ASK'!$E$4, 'nelson siegel ASK'!$E$5, 'nelson siegel ASK'!$E$6, 'nelson siegel ASK'!$E$7)*100 -> 2.487070059 | C90: =100*cubicSpline(A90,'cubic spline'!$F$4,'cubic spline'!$F$5,'cubic spline'!$F$6,'cubic spline'!$F$7,'cubic spline'!$F$8,'cubic spline'!$F$9,'cubic spline'!$F$10,'cubic spline'!$F$11,'cubic spline'!$F$12,'cubic spline'!$F$13) -> 184.2707597
A91: 59 | B91: =NelsonSiegel(A91, 'nelson siegel ASK'!$E$4, 'nelson siegel ASK'!$E$5, 'nelson siegel ASK'!$E$6, 'nelson siegel ASK'!$E$7)*100 -> 2.414099538 | C91: =100*cubicSpline(A91,'cubic spline'!$F$4,'cubic spline'!$F$5,'cubic spline'!$F$6,'cubic spline'!$F$7,'cubic spline'!$F$8,'cubic spline'!$F$9,'cubic spline'!$F$10,'cubic spline'!$F$11,'cubic spline'!$F$12,'cubic spline'!$F$13) -> 199.0607354
A92: 60 | B92: =NelsonSiegel(A92, 'nelson siegel ASK'!$E$4, 'nelson siegel ASK'!$E$5, 'nelson siegel ASK'!$E$6, 'nelson siegel ASK'!$E$7)*100 -> 2.342402702 | C92: =100*cubicSpline(A92,'cubic spline'!$F$4,'cubic spline'!$F$5,'cubic spline'!$F$6,'cubic spline'!$F$7,'cubic spline'!$F$8,'cubic spline'!$F$9,'cubic spline'!$F$10,'cubic spline'!$F$11,'cubic spline'!$F$12,'cubic spline'!$F$13) -> 214.6365519
A93: 61 | B93: =NelsonSiegel(A93, 'nelson siegel ASK'!$E$4, 'nelson siegel ASK'!$E$5, 'nelson siegel ASK'!$E$6, 'nelson siegel ASK'!$E$7)*100 -> 2.271979344 | C93: =100*cubicSpline(A93,'cubic spline'!$F$4,'cubic spline'!$F$5,'cubic spline'!$F$6,'cubic spline'!$F$7,'cubic spline'!$F$8,'cubic spline'!$F$9,'cubic spline'!$F$10,'cubic spline'!$F$11,'cubic spline'!$F$12,'cubic spline'!$F$13) -> 231.0184509
A94: 62 | B94: =NelsonSiegel(A94, 'nelson siegel ASK'!$E$4, 'nelson siegel ASK'!$E$5, 'nelson siegel ASK'!$E$6, 'nelson siegel ASK'!$E$7)*100 -> 2.202826332 | C94: =100*cubicSpline(A94,'cubic spline'!$F$4,'cubic spline'!$F$5,'cubic spline'!$F$6,'cubic spline'!$F$7,'cubic spline'!$F$8,'cubic spline'!$F$9,'cubic spline'!$F$10,'cubic spline'!$F$11,'cubic spline'!$F$12,'cubic spline'!$F$13) -> 248.2266743
A95: 63 | B95: =NelsonSiegel(A95, 'nelson siegel ASK'!$E$4, 'nelson siegel ASK'!$E$5, 'nelson siegel ASK'!$E$6, 'nelson siegel ASK'!$E$7)*100 -> 2.134937935 | C95: =100*cubicSpline(A95,'cubic spline'!$F$4,'cubic spline'!$F$5,'cubic spline'!$F$6,'cubic spline'!$F$7,'cubic spline'!$F$8,'cubic spline'!$F$9,'cubic spline'!$F$10,'cubic spline'!$F$11,'cubic spline'!$F$12,'cubic spline'!$F$13) -> 266.2814637
A96: 64 | B96: =NelsonSiegel(A96, 'nelson siegel ASK'!$E$4, 'nelson siegel ASK'!$E$5, 'nelson siegel ASK'!$E$6, 'nelson siegel ASK'!$E$7)*100 -> 2.068306123 | C96: =100*cubicSpline(A96,'cubic spline'!$F$4,'cubic spline'!$F$5,'cubic spline'!$F$6,'cubic spline'!$F$7,'cubic spline'!$F$8,'cubic spline'!$F$9,'cubic spline'!$F$10,'cubic spline'!$F$11,'cubic spline'!$F$12,'cubic spline'!$F$13) -> 285.2030608
A97: 65 | B97: =NelsonSiegel(A97, 'nelson siegel ASK'!$E$4, 'nelson siegel ASK'!$E$5, 'nelson siegel ASK'!$E$6, 'nelson siegel ASK'!$E$7)*100 -> 2.002920839 | C97: =100*cubicSpline(A97,'cubic spline'!$F$4,'cubic spline'!$F$5,'cubic spline'!$F$6,'cubic spline'!$F$7,'cubic spline'!$F$8,'cubic spline'!$F$9,'cubic spline'!$F$10,'cubic spline'!$F$11,'cubic spline'!$F$12,'cubic spline'!$F$13) -> 305.0117074
A98: 66 | B98: =NelsonSiegel(A98, 'nelson siegel ASK'!$E$4, 'nelson siegel ASK'!$E$5, 'nelson siegel ASK'!$E$6, 'nelson siegel ASK'!$E$7)*100 -> 1.93877025 | C98: =100*cubicSpline(A98,'cubic spline'!$F$4,'cubic spline'!$F$5,'cubic spline'!$F$6,'cubic spline'!$F$7,'cubic spline'!$F$8,'cubic spline'!$F$9,'cubic spline'!$F$10,'cubic spline'!$F$11,'cubic spline'!$F$12,'cubic spline'!$F$13) -> 325.7276453
A99: 67 | B99: =NelsonSiegel(A99, 'nelson siegel ASK'!$E$4, 'nelson siegel ASK'!$E$5, 'nelson siegel ASK'!$E$6, 'nelson siegel ASK'!$E$7)*100 -> 1.87584097 | C99: =100*cubicSpline(A99,'cubic spline'!$F$4,'cubic spline'!$F$5,'cubic spline'!$F$6,'cubic spline'!$F$7,'cubic spline'!$F$8,'cubic spline'!$F$9,'cubic spline'!$F$10,'cubic spline'!$F$11,'cubic spline'!$F$12,'cubic spline'!$F$13) -> 347.3711162
A100: 68 | B100: =NelsonSiegel(A100, 'nelson siegel ASK'!$E$4, 'nelson siegel ASK'!$E$5, 'nelson siegel ASK'!$E$6, 'nelson siegel ASK'!$E$7)*100 -> 1.814118262 | C100: =100*cubicSpline(A100,'cubic spline'!$F$4,'cubic spline'!$F$5,'cubic spline'!$F$6,'cubic spline'!$F$7,'cubic spline'!$F$8,'cubic spline'!$F$9,'cubic spline'!$F$10,'cubic spline'!$F$11,'cubic spline'!$F$12,'cubic spline'!$F$13) -> 369.9623618
A101: 69 | B101: =NelsonSiegel(A101, 'nelson siegel ASK'!$E$4, 'nelson siegel ASK'!$E$5, 'nelson siegel ASK'!$E$6, 'nelson siegel ASK'!$E$7)*100 -> 1.753586232 | C101: =100*cubicSpline(A101,'cubic spline'!$F$4,'cubic spline'!$F$5,'cubic spline'!$F$6,'cubic spline'!$F$7,'cubic spline'!$F$8,'cubic spline'!$F$9,'cubic spline'!$F$10,'cubic spline'!$F$11,'cubic spline'!$F$12,'cubic spline'!$F$13) -> 393.5216238
A102: 70 | B102: =NelsonSiegel(A102, 'nelson siegel ASK'!$E$4, 'nelson siegel ASK'!$E$5, 'nelson siegel ASK'!$E$6, 'nelson siegel ASK'!$E$7)*100 -> 1.69422799 | C102: =100*cubicSpline(A102,'cubic spline'!$F$4,'cubic spline'!$F$5,'cubic spline'!$F$6,'cubic spline'!$F$7,'cubic spline'!$F$8,'cubic spline'!$F$9,'cubic spline'!$F$10,'cubic spline'!$F$11,'cubic spline'!$F$12,'cubic spline'!$F$13) -> 418.0691441
A103: 71 | B103: =NelsonSiegel(A103, 'nelson siegel ASK'!$E$4, 'nelson siegel ASK'!$E$5, 'nelson siegel ASK'!$E$6, 'nelson siegel ASK'!$E$7)*100 -> 1.636025806 | C103: =100*cubicSpline(A103,'cubic spline'!$F$4,'cubic spline'!$F$5,'cubic spline'!$F$6,'cubic spline'!$F$7,'cubic spline'!$F$8,'cubic spline'!$F$9,'cubic spline'!$F$10,'cubic spline'!$F$11,'cubic spline'!$F$12,'cubic spline'!$F$13) -> 443.6251643
A104: 72 | B104: =NelsonSiegel(A104, 'nelson siegel ASK'!$E$4, 'nelson siegel ASK'!$E$5, 'nelson siegel ASK'!$E$6, 'nelson siegel ASK'!$E$7)*100 -> 1.578961245 | C104: =100*cubicSpline(A104,'cubic spline'!$F$4,'cubic spline'!$F$5,'cubic spline'!$F$6,'cubic spline'!$F$7,'cubic spline'!$F$8,'cubic spline'!$F$9,'cubic spline'!$F$10,'cubic spline'!$F$11,'cubic spline'!$F$12,'cubic spline'!$F$13) -> 470.2099262
A105: 73 | B105: =NelsonSiegel(A105, 'nelson siegel ASK'!$E$4, 'nelson siegel ASK'!$E$5, 'nelson siegel ASK'!$E$6, 'nelson siegel ASK'!$E$7)*100 -> 1.523015297 | C105: =100*cubicSpline(A105,'cubic spline'!$F$4,'cubic spline'!$F$5,'cubic spline'!$F$6,'cubic spline'!$F$7,'cubic spline'!$F$8,'cubic spline'!$F$9,'cubic spline'!$F$10,'cubic spline'!$F$11,'cubic spline'!$F$12,'cubic spline'!$F$13) -> 497.8436716
A106: 74 | B106: =NelsonSiegel(A106, 'nelson siegel ASK'!$E$4, 'nelson siegel ASK'!$E$5, 'nelson siegel ASK'!$E$6, 'nelson siegel ASK'!$E$7)*100 -> 1.468168483 | C106: =100*cubicSpline(A106,'cubic spline'!$F$4,'cubic spline'!$F$5,'cubic spline'!$F$6,'cubic spline'!$F$7,'cubic spline'!$F$8,'cubic spline'!$F$9,'cubic spline'!$F$10,'cubic spline'!$F$11,'cubic spline'!$F$12,'cubic spline'!$F$13) -> 526.5466421
A107: 75 | B107: =NelsonSiegel(A107, 'nelson siegel ASK'!$E$4, 'nelson siegel ASK'!$E$5, 'nelson siegel ASK'!$E$6, 'nelson siegel ASK'!$E$7)*100 -> 1.414400961 | C107: =100*cubicSpline(A107,'cubic spline'!$F$4,'cubic spline'!$F$5,'cubic spline'!$F$6,'cubic spline'!$F$7,'cubic spline'!$F$8,'cubic spline'!$F$9,'cubic spline'!$F$10,'cubic spline'!$F$11,'cubic spline'!$F$12,'cubic spline'!$F$13) -> 556.3390795
A108: 76 | B108: =NelsonSiegel(A108, 'nelson siegel ASK'!$E$4, 'nelson siegel ASK'!$E$5, 'nelson siegel ASK'!$E$6, 'nelson siegel ASK'!$E$7)*100 -> 1.361692612 | C108: =100*cubicSpline(A108,'cubic spline'!$F$4,'cubic spline'!$F$5,'cubic spline'!$F$6,'cubic spline'!$F$7,'cubic spline'!$F$8,'cubic spline'!$F$9,'cubic spline'!$F$10,'cubic spline'!$F$11,'cubic spline'!$F$12,'cubic spline'!$F$13) -> 587.2412255
A109: 77 | B109: =NelsonSiegel(A109, 'nelson siegel ASK'!$E$4, 'nelson siegel ASK'!$E$5, 'nelson siegel ASK'!$E$6, 'nelson siegel ASK'!$E$7)*100 -> 1.310023127 | C109: =100*cubicSpline(A109,'cubic spline'!$F$4,'cubic spline'!$F$5,'cubic spline'!$F$6,'cubic spline'!$F$7,'cubic spline'!$F$8,'cubic spline'!$F$9,'cubic spline'!$F$10,'cubic spline'!$F$11,'cubic spline'!$F$12,'cubic spline'!$F$13) -> 619.273322
A110: 78 | B110: =NelsonSiegel(A110, 'nelson siegel ASK'!$E$4, 'nelson siegel ASK'!$E$5, 'nelson siegel ASK'!$E$6, 'nelson siegel ASK'!$E$7)*100 -> 1.259372077 | C110: =100*cubicSpline(A110,'cubic spline'!$F$4,'cubic spline'!$F$5,'cubic spline'!$F$6,'cubic spline'!$F$7,'cubic spline'!$F$8,'cubic spline'!$F$9,'cubic spline'!$F$10,'cubic spline'!$F$11,'cubic spline'!$F$12,'cubic spline'!$F$13) -> 652.4556106
A111: 79 | B111: =NelsonSiegel(A111, 'nelson siegel ASK'!$E$4, 'nelson siegel ASK'!$E$5, 'nelson siegel ASK'!$E$6, 'nelson siegel ASK'!$E$7)*100 -> 1.209718978 | C111: =100*cubicSpline(A111,'cubic spline'!$F$4,'cubic spline'!$F$5,'cubic spline'!$F$6,'cubic spline'!$F$7,'cubic spline'!$F$8,'cubic spline'!$F$9,'cubic spline'!$F$10,'cubic spline'!$F$11,'cubic spline'!$F$12,'cubic spline'!$F$13) -> 686.808333
A112: 80 | B112: =NelsonSiegel(A112, 'nelson siegel ASK'!$E$4, 'nelson siegel ASK'!$E$5, 'nelson siegel ASK'!$E$6, 'nelson siegel ASK'!$E$7)*100 -> 1.161043349 | C112: =100*cubicSpline(A112,'cubic spline'!$F$4,'cubic spline'!$F$5,'cubic spline'!$F$6,'cubic spline'!$F$7,'cubic spline'!$F$8,'cubic spline'!$F$9,'cubic spline'!$F$10,'cubic spline'!$F$11,'cubic spline'!$F$12,'cubic spline'!$F$13) -> 722.3517311
A113: 81 | B113: =NelsonSiegel(A113, 'nelson siegel ASK'!$E$4, 'nelson siegel ASK'!$E$5, 'nelson siegel ASK'!$E$6, 'nelson siegel ASK'!$E$7)*100 -> 1.113324765 | C113: =100*cubicSpline(A113,'cubic spline'!$F$4,'cubic spline'!$F$5,'cubic spline'!$F$6,'cubic spline'!$F$7,'cubic spline'!$F$8,'cubic spline'!$F$9,'cubic spline'!$F$10,'cubic spline'!$F$11,'cubic spline'!$F$12,'cubic spline'!$F$13) -> 759.1060465
A114: 82 | B114: =NelsonSiegel(A114, 'nelson siegel ASK'!$E$4, 'nelson siegel ASK'!$E$5, 'nelson siegel ASK'!$E$6, 'nelson siegel ASK'!$E$7)*100 -> 1.066542902 | C114: =100*cubicSpline(A114,'cubic spline'!$F$4,'cubic spline'!$F$5,'cubic spline'!$F$6,'cubic spline'!$F$7,'cubic spline'!$F$8,'cubic spline'!$F$9,'cubic spline'!$F$10,'cubic spline'!$F$11,'cubic spline'!$F$12,'cubic spline'!$F$13) -> 797.091521
A115: 83 | B115: =NelsonSiegel(A115, 'nelson siegel ASK'!$E$4, 'nelson siegel ASK'!$E$5, 'nelson siegel ASK'!$E$6, 'nelson siegel ASK'!$E$7)*100 -> 1.020677579 | C115: =100*cubicSpline(A115,'cubic spline'!$F$4,'cubic spline'!$F$5,'cubic spline'!$F$6,'cubic spline'!$F$7,'cubic spline'!$F$8,'cubic spline'!$F$9,'cubic spline'!$F$10,'cubic spline'!$F$11,'cubic spline'!$F$12,'cubic spline'!$F$13) -> 836.3283964
A116: 84 | B116: =NelsonSiegel(A116, 'nelson siegel ASK'!$E$4, 'nelson siegel ASK'!$E$5, 'nelson siegel ASK'!$E$6, 'nelson siegel ASK'!$E$7)*100 -> 0.9757087893 | C116: =100*cubicSpline(A116,'cubic spline'!$F$4,'cubic spline'!$F$5,'cubic spline'!$F$6,'cubic spline'!$F$7,'cubic spline'!$F$8,'cubic spline'!$F$9,'cubic spline'!$F$10,'cubic spline'!$F$11,'cubic spline'!$F$12,'cubic spline'!$F$13) -> 876.8369143
A117: 85 | B117: =NelsonSiegel(A117, 'nelson siegel ASK'!$E$4, 'nelson siegel ASK'!$E$5, 'nelson siegel ASK'!$E$6, 'nelson siegel ASK'!$E$7)*100 -> 0.9316167357 | C117: =100*cubicSpline(A117,'cubic spline'!$F$4,'cubic spline'!$F$5,'cubic spline'!$F$6,'cubic spline'!$F$7,'cubic spline'!$F$8,'cubic spline'!$F$9,'cubic spline'!$F$10,'cubic spline'!$F$11,'cubic spline'!$F$12,'cubic spline'!$F$13) -> 918.6373165
A118: 86 | B118: =NelsonSiegel(A118, 'nelson siegel ASK'!$E$4, 'nelson siegel ASK'!$E$5, 'nelson siegel ASK'!$E$6, 'nelson siegel ASK'!$E$7)*100 -> 0.8883818556 | C118: =100*cubicSpline(A118,'cubic spline'!$F$4,'cubic spline'!$F$5,'cubic spline'!$F$6,'cubic spline'!$F$7,'cubic spline'!$F$8,'cubic spline'!$F$9,'cubic spline'!$F$10,'cubic spline'!$F$11,'cubic spline'!$F$12,'cubic spline'!$F$13) -> 961.7498448
A119: 87 | B119: =NelsonSiegel(A119, 'nelson siegel ASK'!$E$4, 'nelson siegel ASK'!$E$5, 'nelson siegel ASK'!$E$6, 'nelson siegel ASK'!$E$7)*100 -> 0.845984845 | C119: =100*cubicSpline(A119,'cubic spline'!$F$4,'cubic spline'!$F$5,'cubic spline'!$F$6,'cubic spline'!$F$7,'cubic spline'!$F$8,'cubic spline'!$F$9,'cubic spline'!$F$10,'cubic spline'!$F$11,'cubic spline'!$F$12,'cubic spline'!$F$13) -> 1006.194741
A120: 88 | B120: =NelsonSiegel(A120, 'nelson siegel ASK'!$E$4, 'nelson siegel ASK'!$E$5, 'nelson siegel ASK'!$E$6, 'nelson siegel ASK'!$E$7)*100 -> 0.8044066782 | C120: =100*cubicSpline(A120,'cubic spline'!$F$4,'cubic spline'!$F$5,'cubic spline'!$F$6,'cubic spline'!$F$7,'cubic spline'!$F$8,'cubic spline'!$F$9,'cubic spline'!$F$10,'cubic spline'!$F$11,'cubic spline'!$F$12,'cubic spline'!$F$13) -> 1051.992247
A121: 89 | B121: =NelsonSiegel(A121, 'nelson siegel ASK'!$E$4, 'nelson siegel ASK'!$E$5, 'nelson siegel ASK'!$E$6, 'nelson siegel ASK'!$E$7)*100 -> 0.763628625 | C121: =100*cubicSpline(A121,'cubic spline'!$F$4,'cubic spline'!$F$5,'cubic spline'!$F$6,'cubic spline'!$F$7,'cubic spline'!$F$8,'cubic spline'!$F$9,'cubic spline'!$F$10,'cubic spline'!$F$11,'cubic spline'!$F$12,'cubic spline'!$F$13) -> 1099.162603
A122: 90 | B122: =NelsonSiegel(A122, 'nelson siegel ASK'!$E$4, 'nelson siegel ASK'!$E$5, 'nelson siegel ASK'!$E$6, 'nelson siegel ASK'!$E$7)*100 -> 0.7236322649 | C122: =100*cubicSpline(A122,'cubic spline'!$F$4,'cubic spline'!$F$5,'cubic spline'!$F$6,'cubic spline'!$F$7,'cubic spline'!$F$8,'cubic spline'!$F$9,'cubic spline'!$F$10,'cubic spline'!$F$11,'cubic spline'!$F$12,'cubic spline'!$F$13) -> 1147.726053
A123: 91 | B123: =NelsonSiegel(A123, 'nelson siegel ASK'!$E$4, 'nelson siegel ASK'!$E$5, 'nelson siegel ASK'!$E$6, 'nelson siegel ASK'!$E$7)*100 -> 0.6843994994 | C123: =100*cubicSpline(A123,'cubic spline'!$F$4,'cubic spline'!$F$5,'cubic spline'!$F$6,'cubic spline'!$F$7,'cubic spline'!$F$8,'cubic spline'!$F$9,'cubic spline'!$F$10,'cubic spline'!$F$11,'cubic spline'!$F$12,'cubic spline'!$F$13) -> 1197.702838
A124: 92 | B124: =NelsonSiegel(A124, 'nelson siegel ASK'!$E$4, 'nelson siegel ASK'!$E$5, 'nelson siegel ASK'!$E$6, 'nelson siegel ASK'!$E$7)*100 -> 0.6459125613 | C124: =100*cubicSpline(A124,'cubic spline'!$F$4,'cubic spline'!$F$5,'cubic spline'!$F$6,'cubic spline'!$F$7,'cubic spline'!$F$8,'cubic spline'!$F$9,'cubic spline'!$F$10,'cubic spline'!$F$11,'cubic spline'!$F$12,'cubic spline'!$F$13) -> 1249.113199
A125: 93 | B125: =NelsonSiegel(A125, 'nelson siegel ASK'!$E$4, 'nelson siegel ASK'!$E$5, 'nelson siegel ASK'!$E$6, 'nelson siegel ASK'!$E$7)*100 -> 0.6081540224 | C125: =100*cubicSpline(A125,'cubic spline'!$F$4,'cubic spline'!$F$5,'cubic spline'!$F$6,'cubic spline'!$F$7,'cubic spline'!$F$8,'cubic spline'!$F$9,'cubic spline'!$F$10,'cubic spline'!$F$11,'cubic spline'!$F$12,'cubic spline'!$F$13) -> 1301.977379
A126: 94 | B126: =NelsonSiegel(A126, 'nelson siegel ASK'!$E$4, 'nelson siegel ASK'!$E$5, 'nelson siegel ASK'!$E$6, 'nelson siegel ASK'!$E$7)*100 -> 0.5711067998 | C126: =100*cubicSpline(A126,'cubic spline'!$F$4,'cubic spline'!$F$5,'cubic spline'!$F$6,'cubic spline'!$F$7,'cubic spline'!$F$8,'cubic spline'!$F$9,'cubic spline'!$F$10,'cubic spline'!$F$11,'cubic spline'!$F$12,'cubic spline'!$F$13) -> 1356.315618
A127: 95 | B127: =NelsonSiegel(A127, 'nelson siegel ASK'!$E$4, 'nelson siegel ASK'!$E$5, 'nelson siegel ASK'!$E$6, 'nelson siegel ASK'!$E$7)*100 -> 0.5347541599 | C127: =100*cubicSpline(A127,'cubic spline'!$F$4,'cubic spline'!$F$5,'cubic spline'!$F$6,'cubic spline'!$F$7,'cubic spline'!$F$8,'cubic spline'!$F$9,'cubic spline'!$F$10,'cubic spline'!$F$11,'cubic spline'!$F$12,'cubic spline'!$F$13) -> 1412.148159
A128: 96 | B128: =NelsonSiegel(A128, 'nelson siegel ASK'!$E$4, 'nelson siegel ASK'!$E$5, 'nelson siegel ASK'!$E$6, 'nelson siegel ASK'!$E$7)*100 -> 0.4990797213 | C128: =100*cubicSpline(A128,'cubic spline'!$F$4,'cubic spline'!$F$5,'cubic spline'!$F$6,'cubic spline'!$F$7,'cubic spline'!$F$8,'cubic spline'!$F$9,'cubic spline'!$F$10,'cubic spline'!$F$11,'cubic spline'!$F$12,'cubic spline'!$F$13) -> 1469.495244
A129: 97 | B129: =NelsonSiegel(A129, 'nelson siegel ASK'!$E$4, 'nelson siegel ASK'!$E$5, 'nelson siegel ASK'!$E$6, 'nelson siegel ASK'!$E$7)*100 -> 0.4640674565 | C129: =100*cubicSpline(A129,'cubic spline'!$F$4,'cubic spline'!$F$5,'cubic spline'!$F$6,'cubic spline'!$F$7,'cubic spline'!$F$8,'cubic spline'!$F$9,'cubic spline'!$F$10,'cubic spline'!$F$11,'cubic spline'!$F$12,'cubic spline'!$F$13) -> 1528.377113
A130: 98 | B130: =NelsonSiegel(A130, 'nelson siegel ASK'!$E$4, 'nelson siegel ASK'!$E$5, 'nelson siegel ASK'!$E$6, 'nelson siegel ASK'!$E$7)*100 -> 0.4297016924 | C130: =100*cubicSpline(A130,'cubic spline'!$F$4,'cubic spline'!$F$5,'cubic spline'!$F$6,'cubic spline'!$F$7,'cubic spline'!$F$8,'cubic spline'!$F$9,'cubic spline'!$F$10,'cubic spline'!$F$11,'cubic spline'!$F$12,'cubic spline'!$F$13) -> 1588.81401
A131: 99 | B131: =NelsonSiegel(A131, 'nelson siegel ASK'!$E$4, 'nelson siegel ASK'!$E$5, 'nelson siegel ASK'!$E$6, 'nelson siegel ASK'!$E$7)*100 -> 0.3959671096 | C131: =100*cubicSpline(A131,'cubic spline'!$F$4,'cubic spline'!$F$5,'cubic spline'!$F$6,'cubic spline'!$F$7,'cubic spline'!$F$8,'cubic spline'!$F$9,'cubic spline'!$F$10,'cubic spline'!$F$11,'cubic spline'!$F$12,'cubic spline'!$F$13) -> 1650.826176
A132: 100 | B132: =NelsonSiegel(A132, 'nelson siegel ASK'!$E$4, 'nelson siegel ASK'!$E$5, 'nelson siegel ASK'!$E$6, 'nelson siegel ASK'!$E$7)*100 -> 0.3628487413 | C132: =100*cubicSpline(A132,'cubic spline'!$F$4,'cubic spline'!$F$5,'cubic spline'!$F$6,'cubic spline'!$F$7,'cubic spline'!$F$8,'cubic spline'!$F$9,'cubic spline'!$F$10,'cubic spline'!$F$11,'cubic spline'!$F$12,'cubic spline'!$F$13) -> 1714.433851
A133: 101 | B133: =NelsonSiegel(A133, 'nelson siegel ASK'!$E$4, 'nelson siegel ASK'!$E$5, 'nelson siegel ASK'!$E$6, 'nelson siegel ASK'!$E$7)*100 -> 0.3303319706 | C133: =100*cubicSpline(A133,'cubic spline'!$F$4,'cubic spline'!$F$5,'cubic spline'!$F$6,'cubic spline'!$F$7,'cubic spline'!$F$8,'cubic spline'!$F$9,'cubic spline'!$F$10,'cubic spline'!$F$11,'cubic spline'!$F$12,'cubic spline'!$F$13) -> 1779.657279
A134: 102 | B134: =NelsonSiegel(A134, 'nelson siegel ASK'!$E$4, 'nelson siegel ASK'!$E$5, 'nelson siegel ASK'!$E$6, 'nelson siegel ASK'!$E$7)*100 -> 0.2984025278 | C134: =100*cubicSpline(A134,'cubic spline'!$F$4,'cubic spline'!$F$5,'cubic spline'!$F$6,'cubic spline'!$F$7,'cubic spline'!$F$8,'cubic spline'!$F$9,'cubic spline'!$F$10,'cubic spline'!$F$11,'cubic spline'!$F$12,'cubic spline'!$F$13) -> 1846.516701
A135: 103 | B135: =NelsonSiegel(A135, 'nelson siegel ASK'!$E$4, 'nelson siegel ASK'!$E$5, 'nelson siegel ASK'!$E$6, 'nelson siegel ASK'!$E$7)*100 -> 0.2670464868 | C135: =100*cubicSpline(A135,'cubic spline'!$F$4,'cubic spline'!$F$5,'cubic spline'!$F$6,'cubic spline'!$F$7,'cubic spline'!$F$8,'cubic spline'!$F$9,'cubic spline'!$F$10,'cubic spline'!$F$11,'cubic spline'!$F$12,'cubic spline'!$F$13) -> 1915.032359
A136: 104 | B136: =NelsonSiegel(A136, 'nelson siegel ASK'!$E$4, 'nelson siegel ASK'!$E$5, 'nelson siegel ASK'!$E$6, 'nelson siegel ASK'!$E$7)*100 -> 0.2362502613 | C136: =100*cubicSpline(A136,'cubic spline'!$F$4,'cubic spline'!$F$5,'cubic spline'!$F$6,'cubic spline'!$F$7,'cubic spline'!$F$8,'cubic spline'!$F$9,'cubic spline'!$F$10,'cubic spline'!$F$11,'cubic spline'!$F$12,'cubic spline'!$F$13) -> 1985.224494
A137: 105 | B137: =NelsonSiegel(A137, 'nelson siegel ASK'!$E$4, 'nelson siegel ASK'!$E$5, 'nelson siegel ASK'!$E$6, 'nelson siegel ASK'!$E$7)*100 -> 0.2060005997 | C137: =100*cubicSpline(A137,'cubic spline'!$F$4,'cubic spline'!$F$5,'cubic spline'!$F$6,'cubic spline'!$F$7,'cubic spline'!$F$8,'cubic spline'!$F$9,'cubic spline'!$F$10,'cubic spline'!$F$11,'cubic spline'!$F$12,'cubic spline'!$F$13) -> 2057.113348
A138: 106 | B138: =NelsonSiegel(A138, 'nelson siegel ASK'!$E$4, 'nelson siegel ASK'!$E$5, 'nelson siegel ASK'!$E$6, 'nelson siegel ASK'!$E$7)*100 -> 0.1762845809 | C138: =100*cubicSpline(A138,'cubic spline'!$F$4,'cubic spline'!$F$5,'cubic spline'!$F$6,'cubic spline'!$F$7,'cubic spline'!$F$8,'cubic spline'!$F$9,'cubic spline'!$F$10,'cubic spline'!$F$11,'cubic spline'!$F$12,'cubic spline'!$F$13) -> 2130.719163

Sheet cubic spline
A1: Mkt Price | B1: Th. Price | C1: Pricing Errors | D1: abs(diff) | F1: parameters | G1: sq. er w/o bills | H1: sq err w bills
A4: =prices!N4 -> 101.0764266 | B4: =CSbondPrice(prices!$P$2,prices!$B4,prices!$C4/100,$F$4,$F$5,$F$6,$F$7,$F$8,$F$9,$F$10,$F$11,$F$12,$F$13) -> 101.063561 | C4: =A4-B4 -> 0.01286558092 | D4: =ABS(A4-B4) -> 0.01286558092 | E4: r0 | F4: -0.001946323791 | G4: =SUM(D25:D118) -> 77.10670362 | H4: =SUM(D4:D122) -> 86.93146665
A5: =prices!N5 -> 101.7663043 | B5: =CSbondPrice(prices!$P$2,prices!$B5,prices!$C5/100,$F$4,$F$5,$F$6,$F$7,$F$8,$F$9,$F$10,$F$11,$F$12,$F$13) -> 101.7580046 | C5: =A5-B5 -> 0.008299735886 | D5: =ABS(A5-B5) -> 0.008299735886 | E5: a1 | F5: 0.005525587562
A6: =prices!N6 -> 102.392663 | B6: =CSbondPrice(prices!$P$2,prices!$B6,prices!$C6/100,$F$4,$F$5,$F$6,$F$7,$F$8,$F$9,$F$10,$F$11,$F$12,$F$13) -> 102.3830538 | C6: 0.00960926316 | D6: =ABS(A6-B6) -> 0.00960926316 | E6: a2 | F6: 0.002380359586
A7: =prices!N7 -> 103.2601902 | B7: =CSbondPrice(prices!$P$2,prices!$B7,prices!$C7/100,$F$4,$F$5,$F$6,$F$7,$F$8,$F$9,$F$10,$F$11,$F$12,$F$13) -> 103.2581226 | C7: 0.002067601344 | D7: 0.002067601344 | E7: a3 | F7: -0.0007442517727
A8: =prices!N8 -> 101.0162293 | B8: =CSbondPrice(prices!$P$2,prices!$B8,prices!$C8/100,$F$4,$F$5,$F$6,$F$7,$F$8,$F$9,$F$10,$F$11,$F$12,$F$13) -> 101.0123889 | C8: 0.003840337277 | D8: 0.003840337277 | E8: b1 | F8: -1.999704159e-05
A9: =prices!N9 -> 102.0073377 | B9: =CSbondPrice(prices!$P$2,prices!$B9,prices!$C9/100,$F$4,$F$5,$F$6,$F$7,$F$8,$F$9,$F$10,$F$11,$F$12,$F$13) -> 102.0159142 | C9: -0.008576473993 | D9: 0.008576473993 | E9: b2 | F9: -0.000294525756
A10: =prices!N10 -> 100.8894231 | B10: =CSbondPrice(prices!$P$2,prices!$B10,prices!$C10/100,$F$4,$F$5,$F$6,$F$7,$F$8,$F$9,$F$10,$F$11,$F$12,$F$13) -> 100.8922557 | C10: -0.002832642134 | D10: 0.002832642134 | E10: b3 | F10: -1.793537987e-05
A11: =prices!N11 -> 101.9975962 | B11: =CSbondPrice(prices!$P$2,prices!$B11,prices!$C11/100,$F$4,$F$5,$F$6,$F$7,$F$8,$F$9,$F$10,$F$11,$F$12,$F$13) -> 102.0169229 | C11: -0.01932669935 | D11: 0.01932669935 | E11: c1 | F11: -9.150957147e-06
A12: =prices!N12 -> 101.0693198 | B12: =CSbondPrice(prices!$P$2,prices!$B12,prices!$C12/100,$F$4,$F$5,$F$6,$F$7,$F$8,$F$9,$F$10,$F$11,$F$12,$F$13) -> 101.0768654 | C12: -0.007545647205 | D12: 0.007545647205 | E12: c2 | F12: 9.219679204e-06
A13: =prices!N13 -> 101.9327521 | B13: =CSbondPrice(prices!$P$2,prices!$B13,prices!$C13/100,$F$4,$F$5,$F$6,$F$7,$F$8,$F$9,$F$10,$F$11,$F$12,$F$13) -> 101.9476707 | C13: -0.01491861028 | D13: 0.01491861028 | E13: c3 | F13: 3.373623413e-05
A14: =prices!N14 -> 102.2323895 | B14: =CSbondPrice(prices!$P$2,prices!$B14,prices!$C14/100,$F$4,$F$5,$F$6,$F$7,$F$8,$F$9,$F$10,$F$11,$F$12,$F$13) -> 102.2602019 | C14: -0.02781235862 | D14: 0.02781235862 | F14: 0
A15: =prices!N15 -> 101.3004808 | B15: =CSbondPrice(prices!$P$2,prices!$B15,prices!$C15/100,$F$4,$F$5,$F$6,$F$7,$F$8,$F$9,$F$10,$F$11,$F$12,$F$13) -> 101.3159538 | C15: -0.01547304295 | D15: 0.01547304295 | F15: 0
A16: =prices!N16 -> 101.7819368 | B16: =CSbondPrice(prices!$P$2,prices!$B16,prices!$C16/100,$F$4,$F$5,$F$6,$F$7,$F$8,$F$9,$F$10,$F$11,$F$12,$F$13) -> 101.8077476 | C16: -0.02581083049 | D16: 0.02581083049
A17: =prices!N17 -> 101.3942507 | B17: =CSbondPrice(prices!$P$2,prices!$B17,prices!$C17/100,$F$4,$F$5,$F$6,$F$7,$F$8,$F$9,$F$10,$F$11,$F$12,$F$13) -> 101.4226903 | C17: -0.02843958941 | D17: 0.02843958941
A18: =prices!N18 -> 101.8891575 | B18: =CSbondPrice(prices!$P$2,prices!$B18,prices!$C18/100,$F$4,$F$5,$F$6,$F$7,$F$8,$F$9,$F$10,$F$11,$F$12,$F$13) -> 101.9106036 | C18: -0.02144610301 | D18: 0.02144610301
A19: =prices!N19 -> 104.0326087 | B19: =CSbondPrice(prices!$P$2,prices!$B19,prices!$C19/100,$F$4,$F$5,$F$6,$F$7,$F$8,$F$9,$F$10,$F$11,$F$12,$F$13) -> 104.0662606 | C19: -0.03365194789 | D19: 0.03365194789
A20: =prices!N20 -> 105.65625 | B20: =CSbondPrice(prices!$P$2,prices!$B20,prices!$C20/100,$F$4,$F$5,$F$6,$F$7,$F$8,$F$9,$F$10,$F$11,$F$12,$F$13) -> 105.6908557 | C20: -0.03460565799 | D20: 0.03460565799
A21: =prices!N21 -> 103.7575967 | B21: =CSbondPrice(prices!$P$2,prices!$B21,prices!$C21/100,$F$4,$F$5,$F$6,$F$7,$F$8,$F$9,$F$10,$F$11,$F$12,$F$13) -> 103.7787574 | C21: -0.02116071382 | D21: 0.02116071382
A22: =prices!N22 -> 104.1009615 | B22: =CSbondPrice(prices!$P$2,prices!$B22,prices!$C22/100,$F$4,$F$5,$F$6,$F$7,$F$8,$F$9,$F$10,$F$11,$F$12,$F$13) -> 104.1083271 | C22: -0.007365541206 | D22: 0.007365541206
A23: =prices!N23 -> 104.3105145 | B23: =CSbondPrice(prices!$P$2,prices!$B23,prices!$C23/100,$F$4,$F$5,$F$6,$F$7,$F$8,$F$9,$F$10,$F$11,$F$12,$F$13) -> 104.3032735 | C23: 0.007240956105 | D23: 0.007240956105
A24: =prices!N24 -> 104.1225962 | B24: =CSbondPrice(prices!$P$2,prices!$B24,prices!$C24/100,$F$4,$F$5,$F$6,$F$7,$F$8,$F$9,$F$10,$F$11,$F$12,$F$13) -> 104.1175206 | C24: 0.005075593146 | D24: 0.005075593146
A25: =prices!N25 -> 103.9338743 | B25: =CSbondPrice(prices!$P$2,prices!$B25,prices!$C25/100,$F$4,$F$5,$F$6,$F$7,$F$8,$F$9,$F$10,$F$11,$F$12,$F$13) -> 103.9170738 | C25: 0.01680048352 | D25: 0.01680048352
A26: =prices!N26 -> 107.1304348 | B26: =CSbondPrice(prices!$P$2,prices!$B26,prices!$C26/100,$F$4,$F$5,$F$6,$F$7,$F$8,$F$9,$F$10,$F$11,$F$12,$F$13) -> 107.0914707 | C26: 0.03896408242 | D26: 0.03896408242
A27: =prices!N27 -> 106.3333909 | B27: =CSbondPrice(prices!$P$2,prices!$B27,prices!$C27/100,$F$4,$F$5,$F$6,$F$7,$F$8,$F$9,$F$10,$F$11,$F$12,$F$13) -> 106.3071256 | C27: 0.02626527105 | D27: 0.02626527105
A28: =prices!N28 -> 106.6284341 | B28: =CSbondPrice(prices!$P$2,prices!$B28,prices!$C28/100,$F$4,$F$5,$F$6,$F$7,$F$8,$F$9,$F$10,$F$11,$F$12,$F$13) -> 106.5910262 | C28: 0.03740785344 | D28: 0.03740785344
A29: =prices!N29 -> 106.7141747 | B29: =CSbondPrice(prices!$P$2,prices!$B29,prices!$C29/100,$F$4,$F$5,$F$6,$F$7,$F$8,$F$9,$F$10,$F$11,$F$12,$F$13) -> 106.6760587 | C29: 0.03811598983 | D29: 0.03811598983
A30: =prices!N30 -> 106.6183036 | B30: =CSbondPrice(prices!$P$2,prices!$B30,prices!$C30/100,$F$4,$F$5,$F$6,$F$7,$F$8,$F$9,$F$10,$F$11,$F$12,$F$13) -> 106.5760141 | C30: 0.04228946018 | D30: 0.04228946018
A31: =prices!N31 -> 106.8807838 | B31: =CSbondPrice(prices!$P$2,prices!$B31,prices!$C31/100,$F$4,$F$5,$F$6,$F$7,$F$8,$F$9,$F$10,$F$11,$F$12,$F$13) -> 106.8386614 | C31: 0.04212240575 | D31: 0.04212240575
A32: =prices!N32 -> 108.8196332 | B32: =CSbondPrice(prices!$P$2,prices!$B32,prices!$C32/100,$F$4,$F$5,$F$6,$F$7,$F$8,$F$9,$F$10,$F$11,$F$12,$F$13) -> 108.7758904 | C32: 0.04374272046 | D32: 0.04374272046
A33: =prices!N33 -> 109.0991848 | B33: =CSbondPrice(prices!$P$2,prices!$B33,prices!$C33/100,$F$4,$F$5,$F$6,$F$7,$F$8,$F$9,$F$10,$F$11,$F$12,$F$13) -> 108.966984 | C33: 0.1322007793 | D33: 0.1322007793
A34: =prices!N34 -> 108.1976865 | B34: =CSbondPrice(prices!$P$2,prices!$B34,prices!$C34/100,$F$4,$F$5,$F$6,$F$7,$F$8,$F$9,$F$10,$F$11,$F$12,$F$13) -> 108.1602576 | C34: 0.03742890493 | D34: 0.03742890493
A35: =prices!N35 -> 107.8272665 | B35: =CSbondPrice(prices!$P$2,prices!$B35,prices!$C35/100,$F$4,$F$5,$F$6,$F$7,$F$8,$F$9,$F$10,$F$11,$F$12,$F$13) -> 107.7693254 | C35: 0.05794109653 | D35: 0.05794109653
A36: =prices!N36 -> 107.9339606 | B36: =CSbondPrice(prices!$P$2,prices!$B36,prices!$C36/100,$F$4,$F$5,$F$6,$F$7,$F$8,$F$9,$F$10,$F$11,$F$12,$F$13) -> 107.8722104 | C36: 0.06175021767 | D36: 0.06175021767
A37: =prices!N37 -> 107.5106456 | B37: =CSbondPrice(prices!$P$2,prices!$B37,prices!$C37/100,$F$4,$F$5,$F$6,$F$7,$F$8,$F$9,$F$10,$F$11,$F$12,$F$13) -> 107.475055 | C37: 0.03559065437 | D37: 0.03559065437
A38: =prices!N38 -> 107.5764848 | B38: =CSbondPrice(prices!$P$2,prices!$B38,prices!$C38/100,$F$4,$F$5,$F$6,$F$7,$F$8,$F$9,$F$10,$F$11,$F$12,$F$13) -> 107.5673782 | C38: 0.009106582057 | D38: 0.009106582057
A39: =prices!N39 -> 110.0706522 | B39: =CSbondPrice(prices!$P$2,prices!$B39,prices!$C39/100,$F$4,$F$5,$F$6,$F$7,$F$8,$F$9,$F$10,$F$11,$F$12,$F$13) -> 110.0157433 | C39: 0.05490888693 | D39: 0.05490888693
A40: =prices!N40 -> 110.2146739 | B40: =CSbondPrice(prices!$P$2,prices!$B40,prices!$C40/100,$F$4,$F$5,$F$6,$F$7,$F$8,$F$9,$F$10,$F$11,$F$12,$F$13) -> 110.2415987 | C40: -0.0269247541 | D40: 0.0269247541
A41: =prices!N41 -> 109.5570615 | B41: =CSbondPrice(prices!$P$2,prices!$B41,prices!$C41/100,$F$4,$F$5,$F$6,$F$7,$F$8,$F$9,$F$10,$F$11,$F$12,$F$13) -> 109.545813 | C41: 0.01124844454 | D41: 0.01124844454
A42: =prices!N42 -> 109.0147665 | B42: =CSbondPrice(prices!$P$2,prices!$B42,prices!$C42/100,$F$4,$F$5,$F$6,$F$7,$F$8,$F$9,$F$10,$F$11,$F$12,$F$13) -> 109.0341026 | C42: -0.01933614627 | D42: 0.01933614627
A43: =prices!N43 -> 108.8407286 | B43: =CSbondPrice(prices!$P$2,prices!$B43,prices!$C43/100,$F$4,$F$5,$F$6,$F$7,$F$8,$F$9,$F$10,$F$11,$F$12,$F$13) -> 108.8601125 | C43: -0.01938389024 | D43: 0.01938389024
A44: =prices!N44 -> 109.2699176 | B44: =CSbondPrice(prices!$P$2,prices!$B44,prices!$C44/100,$F$4,$F$5,$F$6,$F$7,$F$8,$F$9,$F$10,$F$11,$F$12,$F$13) -> 109.2801763 | C44: -0.01025872989 | D44: 0.01025872989
A45: =prices!N45 -> 109.3614468 | B45: =CSbondPrice(prices!$P$2,prices!$B45,prices!$C45/100,$F$4,$F$5,$F$6,$F$7,$F$8,$F$9,$F$10,$F$11,$F$12,$F$13) -> 109.3755718 | C45: -0.01412498915 | D45: 0.01412498915
A46: =prices!N46 -> 110.8372962 | B46: =CSbondPrice(prices!$P$2,prices!$B46,prices!$C46/100,$F$4,$F$5,$F$6,$F$7,$F$8,$F$9,$F$10,$F$11,$F$12,$F$13) -> 110.8681902 | C46: -0.03089397865 | D46: 0.03089397865
A47: =prices!N47 -> 110.1141304 | B47: =CSbondPrice(prices!$P$2,prices!$B47,prices!$C47/100,$F$4,$F$5,$F$6,$F$7,$F$8,$F$9,$F$10,$F$11,$F$12,$F$13) -> 110.0198562 | C47: 0.09427418933 | D47: 0.09427418933
A48: =prices!N48 -> 109.2405041 | B48: =CSbondPrice(prices!$P$2,prices!$B48,prices!$C48/100,$F$4,$F$5,$F$6,$F$7,$F$8,$F$9,$F$10,$F$11,$F$12,$F$13) -> 109.1846711 | C48: 0.0558330624 | D48: 0.0558330624
A49: =prices!N49 -> 109.3229739 | B49: =CSbondPrice(prices!$P$2,prices!$B49,prices!$C49/100,$F$4,$F$5,$F$6,$F$7,$F$8,$F$9,$F$10,$F$11,$F$12,$F$13) -> 109.3063882 | C49: 0.01658571056 | D49: 0.01658571056
A50: =prices!N50 -> 107.9839434 | B50: =CSbondPrice(prices!$P$2,prices!$B50,prices!$C50/100,$F$4,$F$5,$F$6,$F$7,$F$8,$F$9,$F$10,$F$11,$F$12,$F$13) -> 107.975869 | C50: 0.008074405461 | D50: 0.008074405461
A51: =prices!N51 -> 108.3176796 | B51: =CSbondPrice(prices!$P$2,prices!$B51,prices!$C51/100,$F$4,$F$5,$F$6,$F$7,$F$8,$F$9,$F$10,$F$11,$F$12,$F$13) -> 108.2227383 | C51: 0.09494124056 | D51: 0.09494124056
A52: =prices!N52 -> 106.2345467 | B52: =CSbondPrice(prices!$P$2,prices!$B52,prices!$C52/100,$F$4,$F$5,$F$6,$F$7,$F$8,$F$9,$F$10,$F$11,$F$12,$F$13) -> 106.2568664 | C52: -0.02231967821 | D52: 0.02231967821
A53: =prices!N53 -> 106.7647617 | B53: =CSbondPrice(prices!$P$2,prices!$B53,prices!$C53/100,$F$4,$F$5,$F$6,$F$7,$F$8,$F$9,$F$10,$F$11,$F$12,$F$13) -> 106.749263 | C53: 0.01549876344 | D53: 0.01549876344
A54: =prices!N54 -> 105.7421875 | B54: =CSbondPrice(prices!$P$2,prices!$B54,prices!$C54/100,$F$4,$F$5,$F$6,$F$7,$F$8,$F$9,$F$10,$F$11,$F$12,$F$13) -> 105.7210931 | C54: 0.02109439765 | D54: 0.02109439765
A55: =prices!N55 -> 109.076087 | B55: =CSbondPrice(prices!$P$2,prices!$B55,prices!$C55/100,$F$4,$F$5,$F$6,$F$7,$F$8,$F$9,$F$10,$F$11,$F$12,$F$13) -> 109.0445266 | C55: 0.03156039395 | D55: 0.03156039395
A56: =prices!N56 -> 105.0926278 | B56: =CSbondPrice(prices!$P$2,prices!$B56,prices!$C56/100,$F$4,$F$5,$F$6,$F$7,$F$8,$F$9,$F$10,$F$11,$F$12,$F$13) -> 105.0582684 | C56: 0.03435938275 | D56: 0.03435938275
A57: =prices!N57 -> 103.9023008 | B57: =CSbondPrice(prices!$P$2,prices!$B57,prices!$C57/100,$F$4,$F$5,$F$6,$F$7,$F$8,$F$9,$F$10,$F$11,$F$12,$F$13) -> 103.9263762 | C57: -0.02407534382 | D57: 0.02407534382
A58: =prices!N58 -> 105.8151761 | B58: =CSbondPrice(prices!$P$2,prices!$B58,prices!$C58/100,$F$4,$F$5,$F$6,$F$7,$F$8,$F$9,$F$10,$F$11,$F$12,$F$13) -> 105.8226493 | C58: -0.007473202373 | D58: 0.007473202373
A59: =prices!N59 -> 107.4597721 | B59: =CSbondPrice(prices!$P$2,prices!$B59,prices!$C59/100,$F$4,$F$5,$F$6,$F$7,$F$8,$F$9,$F$10,$F$11,$F$12,$F$13) -> 107.4058834 | C59: 0.05388871973 | D59: 0.05388871973
A60: =prices!N60 -> 106.7860577 | B60: =CSbondPrice(prices!$P$2,prices!$B60,prices!$C60/100,$F$4,$F$5,$F$6,$F$7,$F$8,$F$9,$F$10,$F$11,$F$12,$F$13) -> 106.8318993 | C60: -0.04584164777 | D60: 0.04584164777
A61: =prices!N61 -> 106.0422997 | B61: =CSbondPrice(prices!$P$2,prices!$B61,prices!$C61/100,$F$4,$F$5,$F$6,$F$7,$F$8,$F$9,$F$10,$F$11,$F$12,$F$13) -> 106.1176854 | C61: -0.07538571498 | D61: 0.07538571498
A62: =prices!N62 -> 110.7764946 | B62: =CSbondPrice(prices!$P$2,prices!$B62,prices!$C62/100,$F$4,$F$5,$F$6,$F$7,$F$8,$F$9,$F$10,$F$11,$F$12,$F$13) -> 110.8073212 | C62: -0.03082668271 | D62: 0.03082668271
A63: =prices!N63 -> 109.9312845 | B63: =CSbondPrice(prices!$P$2,prices!$B63,prices!$C63/100,$F$4,$F$5,$F$6,$F$7,$F$8,$F$9,$F$10,$F$11,$F$12,$F$13) -> 109.881514 | C63: 0.04977057915 | D63: 0.04977057915
A64: =prices!N64 -> 109.8668478 | B64: =CSbondPrice(prices!$P$2,prices!$B64,prices!$C64/100,$F$4,$F$5,$F$6,$F$7,$F$8,$F$9,$F$10,$F$11,$F$12,$F$13) -> 109.9093212 | C64: -0.04247337126 | D64: 0.04247337126
A65: =prices!N65 -> 112.1116195 | B65: =CSbondPrice(prices!$P$2,prices!$B65,prices!$C65/100,$F$4,$F$5,$F$6,$F$7,$F$8,$F$9,$F$10,$F$11,$F$12,$F$13) -> 112.2020433 | C65: -0.09042377962 | D65: 0.09042377962
A66: =prices!N66 -> 111.0577446 | B66: =CSbondPrice(prices!$P$2,prices!$B66,prices!$C66/100,$F$4,$F$5,$F$6,$F$7,$F$8,$F$9,$F$10,$F$11,$F$12,$F$13) -> 111.0647052 | C66: -0.006960592286 | D66: 0.006960592286
A67: =prices!N67 -> 109.8531595 | B67: =CSbondPrice(prices!$P$2,prices!$B67,prices!$C67/100,$F$4,$F$5,$F$6,$F$7,$F$8,$F$9,$F$10,$F$11,$F$12,$F$13) -> 109.9135109 | C67: -0.06035133988 | D67: 0.06035133988
A68: =prices!N68 -> 109.4605978 | B68: =CSbondPrice(prices!$P$2,prices!$B68,prices!$C68/100,$F$4,$F$5,$F$6,$F$7,$F$8,$F$9,$F$10,$F$11,$F$12,$F$13) -> 109.5553943 | C68: -0.09479644169 | D68: 0.09479644169
A69: =prices!N69 -> 108.890107 | B69: =CSbondPrice(prices!$P$2,prices!$B69,prices!$C69/100,$F$4,$F$5,$F$6,$F$7,$F$8,$F$9,$F$10,$F$11,$F$12,$F$13) -> 109.0516258 | C69: =A69-B69 -> -0.1615187473 | D69: 0.1615187473
A70: =prices!N70 -> 110.4327446 | B70: =CSbondPrice(prices!$P$2,prices!$B70,prices!$C70/100,$F$4,$F$5,$F$6,$F$7,$F$8,$F$9,$F$10,$F$11,$F$12,$F$13) -> 110.5519367 | C70: -0.1191921483 | D70: =ABS(A70-B70) -> 0.1191921483
A71: =prices!N71 -> 110.7636395 | B71: =CSbondPrice(prices!$P$2,prices!$B71,prices!$C71/100,$F$4,$F$5,$F$6,$F$7,$F$8,$F$9,$F$10,$F$11,$F$12,$F$13) -> 110.6926371 | C71: 0.07100244274 | D71: 0.07100244274
A72: =prices!N72 -> 111.5611413 | B72: =CSbondPrice(prices!$P$2,prices!$B72,prices!$C72/100,$F$4,$F$5,$F$6,$F$7,$F$8,$F$9,$F$10,$F$11,$F$12,$F$13) -> 111.6198043 | C72: -0.0586629496 | D72: 0.0586629496
A73: =prices!N73 -> 114.0164019 | B73: =CSbondPrice(prices!$P$2,prices!$B73,prices!$C73/100,$F$4,$F$5,$F$6,$F$7,$F$8,$F$9,$F$10,$F$11,$F$12,$F$13) -> 114.0719107 | C73: -0.05550876062 | D73: 0.05550876062
A74: =prices!N74 -> 113.7146739 | B74: =CSbondPrice(prices!$P$2,prices!$B74,prices!$C74/100,$F$4,$F$5,$F$6,$F$7,$F$8,$F$9,$F$10,$F$11,$F$12,$F$13) -> 113.590085 | C74: 0.1245888688 | D74: 0.1245888688
A75: =prices!N75 -> 110.789192 | B75: =CSbondPrice(prices!$P$2,prices!$B75,prices!$C75/100,$F$4,$F$5,$F$6,$F$7,$F$8,$F$9,$F$10,$F$11,$F$12,$F$13) -> 110.5349566 | C75: 0.2542353916 | D75: 0.2542353916
A76: =prices!N76 -> 111.7425272 | B76: =CSbondPrice(prices!$P$2,prices!$B76,prices!$C76/100,$F$4,$F$5,$F$6,$F$7,$F$8,$F$9,$F$10,$F$11,$F$12,$F$13) -> 111.3999033 | C76: 0.3426238419 | D76: 0.3426238419
A77: =prices!N77 -> 109.5292645 | B77: =CSbondPrice(prices!$P$2,prices!$B77,prices!$C77/100,$F$4,$F$5,$F$6,$F$7,$F$8,$F$9,$F$10,$F$11,$F$12,$F$13) -> 109.1171231 | C77: 0.4121413888 | D77: 0.4121413888
A78: =prices!N78 -> 112.298913 | B78: =CSbondPrice(prices!$P$2,prices!$B78,prices!$C78/100,$F$4,$F$5,$F$6,$F$7,$F$8,$F$9,$F$10,$F$11,$F$12,$F$13) -> 111.7198386 | C78: 0.579074397 | D78: 0.579074397
A79: =prices!N79 -> 107.3375345 | B79: =CSbondPrice(prices!$P$2,prices!$B79,prices!$C79/100,$F$4,$F$5,$F$6,$F$7,$F$8,$F$9,$F$10,$F$11,$F$12,$F$13) -> 106.5912907 | C79: 0.746243826 | D79: 0.746243826
A80: =prices!N80 -> 102.5163043 | B80: =CSbondPrice(prices!$P$2,prices!$B80,prices!$C80/100,$F$4,$F$5,$F$6,$F$7,$F$8,$F$9,$F$10,$F$11,$F$12,$F$13) -> 101.4647366 | C80: 1.051567718 | D80: 1.051567718
A81: =prices!N81 -> 104.1046271 | B81: =CSbondPrice(prices!$P$2,prices!$B81,prices!$C81/100,$F$4,$F$5,$F$6,$F$7,$F$8,$F$9,$F$10,$F$11,$F$12,$F$13) -> 102.9257535 | C81: 1.178873599 | D81: 1.178873599
A82: =prices!N82 -> 147.3091033 | B82: =CSbondPrice(prices!$P$2,prices!$B82,prices!$C82/100,$F$4,$F$5,$F$6,$F$7,$F$8,$F$9,$F$10,$F$11,$F$12,$F$13) -> 151.3282297 | C82: -4.019126444 | D82: 4.019126444
A83: =prices!N83 -> 146.4646739 | B83: =CSbondPrice(prices!$P$2,prices!$B83,prices!$C83/100,$F$4,$F$5,$F$6,$F$7,$F$8,$F$9,$F$10,$F$11,$F$12,$F$13) -> 149.4471469 | C83: -2.982472952 | D83: 2.982472952
A84: =prices!N84 -> 140.6280214 | B84: =CSbondPrice(prices!$P$2,prices!$B84,prices!$C84/100,$F$4,$F$5,$F$6,$F$7,$F$8,$F$9,$F$10,$F$11,$F$12,$F$13) -> 146.0768882 | C84: -5.448866789 | D84: 5.448866789
A85: =prices!N85 -> 140.2038043 | B85: =CSbondPrice(prices!$P$2,prices!$B85,prices!$C85/100,$F$4,$F$5,$F$6,$F$7,$F$8,$F$9,$F$10,$F$11,$F$12,$F$13) -> 144.6447413 | C85: -4.440936979 | D85: 4.440936979
A86: =prices!N86 -> 126.5132942 | B86: =CSbondPrice(prices!$P$2,prices!$B86,prices!$C86/100,$F$4,$F$5,$F$6,$F$7,$F$8,$F$9,$F$10,$F$11,$F$12,$F$13) -> 128.6499211 | C86: -2.136626852 | D86: 2.136626852
A87: =prices!N87 -> 128.7831492 | B87: =CSbondPrice(prices!$P$2,prices!$B87,prices!$C87/100,$F$4,$F$5,$F$6,$F$7,$F$8,$F$9,$F$10,$F$11,$F$12,$F$13) -> 130.8436531 | C87: -2.060503906 | D87: 2.060503906
A88: =prices!N88 -> 138.304299 | B88: =CSbondPrice(prices!$P$2,prices!$B88,prices!$C88/100,$F$4,$F$5,$F$6,$F$7,$F$8,$F$9,$F$10,$F$11,$F$12,$F$13) -> 143.3429632 | C88: -5.038664163 | D88: 5.038664163
A89: =prices!N89 -> 141.8002717 | B89: =CSbondPrice(prices!$P$2,prices!$B89,prices!$C89/100,$F$4,$F$5,$F$6,$F$7,$F$8,$F$9,$F$10,$F$11,$F$12,$F$13) -> 145.1373968 | C89: -3.337125086 | D89: 3.337125086
A90: =prices!N90 -> 143.7247065 | B90: =CSbondPrice(prices!$P$2,prices!$B90,prices!$C90/100,$F$4,$F$5,$F$6,$F$7,$F$8,$F$9,$F$10,$F$11,$F$12,$F$13) -> 148.0641247 | C90: -4.339418252 | D90: 4.339418252
A91: =prices!N91 -> 143.871029 | B91: =CSbondPrice(prices!$P$2,prices!$B91,prices!$C91/100,$F$4,$F$5,$F$6,$F$7,$F$8,$F$9,$F$10,$F$11,$F$12,$F$13) -> 145.0965468 | C91: -1.225517804 | D91: 1.225517804
A92: =prices!N92 -> 145.3940217 | B92: =CSbondPrice(prices!$P$2,prices!$B92,prices!$C92/100,$F$4,$F$5,$F$6,$F$7,$F$8,$F$9,$F$10,$F$11,$F$12,$F$13) -> 146.5033382 | C92: -1.109316431 | D92: 1.109316431
A93: =prices!N93 -> 139.9932065 | B93: =CSbondPrice(prices!$P$2,prices!$B93,prices!$C93/100,$F$4,$F$5,$F$6,$F$7,$F$8,$F$9,$F$10,$F$11,$F$12,$F$13) -> 139.9489288 | C93: 0.0442776979 | D93: 0.0442776979
A94: =prices!N94 -> 144.2873641 | B94: =CSbondPrice(prices!$P$2,prices!$B94,prices!$C94/100,$F$4,$F$5,$F$6,$F$7,$F$8,$F$9,$F$10,$F$11,$F$12,$F$13) -> 141.768039 | C94: 2.519325162 | D94: 2.519325162
A95: =prices!N95 -> 144.835549 | B95: =CSbondPrice(prices!$P$2,prices!$B95,prices!$C95/100,$F$4,$F$5,$F$6,$F$7,$F$8,$F$9,$F$10,$F$11,$F$12,$F$13) -> 146.6894105 | C95: -1.853861424 | D95: 1.853861424
A96: =prices!N96 -> 147.4157609 | B96: =CSbondPrice(prices!$P$2,prices!$B96,prices!$C96/100,$F$4,$F$5,$F$6,$F$7,$F$8,$F$9,$F$10,$F$11,$F$12,$F$13) -> 144.860211 | C96: 2.555549883 | D96: 2.555549883
A97: =prices!N97 -> 140.0679348 | B97: =CSbondPrice(prices!$P$2,prices!$B97,prices!$C97/100,$F$4,$F$5,$F$6,$F$7,$F$8,$F$9,$F$10,$F$11,$F$12,$F$13) -> 138.8932671 | C97: 1.174667658 | D97: 1.174667658
A98: =prices!N98 -> 140.6609116 | B98: =CSbondPrice(prices!$P$2,prices!$B98,prices!$C98/100,$F$4,$F$5,$F$6,$F$7,$F$8,$F$9,$F$10,$F$11,$F$12,$F$13) -> 139.7880635 | C98: 0.872848114 | D98: 0.872848114
A99: =prices!N99 -> 143.0244565 | B99: =CSbondPrice(prices!$P$2,prices!$B99,prices!$C99/100,$F$4,$F$5,$F$6,$F$7,$F$8,$F$9,$F$10,$F$11,$F$12,$F$13) -> 142.1008919 | C99: 0.9235645765 | D99: 0.9235645765
A100: =prices!N100 -> 140.0728591 | B100: =CSbondPrice(prices!$P$2,prices!$B100,prices!$C100/100,$F$4,$F$5,$F$6,$F$7,$F$8,$F$9,$F$10,$F$11,$F$12,$F$13) -> 141.3468733 | C100: -1.274014136 | D100: 1.274014136
A101: =prices!N101 -> 135.2078804 | B101: =CSbondPrice(prices!$P$2,prices!$B101,prices!$C101/100,$F$4,$F$5,$F$6,$F$7,$F$8,$F$9,$F$10,$F$11,$F$12,$F$13) -> 132.373707 | C101: 2.834173448 | D101: 2.834173448
A102: =prices!N102 -> 137.4337017 | B102: =CSbondPrice(prices!$P$2,prices!$B102,prices!$C102/100,$F$4,$F$5,$F$6,$F$7,$F$8,$F$9,$F$10,$F$11,$F$12,$F$13) -> 138.860845 | C102: -1.427143306 | D102: 1.427143306
A103: =prices!N103 -> 133.8858696 | B103: =CSbondPrice(prices!$P$2,prices!$B103,prices!$C103/100,$F$4,$F$5,$F$6,$F$7,$F$8,$F$9,$F$10,$F$11,$F$12,$F$13) -> 133.4959282 | C103: 0.3899413303 | D103: 0.3899413303
A104: =prices!N104 -> 124.6005435 | B104: =CSbondPrice(prices!$P$2,prices!$B104,prices!$C104/100,$F$4,$F$5,$F$6,$F$7,$F$8,$F$9,$F$10,$F$11,$F$12,$F$13) -> 123.2857501 | C104: 1.314793351 | D104: 1.314793351
A105: =prices!N105 -> 137.7987742 | B105: =CSbondPrice(prices!$P$2,prices!$B105,prices!$C105/100,$F$4,$F$5,$F$6,$F$7,$F$8,$F$9,$F$10,$F$11,$F$12,$F$13) -> 139.3608269 | C105: -1.562052701 | D105: 1.562052701
A106: =prices!N106 -> 141.267663 | B106: =CSbondPrice(prices!$P$2,prices!$B106,prices!$C106/100,$F$4,$F$5,$F$6,$F$7,$F$8,$F$9,$F$10,$F$11,$F$12,$F$13) -> 139.4055994 | C106: 1.862063679 | D106: 1.862063679
A107: =prices!N107 -> 132.7418478 | B107: =CSbondPrice(prices!$P$2,prices!$B107,prices!$C107/100,$F$4,$F$5,$F$6,$F$7,$F$8,$F$9,$F$10,$F$11,$F$12,$F$13) -> 132.1221916 | C107: 0.6196561832 | D107: 0.6196561832
A108: =prices!N108 -> 122.3315217 | B108: =CSbondPrice(prices!$P$2,prices!$B108,prices!$C108/100,$F$4,$F$5,$F$6,$F$7,$F$8,$F$9,$F$10,$F$11,$F$12,$F$13) -> 121.4006445 | C108: 0.9308772467 | D108: 0.9308772467
A109: =prices!N109 -> 131.935462 | B109: =CSbondPrice(prices!$P$2,prices!$B109,prices!$C109/100,$F$4,$F$5,$F$6,$F$7,$F$8,$F$9,$F$10,$F$11,$F$12,$F$13) -> 129.760867 | C109: 2.174594908 | D109: 2.174594908
A110: =prices!N110 -> 127.2193543 | B110: =CSbondPrice(prices!$P$2,prices!$B110,prices!$C110/100,$F$4,$F$5,$F$6,$F$7,$F$8,$F$9,$F$10,$F$11,$F$12,$F$13) -> 129.0671998 | C110: -1.847845532 | D110: 1.847845532
A111: =prices!N111 -> 130.4728261 | B111: =CSbondPrice(prices!$P$2,prices!$B111,prices!$C111/100,$F$4,$F$5,$F$6,$F$7,$F$8,$F$9,$F$10,$F$11,$F$12,$F$13) -> 129.4161582 | C111: 1.056667931 | D111: 1.056667931
A112: =prices!N112 -> 127.5006793 | B112: =CSbondPrice(prices!$P$2,prices!$B112,prices!$C112/100,$F$4,$F$5,$F$6,$F$7,$F$8,$F$9,$F$10,$F$11,$F$12,$F$13) -> 127.9926298 | C112: -0.4919504915 | D112: 0.4919504915
A113: =prices!N113 -> 122.8614468 | B113: =CSbondPrice(prices!$P$2,prices!$B113,prices!$C113/100,$F$4,$F$5,$F$6,$F$7,$F$8,$F$9,$F$10,$F$11,$F$12,$F$13) -> 125.1746084 | C113: -2.31316153 | D113: 2.31316153
A114: =prices!N114 -> 116.1841033 | B114: =CSbondPrice(prices!$P$2,prices!$B114,prices!$C114/100,$F$4,$F$5,$F$6,$F$7,$F$8,$F$9,$F$10,$F$11,$F$12,$F$13) -> 115.9044452 | C114: 0.2796581052 | D114: 0.2796581052
A115: =prices!N115 -> 111.6200794 | B115: =CSbondPrice(prices!$P$2,prices!$B115,prices!$C115/100,$F$4,$F$5,$F$6,$F$7,$F$8,$F$9,$F$10,$F$11,$F$12,$F$13) -> 114.3719841 | C115: -2.751904636 | D115: 2.751904636
A116: =prices!N116 -> 112.8838315 | B116: =CSbondPrice(prices!$P$2,prices!$B116,prices!$C116/100,$F$4,$F$5,$F$6,$F$7,$F$8,$F$9,$F$10,$F$11,$F$12,$F$13) -> 113.1090338 | C116: -0.2252022431 | D116: 0.2252022431
A117: =prices!N117 -> 125.0441576 | B117: =CSbondPrice(prices!$P$2,prices!$B117,prices!$C117/100,$F$4,$F$5,$F$6,$F$7,$F$8,$F$9,$F$10,$F$11,$F$12,$F$13) -> 125.0295878 | C117: 0.0145697927 | D117: 0.0145697927
A118: =prices!N118 -> 125.6213743 | B118: =CSbondPrice(prices!$P$2,prices!$B118,prices!$C118/100,$F$4,$F$5,$F$6,$F$7,$F$8,$F$9,$F$10,$F$11,$F$12,$F$13) -> 124.9064605 | C118: 0.7149138564 | D118: 0.7149138564
A119: =prices!N119 -> 114.8620924 | B119: =CSbondPrice(prices!$P$2,prices!$B119,prices!$C119/100,$F$4,$F$5,$F$6,$F$7,$F$8,$F$9,$F$10,$F$11,$F$12,$F$13) -> 116.1712758 | C119: -1.309183386 | D119: 1.309183386
A120: =prices!N120 -> 101.8892663 | B120: =CSbondPrice(prices!$P$2,prices!$B120,prices!$C120/100,$F$4,$F$5,$F$6,$F$7,$F$8,$F$9,$F$10,$F$11,$F$12,$F$13) -> 101.0328885 | C120: 0.8563778048 | D120: 0.8563778048
A121: =prices!N121 -> 105.814538 | B121: =CSbondPrice(prices!$P$2,prices!$B121,prices!$C121/100,$F$4,$F$5,$F$6,$F$7,$F$8,$F$9,$F$10,$F$11,$F$12,$F$13) -> 102.535123 | C121: 3.279415093 | D121: 3.279415093
A122: =prices!N122 -> 108.7564744 | B122: =CSbondPrice(prices!$P$2,prices!$B122,prices!$C122/100,$F$4,$F$5,$F$6,$F$7,$F$8,$F$9,$F$10,$F$11,$F$12,$F$13) -> 104.6946526 | C122: 4.06182182 | D122: 4.06182182

Sheet 8152011
C1: Basic "Brut Force" bond Price Computation
A2: maturity | C2: 2013-08-15 | D2: 6
A3: coupon | C3: 4.25
A4: today | C4: 2010-01-29
F5: NELS. SIEG. | H5: CUBIC SPLINE
A6: time | C6: t | D6: CF | E6: y(t) | F6: present value | G6: r_cs(t) | H6: present value
A7: =COUPNCD(C4,C2,2,2) -> 2010-02-15 | B7: 0 | C7: =(nCPNdate(A7, $B$7)-$C$4)/365 -> 0.04657534247 | D7: =$C$3/2 -> 2.125 | E7: =NelsonSiegel(C7, 'nelson siegel ASK'!$E$4, 'nelson siegel ASK'!$E$5, 'nelson siegel ASK'!$E$6, 'nelson siegel ASK'!$E$7) -> -0.001924890444 | F7: =D7*EXP(-C7*E7) -> 2.12519052 | G7: =cubicSpline(C7,'cubic spline'!$F$4,'cubic spline'!$F$5,'cubic spline'!$F$6,'cubic spline'!$F$7,'cubic spline'!$F$8,'cubic spline'!$F$9,'cubic spline'!$F$10,'cubic spline'!$F$11,'cubic spline'!$F$12,'cubic spline'!$F$13) -> -0.001689011962 | H7: =D7*EXP(-C7*G7) -> 2.125167172
A8: =COUPNCD(A7,$C$2,2) -> 2010-08-15 | B8: 1 | C8: =(nCPNdate(A8, $B$7)-$C$4)/365 -> 0.5452054795 | D8: 2.125 | E8: =NelsonSiegel(C8, 'nelson siegel ASK'!$E$4, 'nelson siegel ASK'!$E$5, 'nelson siegel ASK'!$E$6, 'nelson siegel ASK'!$E$7) -> 0.001890599257 | F8: 2.122810753 | G8: =cubicSpline(C8,'cubic spline'!$F$4,'cubic spline'!$F$5,'cubic spline'!$F$6,'cubic spline'!$F$7,'cubic spline'!$F$8,'cubic spline'!$F$9,'cubic spline'!$F$10,'cubic spline'!$F$11,'cubic spline'!$F$12,'cubic spline'!$F$13) -> 0.001058829703 | H8: 2.123773635
A9: 2011-02-15 | B9: 2 | C9: 1.046575342 | D9: 2.125 | E9: =NelsonSiegel(C9, 'nelson siegel ASK'!$E$4, 'nelson siegel ASK'!$E$5, 'nelson siegel ASK'!$E$6, 'nelson siegel ASK'!$E$7) -> 0.005519711384 | F9: 2.112759702 | G9: =cubicSpline(C9,'cubic spline'!$F$4,'cubic spline'!$F$5,'cubic spline'!$F$6,'cubic spline'!$F$7,'cubic spline'!$F$8,'cubic spline'!$F$9,'cubic spline'!$F$10,'cubic spline'!$F$11,'cubic spline'!$F$12,'cubic spline'!$F$13) -> 0.003804226684 | H9: 2.116556324
A10: 2011-08-15 | B10: 3 | C10: 1.542465753 | D10: 2.125 | E10: =NelsonSiegel(C10, 'nelson siegel ASK'!$E$4, 'nelson siegel ASK'!$E$5, 'nelson siegel ASK'!$E$6, 'nelson siegel ASK'!$E$7) -> 0.008913526304 | F10: 2.095983708 | G10: =cubicSpline(C10,'cubic spline'!$F$4,'cubic spline'!$F$5,'cubic spline'!$F$6,'cubic spline'!$F$7,'cubic spline'!$F$8,'cubic spline'!$F$9,'cubic spline'!$F$10,'cubic spline'!$F$11,'cubic spline'!$F$12,'cubic spline'!$F$13) -> 0.00649554631 | H10: 2.103815592
A11: 2012-02-15 | B11: 4 | C11: 2.046575342 | D11: 2.125 | E11: =NelsonSiegel(C11, 'nelson siegel ASK'!$E$4, 'nelson siegel ASK'!$E$5, 'nelson siegel ASK'!$E$6, 'nelson siegel ASK'!$E$7) -> 0.01217288209 | F11: 2.072714461 | G11: =cubicSpline(C11,'cubic spline'!$F$4,'cubic spline'!$F$5,'cubic spline'!$F$6,'cubic spline'!$F$7,'cubic spline'!$F$8,'cubic spline'!$F$9,'cubic spline'!$F$10,'cubic spline'!$F$11,'cubic spline'!$F$12,'cubic spline'!$F$13) -> 0.00920000825 | H11: 2.085363733
A12: 2012-08-15 | B12: 5 | C12: 2.545205479 | D12: 2.125 | E12: =NelsonSiegel(C12, 'nelson siegel ASK'!$E$4, 'nelson siegel ASK'!$E$5, 'nelson siegel ASK'!$E$6, 'nelson siegel ASK'!$E$7) -> 0.01521593012 | F12: 2.044276902 | G12: =cubicSpline(C12,'cubic spline'!$F$4,'cubic spline'!$F$5,'cubic spline'!$F$6,'cubic spline'!$F$7,'cubic spline'!$F$8,'cubic spline'!$F$9,'cubic spline'!$F$10,'cubic spline'!$F$11,'cubic spline'!$F$12,'cubic spline'!$F$13) -> 0.01183700852 | H12: 2.0619336
A13: 2013-02-15 | B13: 6 | C13: 3.049315068 | D13: 2.125 | E13: =NelsonSiegel(C13, 'nelson siegel ASK'!$E$4, 'nelson siegel ASK'!$E$5, 'nelson siegel ASK'!$E$6, 'nelson siegel ASK'!$E$7) -> 0.01811761695 | F13: 2.010785577 | G13: =cubicSpline(C13,'cubic spline'!$F$4,'cubic spline'!$F$5,'cubic spline'!$F$6,'cubic spline'!$F$7,'cubic spline'!$F$8,'cubic spline'!$F$9,'cubic spline'!$F$10,'cubic spline'!$F$11,'cubic spline'!$F$12,'cubic spline'!$F$13) -> 0.01445753289 | H13: 2.033353152
A14: 2013-08-15 | B14: 7 | C14: =(nCPNdate(A14, $B$7)-$C$4)/365 -> 3.545205479 | D14: =$C$3/2+100 -> 102.125 | E14: =NelsonSiegel(C14, 'nelson siegel ASK'!$E$4, 'nelson siegel ASK'!$E$5, 'nelson siegel ASK'!$E$6, 'nelson siegel ASK'!$E$7) -> 0.0208080594 | F14: =D14*EXP(-C14*E14) -> 94.86252203 | G14: =cubicSpline(C14,'cubic spline'!$F$4,'cubic spline'!$F$5,'cubic spline'!$F$6,'cubic spline'!$F$7,'cubic spline'!$F$8,'cubic spline'!$F$9,'cubic spline'!$F$10,'cubic spline'!$F$11,'cubic spline'!$F$12,'cubic spline'!$F$13) -> 0.01698394007 | H14: =D14*EXP(-C14*G14) -> 96.15735804
F16: =SUM(F7:F14) -> 109.4470437 | H16: =SUM(H7:H14) -> 110.8073212
A18: Explanation: These computations are included to demonstrate that for this particular bond,
A19: the value is almost the same as when computed through vb in line 62
C21: =NSbondPrice(C4,C2,C3/100,'nelson siegel ASK'!E4,'nelson siegel ASK'!E5,'nelson siegel ASK'!E6,'nelson siegel ASK'!E7) -> 109.4470437

Sheet pricing errors
A1: NS | B1: cubic
A4: ='nelson siegel ASK'!C4 -> 0.01268130417 | B4: ='cubic spline'!C4 -> 0.01286558092
A5: ='nelson siegel ASK'!C5 -> 0.007181803985 | B5: ='cubic spline'!C5 -> 0.008299735886
A6: ='nelson siegel ASK'!C6 -> 0.008484464356 | B6: ='cubic spline'!C6 -> 0.00960926316
A7: ='nelson siegel ASK'!C7 -> 0.0009331888746 | B7: ='cubic spline'!C7 -> 0.002067601344
A8: ='nelson siegel ASK'!C8 -> 0.00256979152 | B8: ='cubic spline'!C8 -> 0.003840337277
A9: ='nelson siegel ASK'!C9 -> -0.009315135002 | B9: ='cubic spline'!C9 -> -0.008576473993
A10: ='nelson siegel ASK'!C10 -> -0.002152289629 | B10: ='cubic spline'!C10 -> -0.002832642134
A11: ='nelson siegel ASK'!C11 -> -0.01652643195 | B11: ='cubic spline'!C11 -> -0.01932669935
A12: ='nelson siegel ASK'!C12 -> -0.001952492068 | B12: ='cubic spline'!C12 -> -0.007545647205
A13: ='nelson siegel ASK'!C13 -> -0.005719004355 | B13: ='cubic spline'!C13 -> -0.01491861028
A14: ='nelson siegel ASK'!C14 -> -0.01858455035 | B14: ='cubic spline'!C14 -> -0.02781235862
A15: ='nelson siegel ASK'!C15 -> -0.001793599383 | B15: ='cubic spline'!C15 -> -0.01547304295
A16: ='nelson siegel ASK'!C16 -> -0.007087907946 | B16: ='cubic spline'!C16 -> -0.02581083049
A17: ='nelson siegel ASK'!C17 -> -0.004167983747 | B17: ='cubic spline'!C17 -> -0.02843958941
A18: ='nelson siegel ASK'!C18 -> 0.009237003296 | B18: ='cubic spline'!C18 -> -0.02144610301
A19: ='nelson siegel ASK'!C19 -> 0.01257203873 | B19: ='cubic spline'!C19 -> -0.03365194789
A20: ='nelson siegel ASK'!C20 -> 0.01197756236 | B20: ='cubic spline'!C20 -> -0.03460565799
A21: ='nelson siegel ASK'!C21 -> 0.04201386674 | B21: ='cubic spline'!C21 -> -0.02116071382
A22: ='nelson siegel ASK'!C22 -> 0.07527946144 | B22: ='cubic spline'!C22 -> -0.007365541206
A23: ='nelson siegel ASK'!C23 -> 0.1123117122 | B23: ='cubic spline'!C23 -> 0.007240956105
A24: ='nelson siegel ASK'!C24 -> 0.133759049 | B24: ='cubic spline'!C24 -> 0.005075593146
A25: ='nelson siegel ASK'!C25 -> 0.1736008493 | B25: ='cubic spline'!C25 -> 0.01680048352
A26: ='nelson siegel ASK'!C26 -> 0.2232006014 | B26: ='cubic spline'!C26 -> 0.03896408242
A27: ='nelson siegel ASK'!C27 -> 0.2224094115 | B27: ='cubic spline'!C27 -> 0.02626527105
A28: ='nelson siegel ASK'!C28 -> 0.2648669456 | B28: ='cubic spline'!C28 -> 0.03740785344
A29: ='nelson siegel ASK'!C29 -> 0.2995404717 | B29: ='cubic spline'!C29 -> 0.03811598983
A30: ='nelson siegel ASK'!C30 -> 0.3357588909 | B30: ='cubic spline'!C30 -> 0.04228946018
A31: ='nelson siegel ASK'!C31 -> 0.3706181037 | B31: ='cubic spline'!C31 -> 0.04212240575
A32: ='nelson siegel ASK'!C32 -> 0.4096853847 | B32: ='cubic spline'!C32 -> 0.04374272046
A33: ='nelson siegel ASK'!C33 -> 0.515545978 | B33: ='cubic spline'!C33 -> 0.1322007793
A34: ='nelson siegel ASK'!C34 -> 0.4368484971 | B34: ='cubic spline'!C34 -> 0.03742890493
A35: ='nelson siegel ASK'!C35 -> 0.4970179193 | B35: ='cubic spline'!C35 -> 0.05794109653
A36: ='nelson siegel ASK'!C36 -> 0.5411790054 | B36: ='cubic spline'!C36 -> 0.06175021767
A37: ='nelson siegel ASK'!C37 -> 0.5538056878 | B37: ='cubic spline'!C37 -> 0.03559065437
A38: ='nelson siegel ASK'!C38 -> 0.5679614763 | B38: ='cubic spline'!C38 -> 0.009106582057
A39: ='nelson siegel ASK'!C39 -> 0.6578545667 | B39: ='cubic spline'!C39 -> 0.05490888693
A40: ='nelson siegel ASK'!C40 -> 0.5972608483 | B40: ='cubic spline'!C40 -> -0.0269247541
A41: ='nelson siegel ASK'!C41 -> 0.6518578629 | B41: ='cubic spline'!C41 -> 0.01124844454
A42: ='nelson siegel ASK'!C42 -> 0.6673455168 | B42: ='cubic spline'!C42 -> -0.01933614627
A43: ='nelson siegel ASK'!C43 -> 0.7065729558 | B43: ='cubic spline'!C43 -> -0.01938389024
A44: ='nelson siegel ASK'!C44 -> 0.761099391 | B44: ='cubic spline'!C44 -> -0.01025872989
A45: ='nelson siegel ASK'!C45 -> 0.8033823721 | B45: ='cubic spline'!C45 -> -0.01412498915
A46: ='nelson siegel ASK'!C46 -> 0.825565392 | B46: ='cubic spline'!C46 -> -0.03089397865
A47: ='nelson siegel ASK'!C47 -> 0.9693126621 | B47: ='cubic spline'!C47 -> 0.09427418933
A48: ='nelson siegel ASK'!C48 -> 0.946534788 | B48: ='cubic spline'!C48 -> 0.0558330624
A49: ='nelson siegel ASK'!C49 -> 0.9559358811 | B49: ='cubic spline'!C49 -> 0.01658571056
A50: ='nelson siegel ASK'!C50 -> 0.9833533575 | B50: ='cubic spline'!C50 -> 0.008074405461
A51: ='nelson siegel ASK'!C51 -> 1.093673256 | B51: ='cubic spline'!C51 -> 0.09494124056
A52: ='nelson siegel ASK'!C52 -> 0.9888987154 | B52: ='cubic spline'!C52 -> -0.02231967821
A53: ='nelson siegel ASK'!C53 -> 1.071901845 | B53: ='cubic spline'!C53 -> 0.01549876344
A54: ='nelson siegel ASK'!C54 -> 1.107846974 | B54: ='cubic spline'!C54 -> 0.02109439765
A55: ='nelson siegel ASK'!C55 -> 1.15323127 | B55: ='cubic spline'!C55 -> 0.03156039395
A56: ='nelson siegel ASK'!C56 -> 1.155518831 | B56: ='cubic spline'!C56 -> 0.03435938275
A57: ='nelson siegel ASK'!C57 -> 1.133806005 | B57: ='cubic spline'!C57 -> -0.02407534382
A58: ='nelson siegel ASK'!C58 -> 1.197920958 | B58: ='cubic spline'!C58 -> -0.007473202373
A59: ='nelson siegel ASK'!C59 -> 1.287323213 | B59: ='cubic spline'!C59 -> 0.05388871973
A60: ='nelson siegel ASK'!C60 -> 1.205332611 | B60: ='cubic spline'!C60 -> -0.04584164777
A61: ='nelson siegel ASK'!C61 -> 1.211655997 | B61: ='cubic spline'!C61 -> -0.07538571498
A62: ='nelson siegel ASK'!C62 -> 1.329450911 | B62: ='cubic spline'!C62 -> -0.03082668271
A63: ='nelson siegel ASK'!C63 -> 1.517848107 | B63: ='cubic spline'!C63 -> 0.04977057915
A64: ='nelson siegel ASK'!C64 -> 1.5196251 | B64: ='cubic spline'!C64 -> -0.04247337126
A65: ='nelson siegel ASK'!C65 -> 1.5812581 | B65: ='cubic spline'!C65 -> -0.09042377962
A66: ='nelson siegel ASK'!C66 -> 1.728811786 | B66: ='cubic spline'!C66 -> -0.006960592286
A67: ='nelson siegel ASK'!C67 -> 1.74612425 | B67: ='cubic spline'!C67 -> -0.06035133988
A68: ='nelson siegel ASK'!C68 -> 1.758914738 | B68: ='cubic spline'!C68 -> -0.09479644169
A69: ='nelson siegel ASK'!C69 -> 1.744110276 | B69: ='cubic spline'!C69 -> -0.1615187473
A70: ='nelson siegel ASK'!C70 -> 1.830769353 | B70: ='cubic spline'!C70 -> -0.1191921483
A71: ='nelson siegel ASK'!C71 -> 2.062206076 | B71: ='cubic spline'!C71 -> 0.07100244274
A72: ='nelson siegel ASK'!C72 -> 1.950722372 | B72: ='cubic spline'!C72 -> -0.0586629496
A73: ='nelson siegel ASK'!C73 -> 2.004008468 | B73: ='cubic spline'!C73 -> -0.05550876062
A74: ='nelson siegel ASK'!C74 -> 2.169023563 | B74: ='cubic spline'!C74 -> 0.1245888688
A75: ='nelson siegel ASK'!C75 -> 2.272757381 | B75: ='cubic spline'!C75 -> 0.2542353916
A76: ='nelson siegel ASK'!C76 -> 2.346011697 | B76: ='cubic spline'!C76 -> 0.3426238419
A77: ='nelson siegel ASK'!C77 -> 2.38475107 | B77: ='cubic spline'!C77 -> 0.4121413888
A78: ='nelson siegel ASK'!C78 -> 2.546340629 | B78: ='cubic spline'!C78 -> 0.579074397
A79: ='nelson siegel ASK'!C79 -> 2.63758865 | B79: ='cubic spline'!C79 -> 0.746243826
A80: ='nelson siegel ASK'!C80 -> 2.837150375 | B80: ='cubic spline'!C80 -> 1.051567718
A81: ='nelson siegel ASK'!C81 -> 2.963127363 | B81: ='cubic spline'!C81 -> 1.178873599
A82: ='nelson siegel ASK'!#REF! ->  | B82: ='cubic spline'!C82 -> -4.019126444
A83: ='nelson siegel ASK'!#REF! ->  | B83: ='cubic spline'!C83 -> -2.982472952
A84: ='nelson siegel ASK'!#REF! ->  | B84: ='cubic spline'!C84 -> -5.448866789
A85: ='nelson siegel ASK'!#REF! ->  | B85: ='cubic spline'!C85 -> -4.440936979
A86: ='nelson siegel ASK'!C82 -> -1.550989611 | B86: ='cubic spline'!C86 -> -2.136626852
A87: ='nelson siegel ASK'!C83 -> -0.513530839 | B87: ='cubic spline'!C87 -> -2.060503906
A88: ='nelson siegel ASK'!C84 -> -3.02978743 | B88: ='cubic spline'!C88 -> -5.038664163
A89: ='nelson siegel ASK'!C85 -> -2.082504389 | B89: ='cubic spline'!C89 -> -3.337125086
A90: ='nelson siegel ASK'!C86 -> -0.02288713613 | B90: ='cubic spline'!C90 -> -4.339418252
A91: ='nelson siegel ASK'!C87 -> 0.02492817541 | B91: ='cubic spline'!C91 -> -1.225517804
A92: ='nelson siegel ASK'!C88 -> -2.843252682 | B92: ='cubic spline'!C92 -> -1.109316431
A93: ='nelson siegel ASK'!C89 -> -1.156648636 | B93: ='cubic spline'!C93 -> 0.0442776979
A94: ='nelson siegel ASK'!C90 -> -2.135902107 | B94: ='cubic spline'!C94 -> 2.519325162
A95: ='nelson siegel ASK'!C91 -> 0.9730649224 | B95: ='cubic spline'!C95 -> -1.853861424
A96: ='nelson siegel ASK'!C92 -> 1.092042934 | B96: ='cubic spline'!C96 -> 2.555549883
A97: ='nelson siegel ASK'!C93 -> 2.211458346 | B97: ='cubic spline'!C97 -> 1.174667658
A98: ='nelson siegel ASK'!C94 -> 4.779293427 | B98: ='cubic spline'!C98 -> 0.872848114
A99: ='nelson siegel ASK'!C95 -> 0.4938227614 | B99: ='cubic spline'!C99 -> 0.9235645765
A100: ='nelson siegel ASK'!C96 -> 4.966792855 | B100: ='cubic spline'!C100 -> -1.274014136
A101: ='nelson siegel ASK'!C97 -> 3.703951987 | B101: ='cubic spline'!C101 -> 2.834173448
A102: ='nelson siegel ASK'!C98 -> 3.539030577 | B102: ='cubic spline'!C102 -> -1.427143306
A103: ='nelson siegel ASK'!C99 -> 3.699233737 | B103: ='cubic spline'!C103 -> 0.3899413303
A104: ='nelson siegel ASK'!C100 -> 1.72396068 | B104: ='cubic spline'!C104 -> 1.314793351
A105: ='nelson siegel ASK'!C101 -> 6.449983959 | B105: ='cubic spline'!C105 -> -1.562052701
A106: ='nelson siegel ASK'!C102 -> 2.438061504 | B106: ='cubic spline'!C106 -> 1.862063679
A107: ='nelson siegel ASK'!C103 -> 4.51453947 | B107: ='cubic spline'!C107 -> 0.6196561832
A108: ='nelson siegel ASK'!C104 -> 5.636572545 | B108: ='cubic spline'!C108 -> 0.9308772467
A109: ='nelson siegel ASK'!C105 -> 3.458710457 | B109: ='cubic spline'!C109 -> 2.174594908
A110: ='nelson siegel ASK'!C106 -> 7.131127893 | B110: ='cubic spline'!C110 -> -1.847845532
A111: ='nelson siegel ASK'!C107 -> 5.919934859 | B111: ='cubic spline'!C111 -> 1.056667931
A112: ='nelson siegel ASK'!C108 -> 6.436416024 | B112: ='cubic spline'!C112 -> -0.4919504915
A113: ='nelson siegel ASK'!C109 -> 8.115826317 | B113: ='cubic spline'!C113 -> -2.31316153
A114: ='nelson siegel ASK'!C110 -> 4.718731391 | B114: ='cubic spline'!C114 -> 0.2796581052
A115: ='nelson siegel ASK'!C111 -> 7.901836257 | B115: ='cubic spline'!C115 -> -2.751904636
A116: ='nelson siegel ASK'!C112 -> 6.508226236 | B116: ='cubic spline'!C116 -> -0.2252022431
A117: ='nelson siegel ASK'!C113 -> 5.066000186 | B117: ='cubic spline'!C117 -> 0.0145697927
A118: ='nelson siegel ASK'!C114 -> 8.110261278 | B118: ='cubic spline'!C118 -> 0.7149138564
A119: ='nelson siegel ASK'!C115 -> 5.598102754 | B119: ='cubic spline'!C119 -> -1.309183386
A120: ='nelson siegel ASK'!C116 -> 5.602709537 | B120: ='cubic spline'!C120 -> 0.8563778048
A121: ='nelson siegel ASK'!C117 -> 3.630736126 | B121: ='cubic spline'!C121 -> 3.279415093
A122: ='nelson siegel ASK'!C118 -> 3.614394147 | B122: ='cubic spline'!C122 -> 4.06182182

Sheet sequential ch 1
A1: dateVal | B1: zeros_bid(t)
A2: 0.08333333333 | B2: 0.01809825791
A3: 0.5944444444 | B3: 0.02058519798
A4: 1.097222222 | B4: 0.02272047381
A5: 1.608333333 | B5: 0.02299750297
A6: 2.111111111 | B6: 0.02491860209
A7: 2.622222222 | B7: 0.02602201485
A8: 3.125 | B8: 0.0277022498
A9: 3.636111111 | B9: 0.02914256288
A10: 4.141666667 | B10: 0.03005959308
A11: 4.652777778 | B11: 0.03139016436
A12: 5.155555556 | B12: 0.03186123341
A13: 5.666666667 | B13: 0.03284284141
A14: 6.169444444 | B14: 0.03351360356
A15: 6.680555556 | B15: 0.03413688197
A16: 7.183333333 | B16: 0.03523664881
A17: 7.694444444 | B17: 0.03639062701
A18: 8.2 | B18: 0.03800369767
A19: 8.711111111 | B19: 0.03870959465
A20: 9.213888889 | B20: 0.03958099905
A21: 9.725 | B21: 0.03941766634
A22: 10.22 | B22: 0.04098900764
A23: 10.73888889 | B23: 0.04420138965
A24: 11.24166667 | B24: 0.04492722203
A25: 11.75277778 | B25: 0.04510855372
A26: 12.25833333 | B26: 0.04611864178
A27: 12.76944444 | B27: 0.04592968486
A28: 13.27222222 | B28: 0.04622357863
A29: 13.77916667 | B29: 0.04502665551
A30: 14.28611111 | B30: 0.04391965143
A31: 14.79722222 | B31: 0.04673100507
A32: 15.3 | B32: 0.04692458206
A33: 15.81111111 | B33: 0.04680305846
A34: 16.31666667 | B34: 0.04673602023
A35: 16.82777778 | B35: 0.04669199961
A36: 17.33055556 | B36: 0.04705767644
A37: 17.84166667 | B37: 0.04705566877
A38: 18.34444444 | B38: 0.0473613243
A39: 18.85555556 | B39: 0.04783778081
A40: 19.35833333 | B40: 0.04781130777
A41: 20.375 | B41: 0.04621575025
